{"text_format":"1","workbook":"xlsx","n_sheets":4,"sheets":["Sverigeranking","Regler","Miniorranking","Seriespelsranking"],"not_rendered":{"charts":0,"images":0,"macros":1,"external_links":0,"defined_names":5,"comments":0,"pivot_tables":0},"unopened":[],"bounds":{"document_bytes":16777216,"sheet_cells":100000,"rows_first":2000,"rows_last":500,"rows_between":2000,"halvings":0,"cell_chars":16384,"cell_head_chars":4096},"cells_cut":0,"cells_raw":0,"read":"whole","date_system":"1900"}

{"sheet":"Sverigeranking","index":0,"n_rows":220,"n_cols":146,"rows_kept":220,"cut":false,"hidden":false,"merged":[]}
[null,"Svenska Hästskokastarförbundets Sverigeranking",null,null,null,null,null,null,null,null,null,null,null,null,null,null,null,null,null,null,null,null,null,"Antal kastare som deltagit i samtliga tävlingar senaste 12 månaderna:",{"$f":"COUNTIF(F5:F199,16)","v":5}]
[]
[null,"SLUTSTÄLLNING 2016/2017",null,null,null,null,null,null,{"$f":"IF(SUM(I5:I400)>100,1,\"\")","v":1},1,1,1,1,1,1,1,1,1,1,1,1,1,"",1,1,1,1]
["Plac.","Kastare ","Klubb","Rankingpoäng",null,"Antal tävlingar","Snitt per serie",null,"Växjö Open","Björkenäs Open","Utomhus-SM Dag 1","Utomhus-SM Dag 2","Utomhus Smålandsmästaren","Carlskrona Cup","Gotland Open","Septemberskon","Dynapac Open","Blekinge-DM Ute","Åseda Open","Höstskon Nybro","Novemberkampen","Inomhus-SM",null,"Inomhus Smålandsmästaren ","Blekinge DM inne","Värendspokalen","Tingsryds Open","Antal arrangerade tävlingar","Ej medräknat resultat","Ej medräknat resultat",null,null,null,null,null,null,null,null,null,null,null,null,null,null,null,null,null,null,null,null,null,null,null,null,null,null,null,null,null,1,2,3,4,5,6,7,8,9,10,11,12,13,14,15,16,"ej medräknad",null,"missade tävlingar"]
[{"$f":"IF(BE5>1,AF5&\" (\"&AE5&\")\",AF5&\" (\"&AG5&\")\")","v":"1 (1)"},"Sandor Bodi","Växjö",{"$f":"SUM(BH5:BT5)","v":5105},null,{"$f":"COUNT(I5:AA5)","v":15},{"$f":"SUM((CB5)/(F5*2))","v":190.46666666666667},null,408,318,454,291,380,424,null,322,329,null,393,361,401,420,null,386,null,409,418,{"$f":"SUM($I$3:$AA$3)","v":18},{"$f":"BX5","v":291},{"$f":"BY5","v":"-"},1,1,{"$f":"IF(F5>1,ROW(1:1),\"-\")","v":1},1,null,null,{"$f":"COUNT($I$3,I5,H5)","v":2},{"$f":"COUNT($J$3,J5,I5)","v":3},{"$f":"COUNT($K$3,K5,J5)","v":3},{"$f":"COUNT($L$3,L5,K5)","v":3},{"$f":"COUNT($M$3,M5,L5)","v":3},{"$f":"COUNT($N$3,N5,M5)","v":3},{"$f":"COUNT($O$3,O5,N5)","v":2},{"$f":"COUNT($P$3,P5,O5)","v":2},{"$f":"COUNT($Q$3,Q5,P5)","v":3},{"$f":"COUNT($R$3,R5,Q5)","v":2},{"$f":"COUNT($S$3,S5,R5)","v":2},{"$f":"COUNT($T$3,T5,S5)","v":3},{"$f":"COUNT($U$3,U5,T5)","v":3},{"$f":"COUNT($V$3,V5,U5)","v":3},{"$f":"COUNT($W$3,W5,V5)","v":1},{"$f":"COUNT($X$3,X5,W5)","v":2},{"$f":"COUNT($Y$3,Y5,X5)","v":2},{"$f":"COUNT($Z$3,Z5,Y5)","v":2},{"$f":"COUNT($AA$3,AA5,Z5)","v":3},null,{"$f":"IF(H5=\"x\",1,2)","v":2},null,null,{"$f":"IF($F5>0,LARGE($I5:$AA5,1),\"\")","v":454},{"$f":"IF($F5>1,LARGE($I5:$AA5,2),\"\")","v":424},{"$f":"IF($F5>2,LARGE($I5:$AA5,3),\"\")","v":420},{"$f":"IF($F5>3,LARGE($I5:$AA5,4),\"\")","v":418},{"$f":"IF($F5>4,LARGE($I5:$AA5,5),\"\")","v":409},{"$f":"IF($F5>5,LARGE($I5:$AA5,6),\"\")","v":408},{"$f":"IF($F5>6,LARGE($I5:$AA5,7),\"\")","v":401},{"$f":"IF($F5>7,LARGE($I5:$AA5,8),\"\")","v":393},{"$f":"IF($F5>8,LARGE($I5:$AA5,9),\"\")","v":386},{"$f":"IF($F5>9,LARGE($I5:$AA5,10),\"\")","v":380},{"$f":"IF($F5>10,LARGE($I5:$AA5,11),\"\")","v":361},{"$f":"IF($F5>11,LARGE($I5:$AA5,12),\"\")","v":329},{"$f":"IF($F5>12,LARGE($I5:$AA5,13),\"\")","v":322},{"$f":"IF($F5>13,LARGE($I5:$AA5,14),\"\")","v":318},{"$f":"IF($F5>14,LARGE($I5:$AA5,15),\"\")","v":291},{"$f":"IF($F5>15,LARGE($I5:$AA5,16),\"\")","v":""},{"$f":"IF($F5>14,LARGE($I5:$AA5,15),\"-\")","v":291},{"$f":"IF($F5>15,LARGE($I5:$AA5,16),\"-\")","v":"-"},{"$f":"SUM(AB5-F5)-3","v":0},null,{"$f":"SUM(BH5:BW5)","v":5714},null,null,null,null,null,null,null,null,null,null,null,null,null,null,null,null,null,null,null,null,null,null,null,null,null,null,null,null,null,null,null,null,null,null,null,null,null,null,null,null,null,null,null,null,null,null,null,null,null,null,null,null,null,null,null,null,null,null,null,null,null,null,1,null,{"$f":"IF(BE5>=1,AF5,\"\")","v":1},{"$f":"IF(BE5>1,\"(\"&AE5&\")\",\"(\"&AG5&\")\")","v":"(1)"}]
["2 (2)","Olle Ottosson","Dynapac ",4499,null,15,166.23333333333332,null,247,241,286,280,null,371,null,433,342,355,292,306,360,398,null,null,377,370,329,18,241,"-",2,{"$f":"IF(D6<D5,AH6,AF5)","v":2},2,2,null,null,{"$f":"COUNT($I$3,I6,H6)","v":2},{"$f":"COUNT($J$3,J6,I6)","v":3},{"$f":"COUNT($K$3,K6,J6)","v":3},{"$f":"COUNT($L$3,L6,K6)","v":3},{"$f":"COUNT($M$3,M6,L6)","v":2},{"$f":"COUNT($N$3,N6,M6)","v":2},{"$f":"COUNT($O$3,O6,N6)","v":2},{"$f":"COUNT($P$3,P6,O6)","v":2},{"$f":"COUNT($Q$3,Q6,P6)","v":3},{"$f":"COUNT($R$3,R6,Q6)","v":3},{"$f":"COUNT($S$3,S6,R6)","v":3},{"$f":"COUNT($T$3,T6,S6)","v":3},{"$f":"COUNT($U$3,U6,T6)","v":3},{"$f":"COUNT($V$3,V6,U6)","v":3},{"$f":"COUNT($W$3,W6,V6)","v":1},{"$f":"COUNT($X$3,X6,W6)","v":1},{"$f":"COUNT($Y$3,Y6,X6)","v":2},{"$f":"COUNT($Z$3,Z6,Y6)","v":3},{"$f":"COUNT($AA$3,AA6,Z6)","v":3},null,2,null,null,{"$f":"IF($F6>0,LARGE($I6:$AA6,1),\"\")","v":433},{"$f":"IF($F6>1,LARGE($I6:$AA6,2),\"\")","v":398},{"$f":"IF($F6>2,LARGE($I6:$AA6,3),\"\")","v":377},{"$f":"IF($F6>3,LARGE($I6:$AA6,4),\"\")","v":371},{"$f":"IF($F6>4,LARGE($I6:$AA6,5),\"\")","v":370},{"$f":"IF($F6>5,LARGE($I6:$AA6,6),\"\")","v":360},{"$f":"IF($F6>6,LARGE($I6:$AA6,7),\"\")","v":355},{"$f":"IF($F6>7,LARGE($I6:$AA6,8),\"\")","v":342},{"$f":"IF($F6>8,LARGE($I6:$AA6,9),\"\")","v":329},{"$f":"IF($F6>9,LARGE($I6:$AA6,10),\"\")","v":306},{"$f":"IF($F6>10,LARGE($I6:$AA6,11),\"\")","v":292},{"$f":"IF($F6>11,LARGE($I6:$AA6,12),\"\")","v":286},{"$f":"IF($F6>12,LARGE($I6:$AA6,13),\"\")","v":280},{"$f":"IF($F6>13,LARGE($I6:$AA6,14),\"\")","v":247},{"$f":"IF($F6>14,LARGE($I6:$AA6,15),\"\")","v":241},{"$f":"IF($F6>15,LARGE($I6:$AA6,16),\"\")","v":""},{"$f":"IF($F6>14,LARGE($I6:$AA6,15),\"-\")","v":241},{"$f":"IF($F6>15,LARGE($I6:$AA6,16),\"-\")","v":"-"},0,null,4987,null,null,null,null,null,null,null,null,null,null,null,null,null,null,null,null,null,null,null,null,null,null,null,null,null,null,null,null,null,null,null,null,null,null,null,null,null,null,null,null,null,null,null,null,null,null,null,null,null,null,null,null,null,null,null,null,null,null,null,null,null,null,2,null,2,"(2)"]
["3 (3)","Gert Karlsson","Korpen Åseda",4253,null,16,156.75,null,261,300,300,332,274,316,228,330,374,null,276,359,332,316,null,352,null,352,314,18,261,228,3,{"$f":"IF(D7<D6,AH7,AF6)","v":3},3,3,null,null,2,3,3,3,3,3,3,3,3,2,2,3,3,3,1,2,2,2,3,null,2,null,null,{"$f":"IF($F7>0,LARGE($I7:$AA7,1),\"\")","v":374},{"$f":"IF($F7>1,LARGE($I7:$AA7,2),\"\")","v":359},{"$f":"IF($F7>2,LARGE($I7:$AA7,3),\"\")","v":352},{"$f":"IF($F7>3,LARGE($I7:$AA7,4),\"\")","v":352},{"$f":"IF($F7>4,LARGE($I7:$AA7,5),\"\")","v":332},{"$f":"IF($F7>5,LARGE($I7:$AA7,6),\"\")","v":332},{"$f":"IF($F7>6,LARGE($I7:$AA7,7),\"\")","v":330},{"$f":"IF($F7>7,LARGE($I7:$AA7,8),\"\")","v":316},{"$f":"IF($F7>8,LARGE($I7:$AA7,9),\"\")","v":316},{"$f":"IF($F7>9,LARGE($I7:$AA7,10),\"\")","v":314},{"$f":"IF($F7>10,LARGE($I7:$AA7,11),\"\")","v":300},{"$f":"IF($F7>11,LARGE($I7:$AA7,12),\"\")","v":300},{"$f":"IF($F7>12,LARGE($I7:$AA7,13),\"\")","v":276},274,261,228,261,228,-1,null,5016,null,null,null,null,null,null,null,null,null,null,null,null,null,null,null,null,null,null,null,null,null,null,null,null,null,null,null,null,null,null,null,null,null,null,null,null,null,null,null,null,null,null,null,null,null,null,null,null,null,null,null,null,null,null,null,null,null,null,null,null,null,null,3,null,3,"(3)"]
["4 (3)","Tobias Gneupel","Sibbamåla",4104,null,12,171,null,341,229,223,317,null,383,223,332,null,397,null,null,396,469,null,null,403,391,null,18,"-","-",3,4,4,4,null,null,{"$f":"COUNT($I$3,I8,H8)","v":2},{"$f":"COUNT($J$3,J8,I8)","v":3},{"$f":"COUNT($K$3,K8,J8)","v":3},{"$f":"COUNT($L$3,L8,K8)","v":3},{"$f":"COUNT($M$3,M8,L8)","v":2},{"$f":"COUNT($N$3,N8,M8)","v":2},{"$f":"COUNT($O$3,O8,N8)","v":3},{"$f":"COUNT($P$3,P8,O8)","v":3},{"$f":"COUNT($Q$3,Q8,P8)","v":2},{"$f":"COUNT($R$3,R8,Q8)","v":2},{"$f":"COUNT($S$3,S8,R8)","v":2},{"$f":"COUNT($T$3,T8,S8)","v":1},{"$f":"COUNT($U$3,U8,T8)","v":2},{"$f":"COUNT($V$3,V8,U8)","v":3},{"$f":"COUNT($W$3,W8,V8)","v":1},{"$f":"COUNT($X$3,X8,W8)","v":1},{"$f":"COUNT($Y$3,Y8,X8)","v":2},{"$f":"COUNT($Z$3,Z8,Y8)","v":3},{"$f":"COUNT($AA$3,AA8,Z8)","v":2},null,2,null,null,{"$f":"IF($F8>0,LARGE($I8:$AA8,1),\"\")","v":469},{"$f":"IF($F8>1,LARGE($I8:$AA8,2),\"\")","v":403},{"$f":"IF($F8>2,LARGE($I8:$AA8,3),\"\")","v":397},{"$f":"IF($F8>3,LARGE($I8:$AA8,4),\"\")","v":396},{"$f":"IF($F8>4,LARGE($I8:$AA8,5),\"\")","v":391},{"$f":"IF($F8>5,LARGE($I8:$AA8,6),\"\")","v":383},{"$f":"IF($F8>6,LARGE($I8:$AA8,7),\"\")","v":341},{"$f":"IF($F8>7,LARGE($I8:$AA8,8),\"\")","v":332},{"$f":"IF($F8>8,LARGE($I8:$AA8,9),\"\")","v":317},{"$f":"IF($F8>9,LARGE($I8:$AA8,10),\"\")","v":229},{"$f":"IF($F8>10,LARGE($I8:$AA8,11),\"\")","v":223},{"$f":"IF($F8>11,LARGE($I8:$AA8,12),\"\")","v":223},{"$f":"IF($F8>12,LARGE($I8:$AA8,13),\"\")","v":""},{"$f":"IF($F8>13,LARGE($I8:$AA8,14),\"\")","v":""},{"$f":"IF($F8>14,LARGE($I8:$AA8,15),\"\")","v":""},"","-","-",3,null,4104,null,null,null,null,null,null,null,null,null,null,null,null,null,null,null,null,null,null,null,null,null,null,null,null,null,null,null,null,null,null,null,null,null,null,null,null,null,null,null,null,null,null,null,null,null,null,null,null,null,null,null,null,null,null,null,null,null,null,null,null,null,null,4,null,4,"(3)"]
["5 (5)","Ingvar Eriksson","Carlskrona",4084,null,16,150.84375,null,271,228,264,262,null,314,259,460,287,350,279,256,275,285,null,null,315,396,326,18,256,228,5,5,5,5,null,null,{"$f":"COUNT($I$3,I9,H9)","v":2},{"$f":"COUNT($J$3,J9,I9)","v":3},{"$f":"COUNT($K$3,K9,J9)","v":3},{"$f":"COUNT($L$3,L9,K9)","v":3},{"$f":"COUNT($M$3,M9,L9)","v":2},{"$f":"COUNT($N$3,N9,M9)","v":2},{"$f":"COUNT($O$3,O9,N9)","v":3},{"$f":"COUNT($P$3,P9,O9)","v":3},{"$f":"COUNT($Q$3,Q9,P9)","v":3},{"$f":"COUNT($R$3,R9,Q9)","v":3},{"$f":"COUNT($S$3,S9,R9)","v":3},{"$f":"COUNT($T$3,T9,S9)","v":3},{"$f":"COUNT($U$3,U9,T9)","v":3},{"$f":"COUNT($V$3,V9,U9)","v":3},{"$f":"COUNT($W$3,W9,V9)","v":1},{"$f":"COUNT($X$3,X9,W9)","v":1},{"$f":"COUNT($Y$3,Y9,X9)","v":2},{"$f":"COUNT($Z$3,Z9,Y9)","v":3},{"$f":"COUNT($AA$3,AA9,Z9)","v":3},null,2,null,null,{"$f":"IF($F9>0,LARGE($I9:$AA9,1),\"\")","v":460},{"$f":"IF($F9>1,LARGE($I9:$AA9,2),\"\")","v":396},{"$f":"IF($F9>2,LARGE($I9:$AA9,3),\"\")","v":350},{"$f":"IF($F9>3,LARGE($I9:$AA9,4),\"\")","v":326},{"$f":"IF($F9>4,LARGE($I9:$AA9,5),\"\")","v":315},{"$f":"IF($F9>5,LARGE($I9:$AA9,6),\"\")","v":314},{"$f":"IF($F9>6,LARGE($I9:$AA9,7),\"\")","v":287},{"$f":"IF($F9>7,LARGE($I9:$AA9,8),\"\")","v":285},{"$f":"IF($F9>8,LARGE($I9:$AA9,9),\"\")","v":279},{"$f":"IF($F9>9,LARGE($I9:$AA9,10),\"\")","v":275},{"$f":"IF($F9>10,LARGE($I9:$AA9,11),\"\")","v":271},{"$f":"IF($F9>11,LARGE($I9:$AA9,12),\"\")","v":264},{"$f":"IF($F9>12,LARGE($I9:$AA9,13),\"\")","v":262},{"$f":"IF($F9>13,LARGE($I9:$AA9,14),\"\")","v":259},{"$f":"IF($F9>14,LARGE($I9:$AA9,15),\"\")","v":256},228,256,228,-1,null,4827,null,null,null,null,null,null,null,null,null,null,null,null,null,null,null,null,null,null,null,null,null,null,null,null,null,null,null,null,null,null,null,null,null,null,null,null,null,null,null,null,null,null,null,null,null,null,null,null,null,null,null,null,null,null,null,null,null,null,null,null,null,null,5,null,5,"(5)"]
["6 (6)","Kent Sundahl","Carlskrona",3966,null,12,165.25,null,309,349,284,290,null,363,null,null,268,null,203,null,363,380,null,null,350,415,392,18,"-","-",6,6,6,6,null,null,{"$f":"COUNT($I$3,I10,H10)","v":2},{"$f":"COUNT($J$3,J10,I10)","v":3},{"$f":"COUNT($K$3,K10,J10)","v":3},{"$f":"COUNT($L$3,L10,K10)","v":3},{"$f":"COUNT($M$3,M10,L10)","v":2},{"$f":"COUNT($N$3,N10,M10)","v":2},{"$f":"COUNT($O$3,O10,N10)","v":2},{"$f":"COUNT($P$3,P10,O10)","v":1},{"$f":"COUNT($Q$3,Q10,P10)","v":2},{"$f":"COUNT($R$3,R10,Q10)","v":2},{"$f":"COUNT($S$3,S10,R10)","v":2},{"$f":"COUNT($T$3,T10,S10)","v":2},{"$f":"COUNT($U$3,U10,T10)","v":2},{"$f":"COUNT($V$3,V10,U10)","v":3},{"$f":"COUNT($W$3,W10,V10)","v":1},{"$f":"COUNT($X$3,X10,W10)","v":1},{"$f":"COUNT($Y$3,Y10,X10)","v":2},{"$f":"COUNT($Z$3,Z10,Y10)","v":3},{"$f":"COUNT($AA$3,AA10,Z10)","v":3},null,2,null,null,{"$f":"IF($F10>0,LARGE($I10:$AA10,1),\"\")","v":415},{"$f":"IF($F10>1,LARGE($I10:$AA10,2),\"\")","v":392},{"$f":"IF($F10>2,LARGE($I10:$AA10,3),\"\")","v":380},{"$f":"IF($F10>3,LARGE($I10:$AA10,4),\"\")","v":363},{"$f":"IF($F10>4,LARGE($I10:$AA10,5),\"\")","v":363},{"$f":"IF($F10>5,LARGE($I10:$AA10,6),\"\")","v":350},{"$f":"IF($F10>6,LARGE($I10:$AA10,7),\"\")","v":349},{"$f":"IF($F10>7,LARGE($I10:$AA10,8),\"\")","v":309},{"$f":"IF($F10>8,LARGE($I10:$AA10,9),\"\")","v":290},{"$f":"IF($F10>9,LARGE($I10:$AA10,10),\"\")","v":284},{"$f":"IF($F10>10,LARGE($I10:$AA10,11),\"\")","v":268},{"$f":"IF($F10>11,LARGE($I10:$AA10,12),\"\")","v":203},{"$f":"IF($F10>12,LARGE($I10:$AA10,13),\"\")","v":""},{"$f":"IF($F10>13,LARGE($I10:$AA10,14),\"\")","v":""},{"$f":"IF($F10>14,LARGE($I10:$AA10,15),\"\")","v":""},"","-","-",3,null,3966,null,null,null,null,null,null,null,null,null,null,null,null,null,null,null,null,null,null,null,null,null,null,null,null,null,null,null,null,null,null,null,null,null,null,null,null,null,null,null,null,null,null,null,null,null,null,null,null,null,null,null,null,null,null,null,null,null,null,null,null,null,null,6,null,6,"(6)"]
["7 (7)","Matz Karlsson","Korpen Åseda",3843,null,16,139.46875,null,281,238,262,265,330,268,191,431,285,null,191,362,297,246,null,324,null,240,252,18,191,191,7,7,7,7,null,null,2,3,3,3,3,3,3,3,3,2,2,3,3,3,1,2,2,2,3,null,2,null,null,431,362,330,324,297,285,281,268,265,262,252,246,240,238,191,191,191,191,-1,null,4463,null,null,null,null,null,null,null,null,null,null,null,null,null,null,null,null,null,null,null,null,null,null,null,null,null,null,null,null,null,null,null,null,null,null,null,null,null,null,null,null,null,null,null,null,null,null,null,null,null,null,null,null,null,null,null,null,null,null,null,null,null,null,7,null,7,"(7)"]
["8 (8)","Maj-Britt Jarl","Växjö",3587,null,15,133.69999999999999,null,217,336,238,213,292,311,null,326,225,null,278,293,228,237,null,324,null,282,211,18,211,"-",8,8,8,8,null,null,2,3,3,3,3,3,2,2,3,2,2,3,3,3,1,2,2,2,3,null,2,null,null,336,326,324,311,293,292,282,278,238,237,228,225,217,213,211,"",211,"-",0,null,4011,null,null,null,null,null,null,null,null,null,null,null,null,null,null,null,null,null,null,null,null,null,null,null,null,null,null,null,null,null,null,null,null,null,null,null,null,null,null,null,null,null,null,null,null,null,null,null,null,null,null,null,null,null,null,null,null,null,null,null,null,null,null,8,null,8,"(8)"]
["9 (9)","Anders Johansson","Dynapac ",3465,null,15,128.96666666666667,null,260,292,219,228,null,245,193,255,269,216,null,257,303,380,null,null,211,311,230,18,193,"-",9,9,9,9,null,null,2,3,3,3,2,2,3,3,3,3,2,2,3,3,1,1,2,3,3,null,2,null,null,380,311,303,292,269,260,257,255,245,230,228,219,216,211,193,"",193,"-",0,null,3869,null,null,null,null,null,null,null,null,null,null,null,null,null,null,null,null,null,null,null,null,null,null,null,null,null,null,null,null,null,null,null,null,null,null,null,null,null,null,null,null,null,null,null,null,null,null,null,null,null,null,null,null,null,null,null,null,null,null,null,null,null,null,9,null,9,"(9)"]
[{"$f":"IF(BE14>1,AF14&\" (\"&AE14&\")\",AF14&\" (\"&AG14&\")\")","v":"10 (10)"},"Lasse Brincner","Värends Hsk",3457,null,14,128.39285714285714,null,173,138,275,160,270,335,236,345,194,null,null,null,273,239,null,364,null,346,247,18,"-","-",10,10,10,10,null,null,2,3,3,3,3,3,3,3,3,2,1,1,2,3,1,2,2,2,3,null,2,null,null,364,346,345,335,275,273,270,247,239,236,194,173,160,138,"","","-","-",1,null,3595,null,null,null,null,null,null,null,null,null,null,null,null,null,null,null,null,null,null,null,null,null,null,null,null,null,null,null,null,null,null,null,null,null,null,null,null,null,null,null,null,null,null,null,null,null,null,null,null,null,null,null,null,null,null,null,null,null,null,null,null,null,null,10,null,10,"(10)"]
["11 (12)","Peter Olsson","Dynapac ",3348,null,16,120.0625,null,318,159,222,203,null,332,137,260,261,280,237,299,217,200,null,null,280,239,198,18,159,137,12,11,11,11,null,null,2,3,3,3,2,2,3,3,3,3,3,3,3,3,1,1,2,3,3,null,2,null,null,332,318,299,280,280,261,260,239,237,222,217,203,200,198,159,137,159,137,-1,null,3842,null,null,null,null,null,null,null,null,null,null,null,null,null,null,null,null,null,null,null,null,null,null,null,null,null,null,null,null,null,null,null,null,null,null,null,null,null,null,null,null,null,null,null,null,null,null,null,null,null,null,null,null,null,null,null,null,null,null,null,null,null,null,11,null,11,"(12)"]
["12 (10)","Magnus Israelsson","Sibbamåla",3190,null,11,145,null,308,269,262,268,null,null,null,270,259,344,null,null,254,255,null,null,287,414,null,18,"-","-",10,12,12,12,null,null,2,3,3,3,2,1,1,2,3,3,2,1,2,3,1,1,2,3,2,null,2,null,null,414,344,308,287,270,269,268,262,259,255,254,"","","","","","-","-",4,null,3190,null,null,null,null,null,null,null,null,null,null,null,null,null,null,null,null,null,null,null,null,null,null,null,null,null,null,null,null,null,null,null,null,null,null,null,null,null,null,null,null,null,null,null,null,null,null,null,null,null,null,null,null,null,null,null,null,null,null,null,null,null,null,12,null,12,"(10)"]
["13 (13)","Mattias Gneupel","Sibbamåla",3164,null,13,121.69230769230769,null,272,240,209,189,null,267,140,341,310,212,null,null,207,334,null,null,202,241,null,18,"-","-",13,13,13,13,null,null,2,3,3,3,2,2,3,3,3,3,2,1,2,3,1,1,2,3,2,null,2,null,null,341,334,310,272,267,241,240,212,209,207,202,189,140,"","","","-","-",2,null,3164,null,null,null,null,null,null,null,null,null,null,null,null,null,null,null,null,null,null,null,null,null,null,null,null,null,null,null,null,null,null,null,null,null,null,null,null,null,null,null,null,null,null,null,null,null,null,null,null,null,null,null,null,null,null,null,null,null,null,null,null,null,null,13,null,13,"(13)"]
["14 (15)","Bo Petersson","Korpen Nybro",3080,null,12,128.33333333333334,null,null,235,214,256,null,346,null,370,206,null,194,285,232,264,null,null,null,272,206,18,"-","-",15,14,14,14,null,null,1,2,3,3,2,2,2,2,3,2,2,3,3,3,1,1,1,2,3,null,2,null,null,370,346,285,272,264,256,235,232,214,206,206,194,"","","","","-","-",3,null,3080,null,null,null,null,null,null,null,null,null,null,null,null,null,null,null,null,null,null,null,null,null,null,null,null,null,null,null,null,null,null,null,null,null,null,null,null,null,null,null,null,null,null,null,null,null,null,null,null,null,null,null,null,null,null,null,null,null,null,null,null,null,null,14,null,14,"(15)"]
["15 (16)","Maire Johansson","Växjö",3047,null,15,110.76666666666667,null,169,188,135,170,320,247,null,262,238,null,141,227,194,278,null,211,null,353,190,18,135,"-",16,15,15,15,null,null,2,3,3,3,3,3,2,2,3,2,2,3,3,3,1,2,2,2,3,null,2,null,null,353,320,278,262,247,238,227,211,194,190,188,170,169,141,135,"",135,"-",0,null,3323,null,null,null,null,null,null,null,null,null,null,null,null,null,null,null,null,null,null,null,null,null,null,null,null,null,null,null,null,null,null,null,null,null,null,null,null,null,null,null,null,null,null,null,null,null,null,null,null,null,null,null,null,null,null,null,null,null,null,null,null,null,null,15,null,15,"(16)"]
["16 (17)","Gebriela Kostantinos","Korpen Åseda",2992,null,12,124.66666666666667,null,176,null,null,null,258,284,null,333,211,null,204,317,177,293,null,268,null,254,217,18,"-","-",17,16,16,16,null,null,2,2,1,1,2,3,2,2,3,2,2,3,3,3,1,2,2,2,3,null,2,null,null,333,317,293,284,268,258,254,217,211,204,177,176,"","","","","-","-",3,null,2992,null,null,null,null,null,null,null,null,null,null,null,null,null,null,null,null,null,null,null,null,null,null,null,null,null,null,null,null,null,null,null,null,null,null,null,null,null,null,null,null,null,null,null,null,null,null,null,null,null,null,null,null,null,null,null,null,null,null,null,null,null,null,16,null,16,"(17)"]
["17 (18)","Tomas Lindahl","Korpen Åseda",2939,null,14,110.71428571428571,null,223,161,178,251,null,266,205,null,184,null,178,210,207,242,null,282,null,278,235,18,"-","-",18,17,17,17,null,null,2,3,3,3,2,2,3,2,2,2,2,3,3,3,1,2,2,2,3,null,2,null,null,282,278,266,251,242,235,223,210,207,205,184,178,178,161,"","","-","-",1,null,3100,null,null,null,null,null,null,null,null,null,null,null,null,null,null,null,null,null,null,null,null,null,null,null,null,null,null,null,null,null,null,null,null,null,null,null,null,null,null,null,null,null,null,null,null,null,null,null,null,null,null,null,null,null,null,null,null,null,null,null,null,null,null,17,null,17,"(18)"]
["18 (13)","Leo Andersson","Carlskrona",2925,null,10,146.25,null,219,292,334,336,null,null,null,null,343,358,200,null,null,211,null,null,328,304,null,18,"-","-",13,18,18,18,null,null,2,3,3,3,2,1,1,1,2,3,3,2,1,2,1,1,2,3,2,null,2,null,null,358,343,336,334,328,304,292,219,211,200,"","","","","","","-","-",5,null,2925,null,null,null,null,null,null,null,null,null,null,null,null,null,null,null,null,null,null,null,null,null,null,null,null,null,null,null,null,null,null,null,null,null,null,null,null,null,null,null,null,null,null,null,null,null,null,null,null,null,null,null,null,null,null,null,null,null,null,null,null,null,null,18,null,18,"(13)"]
["19 (18)","Christer Blomgren","Lanternan",2916,null,13,112.15384615384616,null,187,228,232,123,null,216,null,232,null,273,226,189,177,262,null,null,247,324,null,18,"-","-",18,19,19,19,null,null,2,3,3,3,2,2,2,2,2,2,3,3,3,3,1,1,2,3,2,null,2,null,null,324,273,262,247,232,232,228,226,216,189,187,177,123,"","","","-","-",2,null,2916,null,null,null,null,null,null,null,null,null,null,null,null,null,null,null,null,null,null,null,null,null,null,null,null,null,null,null,null,null,null,null,null,null,null,null,null,null,null,null,null,null,null,null,null,null,null,null,null,null,null,null,null,null,null,null,null,null,null,null,null,null,null,19,null,19,"(18)"]
["20 (21)","Joel Sundahl","Carlskrona",2870,null,14,108.14285714285714,null,163,193,null,187,null,244,null,283,217,197,190,158,203,210,null,null,282,210,291,18,"-","-",21,20,20,20,null,null,2,3,2,2,2,2,2,2,3,3,3,3,3,3,1,1,2,3,3,null,2,null,null,291,283,282,244,217,210,210,203,197,193,190,187,163,158,"","","-","-",1,null,3028,null,null,null,null,null,null,null,null,null,null,null,null,null,null,null,null,null,null,null,null,null,null,null,null,null,null,null,null,null,null,null,null,null,null,null,null,null,null,null,null,null,null,null,null,null,null,null,null,null,null,null,null,null,null,null,null,null,null,null,null,null,null,20,null,20,"(21)"]
["21 (20)","Stefan Tollstam","Dynapac ",2857,null,15,104.06666666666666,null,268,237,171,142,null,205,123,290,269,142,157,273,null,237,null,null,196,208,204,18,123,"-",20,21,21,21,null,null,2,3,3,3,2,2,3,3,3,3,3,3,2,2,1,1,2,3,3,null,2,null,null,290,273,269,268,237,237,208,205,204,196,171,157,142,142,123,"",123,"-",0,null,3122,null,null,null,null,null,null,null,null,null,null,null,null,null,null,null,null,null,null,null,null,null,null,null,null,null,null,null,null,null,null,null,null,null,null,null,null,null,null,null,null,null,null,null,null,null,null,null,null,null,null,null,null,null,null,null,null,null,null,null,null,null,null,21,null,21,"(20)"]
["22 (23)","Leif Sundahl","Carlskrona",2722,null,12,113.41666666666667,null,224,null,250,null,null,313,null,200,null,252,154,209,169,225,null,null,248,251,227,18,"-","-",23,22,22,22,null,null,2,2,2,2,1,2,2,2,2,2,3,3,3,3,1,1,2,3,3,null,2,null,null,313,252,251,250,248,227,225,224,209,200,169,154,"","","","","-","-",3,null,2722,null,null,null,null,null,null,null,null,null,null,null,null,null,null,null,null,null,null,null,null,null,null,null,null,null,null,null,null,null,null,null,null,null,null,null,null,null,null,null,null,null,null,null,null,null,null,null,null,null,null,null,null,null,null,null,null,null,null,null,null,null,null,22,null,22,"(23)"]
["23 (24)","Anita Fabbeke","Dynapac ",2715,null,12,113.125,null,240,232,163,150,null,254,null,281,166,null,198,315,null,195,null,null,null,243,278,18,"-","-",24,23,23,23,null,null,2,3,3,3,2,2,2,2,3,2,2,3,2,2,1,1,1,2,3,null,2,null,null,315,281,278,254,243,240,232,198,195,166,163,150,"","","","","-","-",3,null,2715,null,null,null,null,null,null,null,null,null,null,null,null,null,null,null,null,null,null,null,null,null,null,null,null,null,null,null,null,null,null,null,null,null,null,null,null,null,null,null,null,null,null,null,null,null,null,null,null,null,null,null,null,null,null,null,null,null,null,null,null,null,null,23,null,23,"(24)"]
["24 (24)","Hans Lundqvist","Alvesta",2709,null,13,104.19230769230769,null,244,238,134,null,177,null,122,232,null,null,213,195,189,271,null,237,null,267,190,18,"-","-",24,24,24,24,null,null,2,3,3,2,2,2,2,3,2,1,2,3,3,3,1,2,2,2,3,null,2,null,null,271,267,244,238,237,232,213,195,190,189,177,134,122,"","","","-","-",2,null,2709,null,null,null,null,null,null,null,null,null,null,null,null,null,null,null,null,null,null,null,null,null,null,null,null,null,null,null,null,null,null,null,null,null,null,null,null,null,null,null,null,null,null,null,null,null,null,null,null,null,null,null,null,null,null,null,null,null,null,null,null,null,null,24,null,24,"(24)"]
["25 (21)","Bela Bodi","Växjö",2690,null,12,112.08333333333333,null,229,262,177,166,265,312,null,null,190,null,169,266,193,242,null,null,null,219,null,18,"-","-",21,25,25,25,null,null,2,3,3,3,3,3,2,1,2,2,2,3,3,3,1,1,1,2,2,null,2,null,null,312,266,265,262,242,229,219,193,190,177,169,166,"","","","","-","-",3,null,2690,null,null,null,null,null,null,null,null,null,null,null,null,null,null,null,null,null,null,null,null,null,null,null,null,null,null,null,null,null,null,null,null,null,null,null,null,null,null,null,null,null,null,null,null,null,null,null,null,null,null,null,null,null,null,null,null,null,null,null,null,null,null,25,null,25,"(21)"]
["26 (27)","Göran Olofsson","Korpen Nybro",2589,null,14,97.75,null,205,202,166,154,248,165,null,179,null,null,192,148,224,190,null,204,null,225,235,18,"-","-",27,26,26,26,null,null,2,3,3,3,3,3,2,2,2,1,2,3,3,3,1,2,2,2,3,null,2,null,null,248,235,225,224,205,204,202,192,190,179,166,165,154,148,"","","-","-",1,null,2737,null,null,null,null,null,null,null,null,null,null,null,null,null,null,null,null,null,null,null,null,null,null,null,null,null,null,null,null,null,null,null,null,null,null,null,null,null,null,null,null,null,null,null,null,null,null,null,null,null,null,null,null,null,null,null,null,null,null,null,null,null,null,26,null,26,"(27)"]
["27 (26)","Ingegerd Pettersson","Lanternan",2533,null,14,94.071428571428569,null,209,177,117,101,null,196,null,230,135,168,142,215,114,322,null,null,207,301,null,18,"-","-",26,27,27,27,null,null,2,3,3,3,2,2,2,2,3,3,3,3,3,3,1,1,2,3,2,null,2,null,null,322,301,230,215,209,207,196,177,168,142,135,117,114,101,"","","-","-",1,null,2634,null,null,null,null,null,null,null,null,null,null,null,null,null,null,null,null,null,null,null,null,null,null,null,null,null,null,null,null,null,null,null,null,null,null,null,null,null,null,null,null,null,null,null,null,null,null,null,null,null,null,null,null,null,null,null,null,null,null,null,null,null,null,27,null,27,"(26)"]
["28 (30)","Johan Johansson","Tingsryd",2527,null,9,140.38888888888889,null,null,null,273,240,331,null,183,null,null,null,null,null,236,353,null,337,null,331,243,18,"-","-",30,28,28,28,null,null,1,1,2,3,3,2,2,2,1,1,1,1,2,3,1,2,2,2,3,null,2,null,null,353,337,331,331,273,243,240,236,183,"","","","","","","","-","-",6,null,2527,null,null,null,null,null,null,null,null,null,null,null,null,null,null,null,null,null,null,null,null,null,null,null,null,null,null,null,null,null,null,null,null,null,null,null,null,null,null,null,null,null,null,null,null,null,null,null,null,null,null,null,null,null,null,null,null,null,null,null,null,null,null,28,null,28,"(30)"]
["29 (34)","Bengt Andersson","Växjö Hsk",2514,null,12,104.75,null,221,205,149,165,null,255,null,null,153,null,184,null,174,301,null,274,null,232,201,18,"-","-",34,29,29,29,null,null,2,3,3,3,2,2,2,1,2,2,2,2,2,3,1,2,2,2,3,null,2,null,null,301,274,255,232,221,205,201,184,174,165,153,149,"","","","","-","-",3,null,2514,null,null,null,null,null,null,null,null,null,null,null,null,null,null,null,null,null,null,null,null,null,null,null,null,null,null,null,null,null,null,null,null,null,null,null,null,null,null,null,null,null,null,null,null,null,null,null,null,null,null,null,null,null,null,null,null,null,null,null,null,null,null,29,null,29,"(34)"]
["30 (27)","Christian Balsiger","Värends Hsk",2504,null,13,96.307692307692307,null,292,148,185,160,193,null,null,186,null,null,196,180,147,272,null,119,null,274,152,18,"-","-",27,30,30,30,null,null,2,3,3,3,3,2,1,2,2,1,2,3,3,3,1,2,2,2,3,null,2,null,null,292,274,272,196,193,186,185,180,160,152,148,147,119,"","","","-","-",2,null,2504,null,null,null,null,null,null,null,null,null,null,null,null,null,null,null,null,null,null,null,null,null,null,null,null,null,null,null,null,null,null,null,null,null,null,null,null,null,null,null,null,null,null,null,null,null,null,null,null,null,null,null,null,null,null,null,null,null,null,null,null,null,null,30,null,30,"(27)"]
["31 (31)","Berndt Pettersson","Lanternan",2470,null,14,92.321428571428569,null,231,115,143,133,null,249,null,203,170,192,171,152,141,224,null,null,224,237,null,18,"-","-",31,31,31,31,null,null,2,3,3,3,2,2,2,2,3,3,3,3,3,3,1,1,2,3,2,null,2,null,null,249,237,231,224,224,203,192,171,170,152,143,141,133,115,"","","-","-",1,null,2585,null,null,null,null,null,null,null,null,null,null,null,null,null,null,null,null,null,null,null,null,null,null,null,null,null,null,null,null,null,null,null,null,null,null,null,null,null,null,null,null,null,null,null,null,null,null,null,null,null,null,null,null,null,null,null,null,null,null,null,null,null,null,31,null,31,"(31)"]
["32 (31)","Jan Petersson","Lanternan",2467,null,14,92.321428571428569,null,170,186,125,135,null,198,null,223,127,260,225,118,182,176,null,null,251,209,null,18,"-","-",31,32,32,32,null,null,2,3,3,3,2,2,2,2,3,3,3,3,3,3,1,1,2,3,2,null,2,null,null,260,251,225,223,209,198,186,182,176,170,135,127,125,118,"","","-","-",1,null,2585,null,null,null,null,null,null,null,null,null,null,null,null,null,null,null,null,null,null,null,null,null,null,null,null,null,null,null,null,null,null,null,null,null,null,null,null,null,null,null,null,null,null,null,null,null,null,null,null,null,null,null,null,null,null,null,null,null,null,null,null,null,null,32,null,32,"(31)"]
["33 (33)","Peter Edlund","Dynapac ",2459,null,14,91.464285714285708,null,null,147,179,187,null,181,121,378,214,169,175,256,159,null,null,null,102,187,106,18,"-","-",33,33,{"$f":"IF(F37>1,ROW(33:33),\"-\")","v":33},33,null,null,1,2,3,3,2,2,3,3,3,3,3,3,3,2,0,1,2,3,3,null,2,null,null,378,256,214,187,187,181,179,175,169,159,147,121,106,102,"","","-","-",1,null,2561,null,null,null,null,null,null,null,null,null,null,null,null,null,null,null,null,null,null,null,null,null,null,null,null,null,null,null,null,null,null,null,null,null,null,null,null,null,null,null,null,null,null,null,null,null,null,null,null,null,null,null,null,null,null,null,null,null,null,null,null,null,null,33,null,{"$f":"IF(BE37>=1,AF37,\"\")","v":33},"(33)"]
["34 (36)","Mikael Bodi","Växjö Hsk",2448,null,13,94.15384615384616,null,231,142,null,null,118,248,null,177,160,null,124,159,204,219,null,194,null,217,255,18,"-","-",36,34,34,34,null,null,2,3,2,1,2,3,2,2,3,2,2,3,3,3,1,2,2,2,3,null,2,null,null,255,248,231,219,217,204,194,177,160,159,142,124,118,"","","","-","-",2,null,2448,null,null,null,null,null,null,null,null,null,null,null,null,null,null,null,null,null,null,null,null,null,null,null,null,null,null,null,null,null,null,null,null,null,null,null,null,null,null,null,null,null,null,null,null,null,null,null,null,null,null,null,null,null,null,null,null,null,null,null,null,null,null,34,null,34,"(36)"]
["35 (34)","Roy Dahlén","Dynapac ",2439,null,12,101.625,null,230,193,209,181,null,171,null,null,194,268,null,232,131,null,null,null,151,236,243,18,"-","-",34,35,35,35,null,null,2,3,3,3,2,2,2,1,2,3,2,2,3,2,0,1,2,3,3,null,2,null,null,268,243,236,232,230,209,194,193,181,171,151,131,"","","","","-","-",3,null,2439,null,null,null,null,null,null,null,null,null,null,null,null,null,null,null,null,null,null,null,null,null,null,null,null,null,null,null,null,null,null,null,null,null,null,null,null,null,null,null,null,null,null,null,null,null,null,null,null,null,null,null,null,null,null,null,null,null,null,null,null,null,null,35,null,35,"(34)"]
["36 (27)","Göran Persson","Dynapac ",2341,null,12,97.541666666666671,null,218,308,192,160,null,148,null,164,149,261,128,197,230,186,null,null,null,null,null,18,"-","-",27,36,36,36,null,null,2,3,3,3,2,2,2,2,3,3,3,3,3,3,1,1,1,1,1,null,2,null,null,308,261,230,218,197,192,186,164,160,149,148,128,"","","","","-","-",3,null,2341,null,null,null,null,null,null,null,null,null,null,null,null,null,null,null,null,null,null,null,null,null,null,null,null,null,null,null,null,null,null,null,null,null,null,null,null,null,null,null,null,null,null,null,null,null,null,null,null,null,null,null,null,null,null,null,null,null,null,null,null,null,null,36,null,36,"(27)"]
["37 (39)","Alf Svensson","Korpen Åseda",2317,null,16,82.1875,null,200,110,93,116,188,209,181,148,122,null,165,130,110,182,null,163,null,234,279,18,110,93,39,37,37,37,null,null,2,3,3,3,3,3,3,3,3,2,2,3,3,3,1,2,2,2,3,null,2,null,null,279,234,209,200,188,182,181,165,163,148,130,122,116,110,110,93,110,93,-1,null,2630,null,null,null,null,null,null,null,null,null,null,null,null,null,null,null,null,null,null,null,null,null,null,null,null,null,null,null,null,null,null,null,null,null,null,null,null,null,null,null,null,null,null,null,null,null,null,null,null,null,null,null,null,null,null,null,null,null,null,null,null,null,null,37,null,37,"(39)"]
["38 (36)","Bengt Fabbeke","Dynapac ",2316,null,12,96.5,null,138,194,156,169,null,211,null,152,238,null,214,273,null,218,null,null,null,142,211,18,"-","-",36,38,38,38,null,null,2,3,3,3,2,2,2,2,3,2,2,3,2,2,1,1,1,2,3,null,2,null,null,273,238,218,214,211,211,194,169,156,152,142,138,"","","","","-","-",3,null,2316,null,null,null,null,null,null,null,null,null,null,null,null,null,null,null,null,null,null,null,null,null,null,null,null,null,null,null,null,null,null,null,null,null,null,null,null,null,null,null,null,null,null,null,null,null,null,null,null,null,null,null,null,null,null,null,null,null,null,null,null,null,null,38,null,38,"(36)"]
["39 (39)","Lisbeth Nygaard-Karlsson","Tingsryd",2285,null,9,126.94444444444444,null,null,143,136,260,null,401,null,null,null,null,224,null,248,334,null,null,null,282,257,18,"-","-",39,39,39,39,null,null,1,2,3,3,2,2,2,1,1,1,2,2,2,3,1,1,1,2,3,null,2,null,null,401,334,282,260,257,248,224,143,136,"","","","","","","","-","-",6,null,2285,null,null,null,null,null,null,null,null,null,null,null,null,null,null,null,null,null,null,null,null,null,null,null,null,null,null,null,null,null,null,null,null,null,null,null,null,null,null,null,null,null,null,null,null,null,null,null,null,null,null,null,null,null,null,null,null,null,null,null,null,null,null,39,null,39,"(39)"]
["40 (38)","Ronny Lundberg","Lanternan",2236,null,11,101.63636363636364,null,175,null,187,129,null,256,null,222,183,null,147,176,182,null,null,null,307,272,null,18,"-","-",38,40,40,40,null,null,2,2,2,3,2,2,2,2,3,2,2,3,3,2,0,1,2,3,2,null,2,null,null,307,272,256,222,187,183,182,176,175,147,129,"","","","","","-","-",4,null,2236,null,null,null,null,null,null,null,null,null,null,null,null,null,null,null,null,null,null,null,null,null,null,null,null,null,null,null,null,null,null,null,null,null,null,null,null,null,null,null,null,null,null,null,null,null,null,null,null,null,null,null,null,null,null,null,null,null,null,null,null,null,null,40,null,40,"(38)"]
["41 (39)","Carina Gneupel","Sibbamåla",2223,null,10,111.15,null,220,189,193,191,null,null,null,210,169,238,null,null,null,315,null,null,249,249,null,18,"-","-",39,41,41,41,null,null,2,3,3,3,2,1,1,2,3,3,2,1,1,2,1,1,2,3,2,null,2,null,null,315,249,249,238,220,210,193,191,189,169,"","","","","","","-","-",5,null,2223,null,null,null,null,null,null,null,null,null,null,null,null,null,null,null,null,null,null,null,null,null,null,null,null,null,null,null,null,null,null,null,null,null,null,null,null,null,null,null,null,null,null,null,null,null,null,null,null,null,null,null,null,null,null,null,null,null,null,null,null,null,null,41,null,41,"(39)"]
["42 (42)","Lukas Bern","Dynapac ",2112,null,11,96,null,null,225,195,162,null,154,null,144,null,185,204,null,177,281,null,null,180,205,null,18,"-","-",42,42,42,42,null,null,1,2,3,3,2,2,2,2,2,2,3,2,2,3,1,1,2,3,2,null,2,null,null,281,225,205,204,195,185,180,177,162,154,144,"","","","","","-","-",4,null,2112,null,null,null,null,null,null,null,null,null,null,null,null,null,null,null,null,null,null,null,null,null,null,null,null,null,null,null,null,null,null,null,null,null,null,null,null,null,null,null,null,null,null,null,null,null,null,null,null,null,null,null,null,null,null,null,null,null,null,null,null,null,null,42,null,42,"(42)"]
["43 (44)","Solveig Axelsson","Alvesta",2032,null,13,78.15384615384616,null,170,193,132,246,179,null,161,123,101,null,null,126,85,181,null,200,null,135,null,18,"-","-",44,43,43,43,null,null,2,3,3,3,3,2,2,3,3,2,1,2,3,3,1,2,2,2,2,null,2,null,null,246,200,193,181,179,170,161,135,132,126,123,101,85,"","","","-","-",2,null,2032,null,null,null,null,null,null,null,null,null,null,null,null,null,null,null,null,null,null,null,null,null,null,null,null,null,null,null,null,null,null,null,null,null,null,null,null,null,null,null,null,null,null,null,null,null,null,null,null,null,null,null,null,null,null,null,null,null,null,null,null,null,null,43,null,43,"(44)"]
["44 (51)","Sune Olsson","Korpen Nybro",1971,null,10,98.55,null,null,null,128,139,296,236,null,234,null,null,201,null,148,172,null,null,null,183,234,18,"-","-",51,44,44,44,null,null,1,1,2,3,3,3,2,2,2,1,2,2,2,3,1,1,1,2,3,null,2,null,null,296,236,234,234,201,183,172,148,139,128,"","","","","","","-","-",5,null,1971,null,null,null,null,null,null,null,null,null,null,null,null,null,null,null,null,null,null,null,null,null,null,null,null,null,null,null,null,null,null,null,null,null,null,null,null,null,null,null,null,null,null,null,null,null,null,null,null,null,null,null,null,null,null,null,null,null,null,null,null,null,null,44,null,44,"(51)"]
["45 (42)","Dan Hallstan","Växjö",1967,null,11,89.409090909090907,null,225,195,208,null,186,161,120,null,null,null,null,154,187,160,null,207,null,164,null,18,"-","-",42,45,45,45,null,null,2,3,3,2,2,3,3,2,1,1,1,2,3,3,1,2,2,2,2,null,2,null,null,225,208,207,195,187,186,164,161,160,154,120,"","","","","","-","-",4,null,1967,null,null,null,null,null,null,null,null,null,null,null,null,null,null,null,null,null,null,null,null,null,null,null,null,null,null,null,null,null,null,null,null,null,null,null,null,null,null,null,null,null,null,null,null,null,null,null,null,null,null,null,null,null,null,null,null,null,null,null,null,null,null,45,null,45,"(42)"]
["46 (45)","Malin Lundqvist","Alvesta",1950,null,12,81.25,null,237,155,192,179,165,null,169,131,128,null,120,null,88,235,null,null,null,151,null,18,"-","-",45,46,46,46,null,null,2,3,3,3,3,2,2,3,3,2,2,2,2,3,1,1,1,2,2,null,2,null,null,237,235,192,179,169,165,155,151,131,128,120,88,"","","","","-","-",3,null,1950,null,null,null,null,null,null,null,null,null,null,null,null,null,null,null,null,null,null,null,null,null,null,null,null,null,null,null,null,null,null,null,null,null,null,null,null,null,null,null,null,null,null,null,null,null,null,null,null,null,null,null,null,null,null,null,null,null,null,null,null,null,null,46,null,46,"(45)"]
["47 (46)","Olle Nilsson","Tingsryd",1917,null,11,87.13636363636364,null,180,166,211,134,null,204,null,null,null,null,108,null,239,107,null,202,null,187,179,18,"-","-",46,47,47,47,null,null,2,3,3,3,2,2,2,1,1,1,2,2,2,3,1,2,2,2,3,null,2,null,null,239,211,204,202,187,180,179,166,134,108,107,"","","","","","-","-",4,null,1917,null,null,null,null,null,null,null,null,null,null,null,null,null,null,null,null,null,null,null,null,null,null,null,null,null,null,null,null,null,null,null,null,null,null,null,null,null,null,null,null,null,null,null,null,null,null,null,null,null,null,null,null,null,null,null,null,null,null,null,null,null,null,47,null,47,"(46)"]
["48 (53)","Lennart Karlsson","Tingsryd",1860,null,8,116.25,null,null,194,174,152,null,258,null,null,null,null,null,null,232,303,null,null,null,263,284,18,"-","-",53,48,48,48,null,null,1,2,3,3,2,2,2,1,1,1,1,1,2,3,1,1,1,2,3,null,2,null,null,303,284,263,258,232,194,174,152,"","","","","","","","","-","-",7,null,1860,null,null,null,null,null,null,null,null,null,null,null,null,null,null,null,null,null,null,null,null,null,null,null,null,null,null,null,null,null,null,null,null,null,null,null,null,null,null,null,null,null,null,null,null,null,null,null,null,null,null,null,null,null,null,null,null,null,null,null,null,null,null,48,null,48,"(53)"]
["49 (47)","Mattias Olsson","Dynapac ",1801,null,9,100.05555555555556,null,251,152,273,186,null,189,null,null,198,null,null,null,288,188,null,null,76,null,null,18,"-","-",47,49,49,49,null,null,2,3,3,3,2,2,2,1,2,2,1,1,2,3,1,1,2,2,1,null,2,null,null,288,273,251,198,189,188,186,152,76,"","","","","","","","-","-",6,null,1801,null,null,null,null,null,null,null,null,null,null,null,null,null,null,null,null,null,null,null,null,null,null,null,null,null,null,null,null,null,null,null,null,null,null,null,null,null,null,null,null,null,null,null,null,null,null,null,null,null,null,null,null,null,null,null,null,null,null,null,null,null,null,49,null,49,"(47)"]
["50 (49)","Inga-Lill Stühr","Lessebo",1762,null,9,97.888888888888886,null,206,null,174,164,195,null,null,null,null,null,190,153,197,null,null,null,null,245,238,18,"-","-",49,50,50,50,null,null,2,2,2,3,3,2,1,1,1,1,2,3,3,2,0,1,1,2,3,null,2,null,null,245,238,206,197,195,190,174,164,153,"","","","","","","","-","-",6,null,1762,null,null,null,null,null,null,null,null,null,null,null,null,null,null,null,null,null,null,null,null,null,null,null,null,null,null,null,null,null,null,null,null,null,null,null,null,null,null,null,null,null,null,null,null,null,null,null,null,null,null,null,null,null,null,null,null,null,null,null,null,null,null,50,null,50,"(49)"]
["51 (49)","Clara Larsson","Värends Hsk",1759,null,11,79.954545454545453,null,152,null,81,146,168,null,null,210,null,null,null,176,131,204,null,187,null,146,158,18,"-","-",49,51,51,51,null,null,2,2,2,3,3,2,1,2,2,1,1,2,3,3,1,2,2,2,3,null,2,null,null,210,204,187,176,168,158,152,146,146,131,81,"","","","","","-","-",4,null,1759,null,null,null,null,null,null,null,null,null,null,null,null,null,null,null,null,null,null,null,null,null,null,null,null,null,null,null,null,null,null,null,null,null,null,null,null,null,null,null,null,null,null,null,null,null,null,null,null,null,null,null,null,null,null,null,null,null,null,null,null,null,null,51,null,51,"(49)"]
["52 (51)","Thomas Dahl","Växjö",1757,null,12,73.208333333333329,null,null,116,147,102,138,null,null,156,172,null,173,144,140,135,null,192,null,142,null,18,"-","-",51,52,52,52,null,null,1,2,3,3,3,2,1,2,3,2,2,3,3,3,1,2,2,2,2,null,2,null,null,192,173,172,156,147,144,142,140,138,135,116,102,"","","","","-","-",3,null,1757,null,null,null,null,null,null,null,null,null,null,null,null,null,null,null,null,null,null,null,null,null,null,null,null,null,null,null,null,null,null,null,null,null,null,null,null,null,null,null,null,null,null,null,null,null,null,null,null,null,null,null,null,null,null,null,null,null,null,null,null,null,null,52,null,52,"(51)"]
["53 (47)","Nils-Åke Hansson","Korpen Nybro",1688,null,11,76.727272727272734,null,149,129,117,122,null,190,null,null,null,null,168,231,136,142,null,144,null,160,null,18,"-","-",47,53,53,53,null,null,2,3,3,3,2,2,2,1,1,1,2,3,3,3,1,2,2,2,2,null,2,null,null,231,190,168,160,149,144,142,136,129,122,117,"","","","","","-","-",4,null,1688,null,null,null,null,null,null,null,null,null,null,null,null,null,null,null,null,null,null,null,null,null,null,null,null,null,null,null,null,null,null,null,null,null,null,null,null,null,null,null,null,null,null,null,null,null,null,null,null,null,null,null,null,null,null,null,null,null,null,null,null,null,null,53,null,53,"(47)"]
["54 (54)","Fredrik Lundin","Lanternan",1682,null,7,120.14285714285714,null,null,232,224,null,null,null,null,null,245,null,175,null,222,283,null,null,301,null,null,18,"-","-",54,54,54,54,null,null,1,2,3,2,1,1,1,1,2,2,2,2,2,3,1,1,2,2,1,null,2,null,null,301,283,245,232,224,222,175,"","","","","","","","","","-","-",8,null,1682,null,null,null,null,null,null,null,null,null,null,null,null,null,null,null,null,null,null,null,null,null,null,null,null,null,null,null,null,null,null,null,null,null,null,null,null,null,null,null,null,null,null,null,null,null,null,null,null,null,null,null,null,null,null,null,null,null,null,null,null,null,null,54,null,54,"(54)"]
["55 (56)","Anne-Marie Larsson","Tingsryd",1618,null,10,80.900000000000006,null,128,null,134,137,278,null,null,null,null,null,154,null,118,154,null,190,null,135,190,18,"-","-",56,55,55,55,null,null,2,2,2,3,3,2,1,1,1,1,2,2,2,3,1,2,2,2,3,null,2,null,null,278,190,190,154,154,137,135,134,128,118,"","","","","","","-","-",5,null,1618,null,null,null,null,null,null,null,null,null,null,null,null,null,null,null,null,null,null,null,null,null,null,null,null,null,null,null,null,null,null,null,null,null,null,null,null,null,null,null,null,null,null,null,null,null,null,null,null,null,null,null,null,null,null,null,null,null,null,null,null,null,null,55,null,55,"(56)"]
["56 (58)","Alf Johansson","Värends Hsk",1559,null,11,70.86363636363636,null,179,null,108,null,149,null,null,125,null,null,85,179,68,129,null,207,null,144,186,18,"-","-",58,56,56,56,null,null,2,2,2,2,2,2,1,2,2,1,2,3,3,3,1,2,2,2,3,null,2,null,null,207,186,179,179,149,144,129,125,108,85,68,"","","","","","-","-",4,null,1559,null,null,null,null,null,null,null,null,null,null,null,null,null,null,null,null,null,null,null,null,null,null,null,null,null,null,null,null,null,null,null,null,null,null,null,null,null,null,null,null,null,null,null,null,null,null,null,null,null,null,null,null,null,null,null,null,null,null,null,null,null,null,56,null,56,"(58)"]
["57 (55)","Kerstin Johansson","Lessebo",1554,null,8,97.125,null,208,null,202,102,193,null,null,null,null,null,158,293,null,null,null,null,null,202,196,18,"-","-",55,57,57,57,null,null,2,2,2,3,3,2,1,1,1,1,2,3,2,1,0,1,1,2,3,null,2,null,null,293,208,202,202,196,193,158,102,"","","","","","","","","-","-",7,null,1554,null,null,null,null,null,null,null,null,null,null,null,null,null,null,null,null,null,null,null,null,null,null,null,null,null,null,null,null,null,null,null,null,null,null,null,null,null,null,null,null,null,null,null,null,null,null,null,null,null,null,null,null,null,null,null,null,null,null,null,null,null,null,57,null,57,"(55)"]
["58 (60)","Hans Johansson","Tingsryd",1548,null,7,110.57142857142857,null,null,null,216,196,259,null,null,null,null,null,null,null,257,193,null,132,null,null,295,18,"-","-",60,58,58,58,null,null,1,1,2,3,3,2,1,1,1,1,1,1,2,3,1,2,2,1,2,null,2,null,null,295,259,257,216,196,193,132,"","","","","","","","","","-","-",8,null,1548,null,null,null,null,null,null,null,null,null,null,null,null,null,null,null,null,null,null,null,null,null,null,null,null,null,null,null,null,null,null,null,null,null,null,null,null,null,null,null,null,null,null,null,null,null,null,null,null,null,null,null,null,null,null,null,null,null,null,null,null,null,null,58,null,58,"(60)"]
["59 (65)","Ronnie Pettersson","Växjö Hsk",1535,null,9,85.277777777777771,null,202,null,149,null,169,null,137,157,null,null,null,null,null,151,null,200,null,171,199,18,"-","-",65,59,59,59,null,null,2,2,2,2,2,2,2,3,2,1,1,1,1,2,1,2,2,2,3,null,2,null,null,202,200,199,171,169,157,151,149,137,"","","","","","","","-","-",6,null,1535,null,null,null,null,null,null,null,null,null,null,null,null,null,null,null,null,null,null,null,null,null,null,null,null,null,null,null,null,null,null,null,null,null,null,null,null,null,null,null,null,null,null,null,null,null,null,null,null,null,null,null,null,null,null,null,null,null,null,null,null,null,null,59,null,59,"(65)"]
["60 (56)","Kerstin Svensson","Växjö Hsk",1386,null,10,69.3,null,107,100,null,null,124,174,82,155,null,null,null,152,128,124,null,240,null,null,null,18,"-","-",56,60,60,60,null,null,2,3,2,1,2,3,3,3,2,1,1,2,3,3,1,2,2,1,1,null,2,null,null,240,174,155,152,128,124,124,107,100,82,"","","","","","","-","-",5,null,1386,null,null,null,null,null,null,null,null,null,null,null,null,null,null,null,null,null,null,null,null,null,null,null,null,null,null,null,null,null,null,null,null,null,null,null,null,null,null,null,null,null,null,null,null,null,null,null,null,null,null,null,null,null,null,null,null,null,null,null,null,null,null,60,null,60,"(56)"]
["61 (67)","Gunnar Lundbeck","Tingsryd",1365,null,10,68.25,null,92,194,88,null,null,142,null,null,null,null,118,null,180,92,null,187,null,146,126,18,"-","-",67,61,61,61,null,null,2,3,3,2,1,2,2,1,1,1,2,2,2,3,1,2,2,2,3,null,2,null,null,194,187,180,146,142,126,118,92,92,88,"","","","","","","-","-",5,null,1365,null,null,null,null,null,null,null,null,null,null,null,null,null,null,null,null,null,null,null,null,null,null,null,null,null,null,null,null,null,null,null,null,null,null,null,null,null,null,null,null,null,null,null,null,null,null,null,null,null,null,null,null,null,null,null,null,null,null,null,null,null,null,61,null,61,"(67)"]
["62 (62)","Maria Andersson","Team Småland Hsk",1341,null,10,67.05,null,156,null,81,112,null,null,null,191,null,null,null,184,162,122,null,129,null,101,103,18,"-","-",62,62,62,62,null,null,2,2,2,3,2,1,1,2,2,1,1,2,3,3,1,2,2,2,3,null,2,null,null,191,184,162,156,129,122,112,103,101,81,"","","","","","","-","-",5,null,1341,null,null,null,null,null,null,null,null,null,null,null,null,null,null,null,null,null,null,null,null,null,null,null,null,null,null,null,null,null,null,null,null,null,null,null,null,null,null,null,null,null,null,null,null,null,null,null,null,null,null,null,null,null,null,null,null,null,null,null,null,null,null,62,null,62,"(62)"]
["63 (71)","Bernt Olsson","Jämjö Hsk",1305,null,6,108.75,null,null,218,null,null,null,227,null,null,216,269,null,null,null,null,null,null,237,null,138,18,"-","-",71,63,63,63,null,null,1,2,2,1,1,2,2,1,2,3,2,1,1,1,0,1,2,2,2,null,2,null,null,269,237,227,218,216,138,"","","","","","","","","","","-","-",9,null,1305,null,null,null,null,null,null,null,null,null,null,null,null,null,null,null,null,null,null,null,null,null,null,null,null,null,null,null,null,null,null,null,null,null,null,null,null,null,null,null,null,null,null,null,null,null,null,null,null,null,null,null,null,null,null,null,null,null,null,null,null,null,null,63,null,63,"(71)"]
["64 (58)","Roland Sjöstrand","Hsk Tingzås",1294,null,11,58.81818181818182,null,160,155,92,75,null,null,125,null,97,null,88,204,null,170,null,49,null,79,null,18,"-","-",58,64,64,64,null,null,2,3,3,3,2,1,2,2,2,2,2,3,2,2,1,2,2,2,2,null,2,null,null,204,170,160,155,125,97,92,88,79,75,49,"","","","","","-","-",4,null,1294,null,null,null,null,null,null,null,null,null,null,null,null,null,null,null,null,null,null,null,null,null,null,null,null,null,null,null,null,null,null,null,null,null,null,null,null,null,null,null,null,null,null,null,null,null,null,null,null,null,null,null,null,null,null,null,null,null,null,null,null,null,null,64,null,64,"(58)"]
["65 (80)","Ewa Malmqvist","Jämjö Hsk",{"$f":"SUM(BH69:BT69)","v":1288},null,{"$f":"COUNT(I69:AA69)","v":6},{"$f":"SUM((CB69)/(F69*2))","v":107.33333333333333},null,null,199,null,null,null,188,null,null,212,186,null,null,null,null,null,null,243,null,260,{"$f":"SUM($I$3:$AA$3)","v":18},{"$f":"BX69","v":"-"},{"$f":"BY69","v":"-"},80,65,{"$f":"IF(F69>1,ROW(65:65),\"-\")","v":65},65,null,null,1,2,2,1,1,2,2,1,2,3,2,1,1,1,0,1,2,2,2,null,{"$f":"IF(H69=\"x\",1,2)","v":2},null,null,260,243,212,199,188,186,"","","","","","","","","","","-","-",{"$f":"SUM(AB69-F69)-3","v":9},null,{"$f":"SUM(BH69:BW69)","v":1288},null,null,null,null,null,null,null,null,null,null,null,null,null,null,null,null,null,null,null,null,null,null,null,null,null,null,null,null,null,null,null,null,null,null,null,null,null,null,null,null,null,null,null,null,null,null,null,null,null,null,null,null,null,null,null,null,null,null,null,null,null,null,65,null,{"$f":"IF(BE69>=1,AF69,\"\")","v":65},{"$f":"IF(BE69>1,\"(\"&AE69&\")\",\"(\"&AG69&\")\")","v":"(80)"}]
["66 (68)","Martin Antic","Värends Hsk",1268,null,8,79.25,null,148,null,97,135,233,null,null,199,null,null,152,158,146,null,null,null,null,null,null,18,"-","-",68,66,66,66,null,null,{"$f":"COUNT($I$3,I70,H70)","v":2},{"$f":"COUNT($J$3,J70,I70)","v":2},{"$f":"COUNT($K$3,K70,J70)","v":2},{"$f":"COUNT($L$3,L70,K70)","v":3},{"$f":"COUNT($M$3,M70,L70)","v":3},{"$f":"COUNT($N$3,N70,M70)","v":2},{"$f":"COUNT($O$3,O70,N70)","v":1},{"$f":"COUNT($P$3,P70,O70)","v":2},{"$f":"COUNT($Q$3,Q70,P70)","v":2},{"$f":"COUNT($R$3,R70,Q70)","v":1},{"$f":"COUNT($S$3,S70,R70)","v":2},{"$f":"COUNT($T$3,T70,S70)","v":3},{"$f":"COUNT($U$3,U70,T70)","v":3},{"$f":"COUNT($V$3,V70,U70)","v":2},{"$f":"COUNT($W$3,W70,V70)","v":0},{"$f":"COUNT($X$3,X70,W70)","v":1},{"$f":"COUNT($Y$3,Y70,X70)","v":1},{"$f":"COUNT($Z$3,Z70,Y70)","v":1},{"$f":"COUNT($AA$3,AA70,Z70)","v":1},null,2,null,null,{"$f":"IF($F70>0,LARGE($I70:$AA70,1),\"\")","v":233},{"$f":"IF($F70>1,LARGE($I70:$AA70,2),\"\")","v":199},{"$f":"IF($F70>2,LARGE($I70:$AA70,3),\"\")","v":158},{"$f":"IF($F70>3,LARGE($I70:$AA70,4),\"\")","v":152},{"$f":"IF($F70>4,LARGE($I70:$AA70,5),\"\")","v":148},{"$f":"IF($F70>5,LARGE($I70:$AA70,6),\"\")","v":146},{"$f":"IF($F70>6,LARGE($I70:$AA70,7),\"\")","v":135},{"$f":"IF($F70>7,LARGE($I70:$AA70,8),\"\")","v":97},{"$f":"IF($F70>8,LARGE($I70:$AA70,9),\"\")","v":""},{"$f":"IF($F70>9,LARGE($I70:$AA70,10),\"\")","v":""},{"$f":"IF($F70>10,LARGE($I70:$AA70,11),\"\")","v":""},{"$f":"IF($F70>11,LARGE($I70:$AA70,12),\"\")","v":""},{"$f":"IF($F70>12,LARGE($I70:$AA70,13),\"\")","v":""},{"$f":"IF($F70>13,LARGE($I70:$AA70,14),\"\")","v":""},{"$f":"IF($F70>14,LARGE($I70:$AA70,15),\"\")","v":""},{"$f":"IF($F70>15,LARGE($I70:$AA70,16),\"\")","v":""},{"$f":"IF($F70>14,LARGE($I70:$AA70,15),\"-\")","v":"-"},{"$f":"IF($F70>15,LARGE($I70:$AA70,16),\"-\")","v":"-"},7,null,1268,null,null,null,null,null,null,null,null,null,null,null,null,null,null,null,null,null,null,null,null,null,null,null,null,null,null,null,null,null,null,null,null,null,null,null,null,null,null,null,null,null,null,null,null,null,null,null,null,null,null,null,null,null,null,null,null,null,null,null,null,null,null,66,null,66,"(68)"]
["67 (63)","Inger Andersson","Korpen Nybro",1257,null,7,89.785714285714292,null,189,null,140,139,244,163,null,198,null,null,null,184,null,null,null,null,null,null,null,18,"-","-",63,{"$f":"IF(D71<D70,AH71,AF70)","v":67},67,67,null,null,2,2,2,3,3,3,2,2,2,1,1,2,2,1,0,1,1,1,1,null,2,null,null,244,198,189,184,163,140,139,"","","","","","","","","","-","-",8,null,1257,null,null,null,null,null,null,null,null,null,null,null,null,null,null,null,null,null,null,null,null,null,null,null,null,null,null,null,null,null,null,null,null,null,null,null,null,null,null,null,null,null,null,null,null,null,null,null,null,null,null,null,null,null,null,null,null,null,null,null,null,null,null,67,null,67,"(63)"]
["68 (73)","Ulrika Rydell","Värends Hsk",1250,null,7,89.285714285714292,null,174,null,254,188,null,null,null,null,null,null,null,null,201,166,null,null,null,126,141,18,"-","-",73,68,68,68,null,null,2,2,2,3,2,1,1,1,1,1,1,1,2,3,1,1,1,2,3,null,2,null,null,254,201,188,174,166,141,126,"","","","","","","","","","-","-",8,null,1250,null,null,null,null,null,null,null,null,null,null,null,null,null,null,null,null,null,null,null,null,null,null,null,null,null,null,null,null,null,null,null,null,null,null,null,null,null,null,null,null,null,null,null,null,null,null,null,null,null,null,null,null,null,null,null,null,null,null,null,null,null,null,68,null,68,"(73)"]
["69 (64)","Sebastian Israelsson","Sibbamåla",1243,null,8,77.6875,null,155,161,121,127,null,148,null,null,174,197,null,null,160,null,null,null,null,null,null,18,"-","-",64,69,69,69,null,null,2,3,3,3,2,2,2,1,2,3,2,1,2,2,0,1,1,1,1,null,2,null,null,197,174,161,160,155,148,127,121,"","","","","","","","","-","-",7,null,1243,null,null,null,null,null,null,null,null,null,null,null,null,null,null,null,null,null,null,null,null,null,null,null,null,null,null,null,null,null,null,null,null,null,null,null,null,null,null,null,null,null,null,null,null,null,null,null,null,null,null,null,null,null,null,null,null,null,null,null,null,null,null,69,null,69,"(64)"]
["70 (70)","Christer Brincner","Värends Hsk",1212,null,8,75.75,null,null,null,null,160,null,null,null,159,163,null,73,null,120,229,null,150,null,null,158,18,"-","-",70,70,70,70,null,null,1,1,1,2,2,1,1,2,3,2,2,2,2,3,1,2,2,1,2,null,2,null,null,229,163,160,159,158,150,120,73,"","","","","","","","","-","-",7,null,1212,null,null,null,null,null,null,null,null,null,null,null,null,null,null,null,null,null,null,null,null,null,null,null,null,null,null,null,null,null,null,null,null,null,null,null,null,null,null,null,null,null,null,null,null,null,null,null,null,null,null,null,null,null,null,null,null,null,null,null,null,null,null,70,null,70,"(70)"]
["70 (76)","Christina Holmberg","Tingsryd",1212,null,7,86.571428571428569,null,null,null,119,61,185,null,136,null,null,null,null,null,null,276,null,200,null,null,235,18,"-","-",76,70,71,71,null,null,1,1,2,3,3,2,2,2,1,1,1,1,1,2,1,2,2,1,2,null,2,null,null,276,235,200,185,136,119,61,"","","","","","","","","","-","-",8,null,1212,null,null,null,null,null,null,null,null,null,null,null,null,null,null,null,null,null,null,null,null,null,null,null,null,null,null,null,null,null,null,null,null,null,null,null,null,null,null,null,null,null,null,null,null,null,null,null,null,null,null,null,null,null,null,null,null,null,null,null,null,null,null,71,null,70,"(76)"]
["72 (71)","Kennarth Axelsson","Alvesta",1203,null,4,150.375,null,null,null,null,null,null,null,151,null,null,null,null,null,null,387,null,302,null,363,null,18,"-","-",71,72,72,72,null,null,1,1,1,1,1,1,2,2,1,1,1,1,1,2,1,2,2,2,2,null,2,null,null,387,363,302,151,"","","","","","","","","","","","","-","-",11,null,1203,null,null,null,null,null,null,null,null,null,null,null,null,null,null,null,null,null,null,null,null,null,null,null,null,null,null,null,null,null,null,null,null,null,null,null,null,null,null,null,null,null,null,null,null,null,null,null,null,null,null,null,null,null,null,null,null,null,null,null,null,null,null,72,null,72,"(71)"]
["73 (60)","Bo Fransson","Lessebo",1130,null,5,113,null,225,null,220,238,230,null,null,null,null,null,null,null,217,null,null,null,null,null,null,18,"-","-",60,73,73,73,null,null,2,2,2,3,3,2,1,1,1,1,1,1,2,2,0,1,1,1,1,null,2,null,null,238,230,225,220,217,"","","","","","","","","","","","-","-",10,null,1130,null,null,null,null,null,null,null,null,null,null,null,null,null,null,null,null,null,null,null,null,null,null,null,null,null,null,null,null,null,null,null,null,null,null,null,null,null,null,null,null,null,null,null,null,null,null,null,null,null,null,null,null,null,null,null,null,null,null,null,null,null,null,73,null,73,"(60)"]
[{"$f":"IF(BE78>1,AF78&\" (\"&AE78&\")\",AF78&\" (\"&AG78&\")\")","v":"74 (73)"},"Bengt-Erik Holmberg","Tingsryd",1122,null,5,112.2,null,null,null,212,202,289,null,203,null,null,null,null,null,null,null,null,null,null,null,216,18,"-","-",73,74,74,74,null,null,1,1,2,3,3,2,2,2,1,1,1,1,1,1,0,1,1,1,2,null,2,null,null,289,216,212,203,202,"","","","","","","","","","","","-","-",10,null,1122,null,null,null,null,null,null,null,null,null,null,null,null,null,null,null,null,null,null,null,null,null,null,null,null,null,null,null,null,null,null,null,null,null,null,null,null,null,null,null,null,null,null,null,null,null,null,null,null,null,null,null,null,null,null,null,null,null,null,null,null,null,null,74,null,74,"(73)"]
["75 (73)","Risto Selming","Korpen Nybro",1101,null,8,68.8125,null,143,116,122,79,null,null,null,null,null,null,100,null,null,169,null,null,null,192,180,18,"-","-",73,75,75,75,null,null,2,3,3,3,2,1,1,1,1,1,2,2,1,2,1,1,1,2,3,null,2,null,null,192,180,169,143,122,116,100,79,"","","","","","","","","-","-",7,null,1101,null,null,null,null,null,null,null,null,null,null,null,null,null,null,null,null,null,null,null,null,null,null,null,null,null,null,null,null,null,null,null,null,null,null,null,null,null,null,null,null,null,null,null,null,null,null,null,null,null,null,null,null,null,null,null,null,null,null,null,null,null,null,75,null,75,"(73)"]
["76 (77)","Mikael Karlsson","Hsk Tingzås",1093,null,8,68.3125,null,163,124,123,89,null,null,null,146,172,null,null,93,null,183,null,null,null,null,null,18,"-","-",77,76,76,76,null,null,2,3,3,3,2,1,1,2,3,2,1,2,2,2,1,1,1,1,1,null,2,null,null,183,172,163,146,124,123,93,89,"","","","","","","","","-","-",7,null,1093,null,null,null,null,null,null,null,null,null,null,null,null,null,null,null,null,null,null,null,null,null,null,null,null,null,null,null,null,null,null,null,null,null,null,null,null,null,null,null,null,null,null,null,null,null,null,null,null,null,null,null,null,null,null,null,null,null,null,null,null,null,null,76,null,76,"(77)"]
["77 (65)","Bo Andersson","Hsk Tingzås",1091,null,5,109.1,null,252,null,206,154,null,null,null,256,null,null,223,null,null,null,null,null,null,null,null,18,"-","-",65,77,77,77,null,null,2,2,2,3,2,1,1,2,2,1,2,2,1,1,0,1,1,1,1,null,2,null,null,256,252,223,206,154,"","","","","","","","","","","","-","-",10,null,1091,null,null,null,null,null,null,null,null,null,null,null,null,null,null,null,null,null,null,null,null,null,null,null,null,null,null,null,null,null,null,null,null,null,null,null,null,null,null,null,null,null,null,null,null,null,null,null,null,null,null,null,null,null,null,null,null,null,null,null,null,null,null,77,null,77,"(65)"]
["78 (68)","Jörgen Holmqvist","Lessebo Hsk",1078,null,4,134.75,null,null,null,245,200,341,null,null,null,null,null,null,null,292,null,null,null,null,null,null,18,"-","-",68,78,78,78,null,null,1,1,2,3,3,2,1,1,1,1,1,1,2,2,0,1,1,1,1,null,2,null,null,341,292,245,200,"","","","","","","","","","","","","-","-",11,null,1078,null,null,null,null,null,null,null,null,null,null,null,null,null,null,null,null,null,null,null,null,null,null,null,null,null,null,null,null,null,null,null,null,null,null,null,null,null,null,null,null,null,null,null,null,null,null,null,null,null,null,null,null,null,null,null,null,null,null,null,null,null,null,78,null,78,"(68)"]
["79 (82)","Ulrika Strandahl","Växjö",1063,null,9,59.055555555555557,null,null,178,null,null,65,152,null,null,null,null,null,144,157,130,null,88,null,56,93,18,"-","-",82,79,79,79,null,null,1,2,2,1,2,3,2,1,1,1,1,2,3,3,1,2,2,2,3,null,2,null,null,178,157,152,144,130,93,88,65,56,"","","","","","","","-","-",6,null,1063,null,null,null,null,null,null,null,null,null,null,null,null,null,null,null,null,null,null,null,null,null,null,null,null,null,null,null,null,null,null,null,null,null,null,null,null,null,null,null,null,null,null,null,null,null,null,null,null,null,null,null,null,null,null,null,null,null,null,null,null,null,null,79,null,79,"(82)"]
["80 (79)","Lasse Nilsson","Värends Hsk",1051,null,5,105.1,null,159,null,null,null,238,null,null,null,null,null,null,null,null,null,null,172,null,290,192,18,"-","-",79,80,80,80,null,null,2,2,1,1,2,2,1,1,1,1,1,1,1,1,0,2,2,2,3,null,2,null,null,290,238,192,172,159,"","","","","","","","","","","","-","-",10,null,1051,null,null,null,null,null,null,null,null,null,null,null,null,null,null,null,null,null,null,null,null,null,null,null,null,null,null,null,null,null,null,null,null,null,null,null,null,null,null,null,null,null,null,null,null,null,null,null,null,null,null,null,null,null,null,null,null,null,null,null,null,null,null,80,null,80,"(79)"]
["81 (80)","Louise Tollstam","Dynapac ",1039,null,6,86.583333333333329,null,null,175,129,154,null,null,null,null,146,215,null,null,null,null,null,null,220,null,null,18,"-","-",80,81,81,81,null,null,1,2,3,3,2,1,1,1,2,3,2,1,1,1,0,1,2,2,1,null,2,null,null,220,215,175,154,146,129,"","","","","","","","","","","-","-",9,null,1039,null,null,null,null,null,null,null,null,null,null,null,null,null,null,null,null,null,null,null,null,null,null,null,null,null,null,null,null,null,null,null,null,null,null,null,null,null,null,null,null,null,null,null,null,null,null,null,null,null,null,null,null,null,null,null,null,null,null,null,null,null,null,81,null,81,"(80)"]
["82 (86)","Åke Bergqvist","Tingsryd",1023,null,9,56.833333333333336,null,129,null,93,129,null,null,null,null,null,null,92,null,72,58,null,187,null,132,131,18,"-","-",86,82,82,82,null,null,2,2,2,3,2,1,1,1,1,1,2,2,2,3,1,2,2,2,3,null,2,null,null,187,132,131,129,129,93,92,72,58,"","","","","","","","-","-",6,null,1023,null,null,null,null,null,null,null,null,null,null,null,null,null,null,null,null,null,null,null,null,null,null,null,null,null,null,null,null,null,null,null,null,null,null,null,null,null,null,null,null,null,null,null,null,null,null,null,null,null,null,null,null,null,null,null,null,null,null,null,null,null,null,82,null,82,"(86)"]
["83 (84)","Rolf Johannesson","Värends Hsk",993,null,6,82.75,null,null,null,109,null,180,null,null,154,null,null,null,136,null,null,null,null,null,245,169,18,"-","-",84,83,83,83,null,null,1,1,2,2,2,2,1,2,2,1,1,2,2,1,0,1,1,2,3,null,2,null,null,245,180,169,154,136,109,"","","","","","","","","","","-","-",9,null,993,null,null,null,null,null,null,null,null,null,null,null,null,null,null,null,null,null,null,null,null,null,null,null,null,null,null,null,null,null,null,null,null,null,null,null,null,null,null,null,null,null,null,null,null,null,null,null,null,null,null,null,null,null,null,null,null,null,null,null,null,null,null,83,null,83,"(84)"]
["84 (82)","Paul Karlsson","Lessebo",989,null,4,123.625,null,null,null,206,232,295,null,null,null,null,null,null,null,256,null,null,null,null,null,null,18,"-","-",82,84,84,84,null,null,1,1,2,3,3,2,1,1,1,1,1,1,2,2,0,1,1,1,1,null,2,null,null,295,256,232,206,"","","","","","","","","","","","","-","-",11,null,989,null,null,null,null,null,null,null,null,null,null,null,null,null,null,null,null,null,null,null,null,null,null,null,null,null,null,null,null,null,null,null,null,null,null,null,null,null,null,null,null,null,null,null,null,null,null,null,null,null,null,null,null,null,null,null,null,null,null,null,null,null,null,84,null,84,"(82)"]
["85 (77)","Gilbert Pettersson","Lanternan",942,null,5,94.2,null,null,171,null,null,null,null,null,null,151,214,null,null,null,null,null,null,209,197,null,18,"-","-",77,85,85,85,null,null,1,2,2,1,1,1,1,1,2,3,2,1,1,1,0,1,2,3,2,null,2,null,null,214,209,197,171,151,"","","","","","","","","","","","-","-",10,null,942,null,null,null,null,null,null,null,null,null,null,null,null,null,null,null,null,null,null,null,null,null,null,null,null,null,null,null,null,null,null,null,null,null,null,null,null,null,null,null,null,null,null,null,null,null,null,null,null,null,null,null,null,null,null,null,null,null,null,null,null,null,null,85,null,85,"(77)"]
["86 (84)","Jonas Klarström","Team Småland Hsk",941,null,10,47.05,null,127,null,58,58,null,null,null,131,null,null,null,58,105,93,null,123,null,158,30,18,"-","-",84,86,86,86,null,null,2,2,2,3,2,1,1,2,2,1,1,2,3,3,1,2,2,2,3,null,2,null,null,158,131,127,123,105,93,58,58,58,30,"","","","","","","-","-",5,null,941,null,null,null,null,null,null,null,null,null,null,null,null,null,null,null,null,null,null,null,null,null,null,null,null,null,null,null,null,null,null,null,null,null,null,null,null,null,null,null,null,null,null,null,null,null,null,null,null,null,null,null,null,null,null,null,null,null,null,null,null,null,null,86,null,86,"(84)"]
["87 (94)","Göran Mårtensson","Jämjö Hsk",913,null,5,91.3,null,null,null,null,null,null,169,null,null,108,154,null,null,null,null,null,null,200,null,282,18,"-","-",94,87,87,87,null,null,1,1,1,1,1,2,2,1,2,3,2,1,1,1,0,1,2,2,2,null,2,null,null,282,200,169,154,108,"","","","","","","","","","","","-","-",10,null,913,null,null,null,null,null,null,null,null,null,null,null,null,null,null,null,null,null,null,null,null,null,null,null,null,null,null,null,null,null,null,null,null,null,null,null,null,null,null,null,null,null,null,null,null,null,null,null,null,null,null,null,null,null,null,null,null,null,null,null,null,null,null,87,null,87,"(94)"]
["88 (86)","Rikard Åberg","Alvesta",895,null,7,63.928571428571431,null,null,96,null,143,137,null,101,134,142,null,142,null,null,null,null,null,null,null,null,18,"-","-",86,88,88,88,null,null,1,2,2,2,3,2,2,3,3,2,2,2,1,1,0,1,1,1,1,null,2,null,null,143,142,142,137,134,101,96,"","","","","","","","","","-","-",8,null,895,null,null,null,null,null,null,null,null,null,null,null,null,null,null,null,null,null,null,null,null,null,null,null,null,null,null,null,null,null,null,null,null,null,null,null,null,null,null,null,null,null,null,null,null,null,null,null,null,null,null,null,null,null,null,null,null,null,null,null,null,null,null,88,null,88,"(86)"]
[{"$f":"IF(BE93>1,AF93&\" (\"&AE93&\")\",AF93&\" (\"&AG93&\")\")","v":"89 (88)"},"Lennart Karlsson","Lanternan",809,null,5,80.900000000000006,null,null,175,116,null,null,null,null,null,176,137,null,205,null,null,null,null,null,null,null,18,"-","-",88,{"$f":"IF(D93<D92,AH93,AF92)","v":89},89,89,null,null,{"$f":"COUNT($I$3,I93,H93)","v":1},{"$f":"COUNT($J$3,J93,I93)","v":2},{"$f":"COUNT($K$3,K93,J93)","v":3},{"$f":"COUNT($L$3,L93,K93)","v":2},{"$f":"COUNT($M$3,M93,L93)","v":1},{"$f":"COUNT($N$3,N93,M93)","v":1},{"$f":"COUNT($O$3,O93,N93)","v":1},{"$f":"COUNT($P$3,P93,O93)","v":1},{"$f":"COUNT($Q$3,Q93,P93)","v":2},{"$f":"COUNT($R$3,R93,Q93)","v":3},{"$f":"COUNT($S$3,S93,R93)","v":2},{"$f":"COUNT($T$3,T93,S93)","v":2},{"$f":"COUNT($U$3,U93,T93)","v":2},{"$f":"COUNT($V$3,V93,U93)","v":1},{"$f":"COUNT($W$3,W93,V93)","v":0},{"$f":"COUNT($X$3,X93,W93)","v":1},{"$f":"COUNT($Y$3,Y93,X93)","v":1},{"$f":"COUNT($Z$3,Z93,Y93)","v":1},{"$f":"COUNT($AA$3,AA93,Z93)","v":1},null,{"$f":"IF(H93=\"x\",1,2)","v":2},null,null,{"$f":"IF($F93>0,LARGE($I93:$AA93,1),\"\")","v":205},{"$f":"IF($F93>1,LARGE($I93:$AA93,2),\"\")","v":176},{"$f":"IF($F93>2,LARGE($I93:$AA93,3),\"\")","v":175},{"$f":"IF($F93>3,LARGE($I93:$AA93,4),\"\")","v":137},{"$f":"IF($F93>4,LARGE($I93:$AA93,5),\"\")","v":116},{"$f":"IF($F93>5,LARGE($I93:$AA93,6),\"\")","v":""},{"$f":"IF($F93>6,LARGE($I93:$AA93,7),\"\")","v":""},{"$f":"IF($F93>7,LARGE($I93:$AA93,8),\"\")","v":""},{"$f":"IF($F93>8,LARGE($I93:$AA93,9),\"\")","v":""},{"$f":"IF($F93>9,LARGE($I93:$AA93,10),\"\")","v":""},{"$f":"IF($F93>10,LARGE($I93:$AA93,11),\"\")","v":""},{"$f":"IF($F93>11,LARGE($I93:$AA93,12),\"\")","v":""},{"$f":"IF($F93>12,LARGE($I93:$AA93,13),\"\")","v":""},{"$f":"IF($F93>13,LARGE($I93:$AA93,14),\"\")","v":""},{"$f":"IF($F93>14,LARGE($I93:$AA93,15),\"\")","v":""},"","-","-",10,null,809,null,null,null,null,null,null,null,null,null,null,null,null,null,null,null,null,null,null,null,null,null,null,null,null,null,null,null,null,null,null,null,null,null,null,null,null,null,null,null,null,null,null,null,null,null,null,null,null,null,null,null,null,null,null,null,null,null,null,null,null,null,null,90,null,89,"(88)"]
["90 (96)","Susanne Andersson","Team Småland Hsk",771,null,6,64.25,null,null,null,null,null,null,null,null,145,null,null,null,null,59,167,null,94,null,163,143,18,"-","-",96,90,90,90,null,null,1,1,1,1,1,1,1,2,2,1,1,1,2,3,1,2,2,2,3,null,2,null,null,167,163,145,143,94,59,"","","","","","","","","","","-","-",9,null,771,null,null,null,null,null,null,null,null,null,null,null,null,null,null,null,null,null,null,null,null,null,null,null,null,null,null,null,null,null,null,null,null,null,null,null,null,null,null,null,null,null,null,null,null,null,null,null,null,null,null,null,null,null,null,null,null,null,null,null,null,null,null,91,null,90,"(96)"]
["91 (89)","Elin Olsson","Dynapac ",745,null,6,62.083333333333336,null,null,148,74,95,null,152,null,null,137,139,null,null,null,null,null,null,null,null,null,18,"-","-",89,91,91,91,null,null,1,2,3,3,2,2,2,1,2,3,2,1,1,1,0,1,1,1,1,null,2,null,null,152,148,139,137,95,74,"","","","","","","","","","","-","-",9,null,745,null,null,null,null,null,null,null,null,null,null,null,null,null,null,null,null,null,null,null,null,null,null,null,null,null,null,null,null,null,null,null,null,null,null,null,null,null,null,null,null,null,null,null,null,null,null,null,null,null,null,null,null,null,null,null,null,null,null,null,null,null,null,92,null,91,"(89)"]
["92 (91)","Lars-Åke Karlsson","Jämjö Hsk",711,null,4,88.875,null,null,163,null,null,null,170,null,null,null,195,null,null,null,null,null,null,183,null,null,18,"-","-",91,92,92,92,null,null,1,2,2,1,1,2,2,1,1,2,2,1,1,1,0,1,2,2,1,null,2,null,null,195,183,170,163,"","","","","","","","","","","","","-","-",11,null,711,null,null,null,null,null,null,null,null,null,null,null,null,null,null,null,null,null,null,null,null,null,null,null,null,null,null,null,null,null,null,null,null,null,null,null,null,null,null,null,null,null,null,null,null,null,null,null,null,null,null,null,null,null,null,null,null,null,null,null,null,null,null,93,null,92,"(91)"]
["93 (97)","Lars-Erik Green","Team Småland Hsk",681,null,7,48.642857142857146,null,85,null,null,null,null,null,null,88,null,null,null,null,57,159,null,95,null,58,139,18,"-","-",97,93,93,93,null,null,2,2,1,1,1,1,1,2,2,1,1,1,2,3,1,2,2,2,3,null,2,null,null,159,139,95,88,85,58,57,"","","","","","","","","","-","-",8,null,681,null,null,null,null,null,null,null,null,null,null,null,null,null,null,null,null,null,null,null,null,null,null,null,null,null,null,null,null,null,null,null,null,null,null,null,null,null,null,null,null,null,null,null,null,null,null,null,null,null,null,null,null,null,null,null,null,null,null,null,null,null,null,89,null,93,"(97)"]
["94 (101)","Anders Karlsson","Värends Hsk",666,null,6,55.5,null,null,157,null,null,null,null,null,null,77,null,null,null,92,null,null,78,null,146,116,18,"-","-",101,94,94,94,null,null,1,2,2,1,1,1,1,1,2,2,1,1,2,2,0,2,2,2,3,null,2,null,null,157,146,116,92,78,77,"","","","","","","","","","","-","-",9,null,666,null,null,null,null,null,null,null,null,null,null,null,null,null,null,null,null,null,null,null,null,null,null,null,null,null,null,null,null,null,null,null,null,null,null,null,null,null,null,null,null,null,null,null,null,null,null,null,null,null,null,null,null,null,null,null,null,null,null,null,null,null,null,94,null,94,"(101)"]
["95 (92)","Armin Sisic","Värends Hsk",664,null,2,166,null,null,null,null,null,null,null,null,null,null,null,null,null,null,319,null,null,null,345,null,18,"-","-",92,95,95,95,null,null,1,1,1,1,1,1,1,1,1,1,1,1,1,2,1,1,1,2,2,null,2,null,null,345,319,"","","","","","","","","","","","","","","-","-",13,null,664,null,null,null,null,null,null,null,null,null,null,null,null,null,null,null,null,null,null,null,null,null,null,null,null,null,null,null,null,null,null,null,null,null,null,null,null,null,null,null,null,null,null,null,null,null,null,null,null,null,null,null,null,null,null,null,null,null,null,null,null,null,null,95,null,95,"(92)"]
["96 (93)","Kjell Åkesson","Lanternan",649,null,4,81.125,null,null,196,56,null,null,null,null,null,null,184,null,213,null,null,null,null,null,null,null,18,"-","-",93,96,96,96,null,null,1,2,3,2,1,1,1,1,1,2,2,2,2,1,0,1,1,1,1,null,2,null,null,213,196,184,56,"","","","","","","","","","","","","-","-",11,null,649,null,null,null,null,null,null,null,null,null,null,null,null,null,null,null,null,null,null,null,null,null,null,null,null,null,null,null,null,null,null,null,null,null,null,null,null,null,null,null,null,null,null,null,null,null,null,null,null,null,null,null,null,null,null,null,null,null,null,null,null,null,null,96,null,96,"(93)"]
["97 (89)","Rune Karlsson","Korpen Nybro",621,null,3,103.5,null,null,null,null,null,269,null,null,null,null,null,168,184,null,null,null,null,null,null,null,18,"-","-",89,97,{"$f":"IF(F101>1,ROW(97:97),\"-\")","v":97},97,null,null,1,1,1,1,2,2,1,1,1,1,2,3,2,1,0,1,1,1,1,null,2,null,null,269,184,168,"","","","","","","","","","","","","","-","-",12,null,621,null,null,null,null,null,null,null,null,null,null,null,null,null,null,null,null,null,null,null,null,null,null,null,null,null,null,null,null,null,null,null,null,null,null,null,null,null,null,null,null,null,null,null,null,null,null,null,null,null,null,null,null,null,null,null,null,null,null,null,null,null,null,97,null,{"$f":"IF(BE101>=1,AF101,\"\")","v":97},"(89)"]
["98 (97)","Linnea Gneupel","Sibbamåla",620,null,5,62,null,null,null,123,99,null,null,null,82,137,179,null,null,null,null,null,null,null,null,null,18,"-","-",97,98,98,98,null,null,1,1,2,3,2,1,1,2,3,3,2,1,1,1,0,1,1,1,1,null,2,null,null,179,137,123,99,82,"","","","","","","","","","","","-","-",10,null,620,null,null,null,null,null,null,null,null,null,null,null,null,null,null,null,null,null,null,null,null,null,null,null,null,null,null,null,null,null,null,null,null,null,null,null,null,null,null,null,null,null,null,null,null,null,null,null,null,null,null,null,null,null,null,null,null,null,null,null,null,null,null,98,null,98,"(97)"]
["99 (100)","André Gustafsson","Dynapac ",595,null,3,99.166666666666671,null,null,null,null,null,null,173,null,null,206,216,null,null,null,null,null,null,null,null,null,18,"-","-",100,99,99,99,null,null,1,1,1,1,1,2,2,1,2,3,2,1,1,1,0,1,1,1,1,null,2,null,null,216,206,173,"","","","","","","","","","","","","","-","-",12,null,595,null,null,null,null,null,null,null,null,null,null,null,null,null,null,null,null,null,null,null,null,null,null,null,null,null,null,null,null,null,null,null,null,null,null,null,null,null,null,null,null,null,null,null,null,null,null,null,null,null,null,null,null,null,null,null,null,null,null,null,null,null,null,99,null,99,"(100)"]
["100 (101)","Roland Andreasson","Lanternan",573,null,3,95.5,null,null,null,null,null,null,null,null,null,null,179,177,null,null,217,null,null,null,null,null,18,"-","-",101,100,100,100,null,null,1,1,1,1,1,1,1,1,1,2,3,2,1,2,1,1,1,1,1,null,2,null,null,217,179,177,"","","","","","","","","","","","","","-","-",12,null,573,null,null,null,null,null,null,null,null,null,null,null,null,null,null,null,null,null,null,null,null,null,null,null,null,null,null,null,null,null,null,null,null,null,null,null,null,null,null,null,null,null,null,null,null,null,null,null,null,null,null,null,null,null,null,null,null,null,null,null,null,null,null,100,null,100,"(101)"]
["101 (94)","Rickard Holgersson","Sketnabäck",504,null,3,84,null,null,181,217,106,null,null,null,null,null,null,null,null,null,null,null,null,null,null,null,18,"-","-",94,101,101,101,null,null,1,2,3,3,2,1,1,1,1,1,1,1,1,1,0,1,1,1,1,null,2,null,null,217,181,106,"","","","","","","","","","","","","","-","-",12,null,504,null,null,null,null,null,null,null,null,null,null,null,null,null,null,null,null,null,null,null,null,null,null,null,null,null,null,null,null,null,null,null,null,null,null,null,null,null,null,null,null,null,null,null,null,null,null,null,null,null,null,null,null,null,null,null,null,null,null,null,null,null,null,101,null,101,"(94)"]
["102 (103)","Håkan Larsson","Tingsryd",474,null,3,79,null,null,null,169,151,null,null,null,null,null,null,null,null,154,null,null,null,null,null,null,18,"-","-",103,102,102,102,null,null,1,1,2,3,2,1,1,1,1,1,1,1,2,2,0,1,1,1,1,null,2,null,null,169,154,151,"","","","","","","","","","","","","","-","-",12,null,474,null,null,null,null,null,null,null,null,null,null,null,null,null,null,null,null,null,null,null,null,null,null,null,null,null,null,null,null,null,null,null,null,null,null,null,null,null,null,null,null,null,null,null,null,null,null,null,null,null,null,null,null,null,null,null,null,null,null,null,null,null,null,103,null,102,"(103)"]
["103 (104)","Solveig Brincner","Värends Hsk",462,null,7,33,null,null,101,null,48,null,null,null,77,52,null,63,null,null,67,null,54,null,null,null,18,"-","-",104,103,103,103,null,null,1,2,2,2,2,1,1,2,3,2,2,2,1,2,1,2,2,1,1,null,2,null,null,101,77,67,63,54,52,48,"","","","","","","","","","-","-",8,null,462,null,null,null,null,null,null,null,null,null,null,null,null,null,null,null,null,null,null,null,null,null,null,null,null,null,null,null,null,null,null,null,null,null,null,null,null,null,null,null,null,null,null,null,null,null,null,null,null,null,null,null,null,null,null,null,null,null,null,null,null,null,null,104,null,103,"(104)"]
["104 (97)","Kasper Sjöberg","Sketnabäck",439,null,3,73.166666666666671,null,null,153,154,132,null,null,null,null,null,null,null,null,null,null,null,null,null,null,null,18,"-","-",97,104,104,104,null,null,1,2,3,3,2,1,1,1,1,1,1,1,1,1,0,1,1,1,1,null,2,null,null,154,153,132,"","","","","","","","","","","","","","-","-",12,null,439,null,null,null,null,null,null,null,null,null,null,null,null,null,null,null,null,null,null,null,null,null,null,null,null,null,null,null,null,null,null,null,null,null,null,null,null,null,null,null,null,null,null,null,null,null,null,null,null,null,null,null,null,null,null,null,null,null,null,null,null,null,null,105,null,104,"(97)"]
["105 (105)","Stefan Olofsson","Korpen Nybro",432,null,2,108,null,null,null,null,null,null,null,null,null,null,null,null,190,null,null,null,242,null,null,null,18,"-","-",105,105,105,105,null,null,1,1,1,1,1,1,1,1,1,1,1,2,2,1,0,2,2,1,1,null,2,null,null,242,190,"","","","","","","","","","","","","","","-","-",13,null,432,null,null,null,null,null,null,null,null,null,null,null,null,null,null,null,null,null,null,null,null,null,null,null,null,null,null,null,null,null,null,null,null,null,null,null,null,null,null,null,null,null,null,null,null,null,null,null,null,null,null,null,null,null,null,null,null,null,null,null,null,null,null,106,null,105,"(105)"]
["106 (107)","Marianne Karlsson","Jämjö Hsk",412,null,3,68.666666666666671,null,null,156,null,null,null,null,null,null,null,126,null,null,null,null,null,null,130,null,null,18,"-","-",107,106,106,106,null,null,1,2,2,1,1,1,1,1,1,2,2,1,1,1,0,1,2,2,1,null,2,null,null,156,130,126,"","","","","","","","","","","","","","-","-",12,null,412,null,null,null,null,null,null,null,null,null,null,null,null,null,null,null,null,null,null,null,null,null,null,null,null,null,null,null,null,null,null,null,null,null,null,null,null,null,null,null,null,null,null,null,null,null,null,null,null,null,null,null,null,null,null,null,null,null,null,null,null,null,null,107,null,106,"(107)"]
["107 (108)","Kerstin Petersen","Växjö",406,null,3,67.666666666666671,null,null,null,null,null,null,null,null,127,null,null,null,null,169,null,null,110,null,null,null,18,"-","-",108,107,107,107,null,null,1,1,1,1,1,1,1,2,2,1,1,1,2,2,0,2,2,1,1,null,2,null,null,169,127,110,"","","","","","","","","","","","","","-","-",12,null,406,null,null,null,null,null,null,null,null,null,null,null,null,null,null,null,null,null,null,null,null,null,null,null,null,null,null,null,null,null,null,null,null,null,null,null,null,null,null,null,null,null,null,null,null,null,null,null,null,null,null,null,null,null,null,null,null,null,null,null,null,null,null,108,null,107,"(108)"]
["108 (109)","Bertil Olsson","Jämjö Hsk",368,null,3,61.333333333333336,null,null,null,null,null,null,null,null,null,84,126,null,null,null,null,null,null,158,null,null,18,"-","-",109,108,108,108,null,null,1,1,1,1,1,1,1,1,2,3,2,1,1,1,0,1,2,2,1,null,2,null,null,158,126,84,"","","","","","","","","","","","","","-","-",12,null,368,null,null,null,null,null,null,null,null,null,null,null,null,null,null,null,null,null,null,null,null,null,null,null,null,null,null,null,null,null,null,null,null,null,null,null,null,null,null,null,null,null,null,null,null,null,null,null,null,null,null,null,null,null,null,null,null,null,null,null,null,null,null,102,null,108,"(109)"]
["109 (110)","Morgan Atle","Dynapac ",361,null,3,60.166666666666664,null,null,101,148,112,null,null,null,null,null,null,null,null,null,null,null,null,null,null,null,18,"-","-",110,109,109,109,null,null,1,2,3,3,2,1,1,1,1,1,1,1,1,1,0,1,1,1,1,null,2,null,null,148,112,101,"","","","","","","","","","","","","","-","-",12,null,361,null,null,null,null,null,null,null,null,null,null,null,null,null,null,null,null,null,null,null,null,null,null,null,null,null,null,null,null,null,null,null,null,null,null,null,null,null,null,null,null,null,null,null,null,null,null,null,null,null,null,null,null,null,null,null,null,null,null,null,null,null,null,109,null,109,"(110)"]
["110 (111)","Tobias Vikström","Växjö Hsk",359,null,1,179.5,null,null,null,null,null,null,null,null,null,null,null,null,null,null,359,null,null,null,null,null,18,"-","-",111,110,"-",110,null,null,1,1,1,1,1,1,1,1,1,1,1,1,1,2,1,1,1,1,1,null,2,null,null,359,"","","","","","","","","","","","","","","","-","-",14,null,359,null,null,null,null,null,null,null,null,null,null,null,null,null,null,null,null,null,null,null,null,null,null,null,null,null,null,null,null,null,null,null,null,null,null,null,null,null,null,null,null,null,null,null,null,null,null,null,null,null,null,null,null,null,null,null,null,null,null,null,null,null,null,110,null,110,"(111)"]
["111 (112)","Leif Ahlex","Lessebo",348,null,1,174,null,348,null,null,null,null,null,null,null,null,null,null,null,null,null,null,null,null,null,null,18,"-","-",112,111,"-",111,null,null,2,2,1,1,1,1,1,1,1,1,1,1,1,1,0,1,1,1,1,null,2,null,null,348,"","","","","","","","","","","","","","","","-","-",14,null,348,null,null,null,null,null,null,null,null,null,null,null,null,null,null,null,null,null,null,null,null,null,null,null,null,null,null,null,null,null,null,null,null,null,null,null,null,null,null,null,null,null,null,null,null,null,null,null,null,null,null,null,null,null,null,null,null,null,null,null,null,null,null,116,null,111,"(112)"]
["112 (113)","Ronjah Pettersson","Växjö Hsk",340,null,2,85,null,null,null,null,null,null,null,null,null,null,null,null,null,null,null,null,174,null,166,null,18,"-","-",113,112,112,112,null,null,1,1,1,1,1,1,1,1,1,1,1,1,1,1,0,2,2,2,2,null,2,null,null,174,166,"","","","","","","","","","","","","","","-","-",13,null,340,null,null,null,null,null,null,null,null,null,null,null,null,null,null,null,null,null,null,null,null,null,null,null,null,null,null,null,null,null,null,null,null,null,null,null,null,null,null,null,null,null,null,null,null,null,null,null,null,null,null,null,null,null,null,null,null,null,null,null,null,null,null,111,null,112,"(113)"]
["113 (114)","Mimmi Hansson","Korpen Nybro",331,null,3,55.166666666666664,null,null,null,null,null,null,null,null,null,null,null,null,null,126,104,null,null,null,101,null,18,"-","-",114,113,113,113,null,null,1,1,1,1,1,1,1,1,1,1,1,1,2,3,1,1,1,2,2,null,2,null,null,126,104,101,"","","","","","","","","","","","","","-","-",12,null,331,null,null,null,null,null,null,null,null,null,null,null,null,null,null,null,null,null,null,null,null,null,null,null,null,null,null,null,null,null,null,null,null,null,null,null,null,null,null,null,null,null,null,null,null,null,null,null,null,null,null,null,null,null,null,null,null,null,null,null,null,null,null,112,null,113,"(114)"]
["114 (117)","Arne Blihd","Lanternan",319,null,3,53.166666666666664,null,null,107,null,null,null,null,null,null,null,146,null,66,null,null,null,null,null,null,null,18,"-","-",117,114,114,114,null,null,1,2,2,1,1,1,1,1,1,2,2,2,2,1,0,1,1,1,1,null,2,null,null,146,107,66,"","","","","","","","","","","","","","-","-",12,null,319,null,null,null,null,null,null,null,null,null,null,null,null,null,null,null,null,null,null,null,null,null,null,null,null,null,null,null,null,null,null,null,null,null,null,null,null,null,null,null,null,null,null,null,null,null,null,null,null,null,null,null,null,null,null,null,null,null,null,null,null,null,null,114,null,114,"(117)"]
["115 (115)","Allan Persson","Tingsryd",312,null,3,52,null,null,null,null,null,null,null,null,null,null,null,null,null,115,null,null,113,null,null,84,18,"-","-",115,115,115,115,null,null,1,1,1,1,1,1,1,1,1,1,1,1,2,2,0,2,2,1,2,null,2,null,null,115,113,84,"","","","","","","","","","","","","","-","-",12,null,312,null,null,null,null,null,null,null,null,null,null,null,null,null,null,null,null,null,null,null,null,null,null,null,null,null,null,null,null,null,null,null,null,null,null,null,null,null,null,null,null,null,null,null,null,null,null,null,null,null,null,null,null,null,null,null,null,null,null,null,null,null,null,115,null,115,"(115)"]
["116 (119)","Kent Vikström","Växjö",304,null,2,76,null,null,null,146,null,null,null,null,null,null,null,null,null,null,158,null,null,null,null,null,18,"-","-",119,116,116,116,null,null,1,1,2,2,1,1,1,1,1,1,1,1,1,2,1,1,1,1,1,null,2,null,null,158,146,"","","","","","","","","","","","","","","-","-",13,null,304,null,null,null,null,null,null,null,null,null,null,null,null,null,null,null,null,null,null,null,null,null,null,null,null,null,null,null,null,null,null,null,null,null,null,null,null,null,null,null,null,null,null,null,null,null,null,null,null,null,null,null,null,null,null,null,null,null,null,null,null,null,null,117,null,116,"(119)"]
["117 (105)","Robert Sjöberg","Sketnabäck",302,null,3,50.333333333333336,null,null,85,96,121,null,null,null,null,null,null,null,null,null,null,null,null,null,null,null,18,"-","-",105,117,117,117,null,null,1,2,3,3,2,1,1,1,1,1,1,1,1,1,0,1,1,1,1,null,2,null,null,121,96,85,"","","","","","","","","","","","","","-","-",12,null,302,null,null,null,null,null,null,null,null,null,null,null,null,null,null,null,null,null,null,null,null,null,null,null,null,null,null,null,null,null,null,null,null,null,null,null,null,null,null,null,null,null,null,null,null,null,null,null,null,null,null,null,null,null,null,null,null,null,null,null,null,null,null,118,null,117,"(105)"]
["118 (120)","Niklas Berglund","Växjö Hsk",300,null,2,75,null,148,null,null,null,null,null,null,null,null,null,null,null,152,null,null,null,null,null,null,18,"-","-",120,118,118,118,null,null,2,2,1,1,1,1,1,1,1,1,1,1,2,2,0,1,1,1,1,null,2,null,null,152,148,"","","","","","","","","","","","","","","-","-",13,null,300,null,null,null,null,null,null,null,null,null,null,null,null,null,null,null,null,null,null,null,null,null,null,null,null,null,null,null,null,null,null,null,null,null,null,null,null,null,null,null,null,null,null,null,null,null,null,null,null,null,null,null,null,null,null,null,null,null,null,null,null,null,null,119,null,118,"(120)"]
["119 (122)","Ingegärd Holmqvist","Lanternan",299,null,3,49.833333333333336,null,null,73,null,null,null,null,null,null,99,127,null,null,null,null,null,null,null,null,null,18,"-","-",122,119,119,119,null,null,1,2,2,1,1,1,1,1,2,3,2,1,1,1,0,1,1,1,1,null,2,null,null,127,99,73,"","","","","","","","","","","","","","-","-",12,null,299,null,null,null,null,null,null,null,null,null,null,null,null,null,null,null,null,null,null,null,null,null,null,null,null,null,null,null,null,null,null,null,null,null,null,null,null,null,null,null,null,null,null,null,null,null,null,null,null,null,null,null,null,null,null,null,null,null,null,null,null,null,null,120,null,119,"(122)"]
["120 (123)","Kenneth Andersson","Dynapac ",285,null,2,71.25,null,null,null,null,null,null,194,null,null,91,null,null,null,null,null,null,null,null,null,null,18,"-","-",123,120,120,120,null,null,1,1,1,1,1,2,2,1,2,2,1,1,1,1,0,1,1,1,1,null,2,null,null,194,91,"","","","","","","","","","","","","","","-","-",13,null,285,null,null,null,null,null,null,null,null,null,null,null,null,null,null,null,null,null,null,null,null,null,null,null,null,null,null,null,null,null,null,null,null,null,null,null,null,null,null,null,null,null,null,null,null,null,null,null,null,null,null,null,null,null,null,null,null,null,null,null,null,null,null,121,null,120,"(123)"]
[{"$f":"IF(BE125>1,AF125&\" (\"&AE125&\")\",AF125&\" (\"&AG125&\")\")","v":"121 (124)"},"Susanne Simonsson","Lanternan",278,null,2,69.5,null,null,null,null,null,null,null,null,null,null,120,null,null,null,158,null,null,null,null,null,18,"-","-",124,{"$f":"IF(D125<D124,AH125,AF124)","v":121},121,121,null,null,{"$f":"COUNT($I$3,I125,H125)","v":1},{"$f":"COUNT($J$3,J125,I125)","v":1},{"$f":"COUNT($K$3,K125,J125)","v":1},{"$f":"COUNT($L$3,L125,K125)","v":1},{"$f":"COUNT($M$3,M125,L125)","v":1},{"$f":"COUNT($N$3,N125,M125)","v":1},{"$f":"COUNT($O$3,O125,N125)","v":1},{"$f":"COUNT($P$3,P125,O125)","v":1},{"$f":"COUNT($Q$3,Q125,P125)","v":1},{"$f":"COUNT($R$3,R125,Q125)","v":2},{"$f":"COUNT($S$3,S125,R125)","v":2},{"$f":"COUNT($T$3,T125,S125)","v":1},{"$f":"COUNT($U$3,U125,T125)","v":1},{"$f":"COUNT($V$3,V125,U125)","v":2},{"$f":"COUNT($W$3,W125,V125)","v":1},{"$f":"COUNT($X$3,X125,W125)","v":1},{"$f":"COUNT($Y$3,Y125,X125)","v":1},{"$f":"COUNT($Z$3,Z125,Y125)","v":1},{"$f":"COUNT($AA$3,AA125,Z125)","v":1},null,{"$f":"IF(H125=\"x\",1,2)","v":2},null,null,{"$f":"IF($F125>0,LARGE($I125:$AA125,1),\"\")","v":158},{"$f":"IF($F125>1,LARGE($I125:$AA125,2),\"\")","v":120},{"$f":"IF($F125>2,LARGE($I125:$AA125,3),\"\")","v":""},{"$f":"IF($F125>3,LARGE($I125:$AA125,4),\"\")","v":""},{"$f":"IF($F125>4,LARGE($I125:$AA125,5),\"\")","v":""},{"$f":"IF($F125>5,LARGE($I125:$AA125,6),\"\")","v":""},{"$f":"IF($F125>6,LARGE($I125:$AA125,7),\"\")","v":""},{"$f":"IF($F125>7,LARGE($I125:$AA125,8),\"\")","v":""},{"$f":"IF($F125>8,LARGE($I125:$AA125,9),\"\")","v":""},{"$f":"IF($F125>9,LARGE($I125:$AA125,10),\"\")","v":""},{"$f":"IF($F125>10,LARGE($I125:$AA125,11),\"\")","v":""},{"$f":"IF($F125>11,LARGE($I125:$AA125,12),\"\")","v":""},{"$f":"IF($F125>12,LARGE($I125:$AA125,13),\"\")","v":""},{"$f":"IF($F125>13,LARGE($I125:$AA125,14),\"\")","v":""},{"$f":"IF($F125>14,LARGE($I125:$AA125,15),\"\")","v":""},"","-","-",13,null,278,null,null,null,null,null,null,null,null,null,null,null,null,null,null,null,null,null,null,null,null,null,null,null,null,null,null,null,null,null,null,null,null,null,null,null,null,null,null,null,null,null,null,null,null,null,null,null,null,null,null,null,null,null,null,null,null,null,null,null,null,null,null,127,null,121,"(124)"]
["122 (125)","Roger Johansson","Dynapac ",271,null,2,67.75,null,null,null,null,null,null,null,null,null,154,117,null,null,null,null,null,null,null,null,null,18,"-","-",125,122,122,122,null,null,1,1,1,1,1,1,1,1,2,3,2,1,1,1,0,1,1,1,1,null,2,null,null,154,117,"","","","","","","","","","","","","","","-","-",13,null,271,null,null,null,null,null,null,null,null,null,null,null,null,null,null,null,null,null,null,null,null,null,null,null,null,null,null,null,null,null,null,null,null,null,null,null,null,null,null,null,null,null,null,null,null,null,null,null,null,null,null,null,null,null,null,null,null,null,null,null,null,null,null,122,null,122,"(125)"]
["123 (127)","Krister Nygren","Korpen Åseda",265,null,1,132.5,null,265,null,null,null,null,null,null,null,null,null,null,null,null,null,null,null,null,null,null,18,"-","-",127,123,"-",123,null,null,2,2,1,1,1,1,1,1,1,1,1,1,1,1,0,1,1,1,1,null,2,null,null,265,"","","","","","","","","","","","","","","","-","-",14,null,265,null,null,null,null,null,null,null,null,null,null,null,null,null,null,null,null,null,null,null,null,null,null,null,null,null,null,null,null,null,null,null,null,null,null,null,null,null,null,null,null,null,null,null,null,null,null,null,null,null,null,null,null,null,null,null,null,null,null,null,null,null,null,123,null,123,"(127)"]
["124 (116)","Ulf Seyer","Alvesta",262,null,2,65.5,null,155,null,null,null,null,null,107,null,null,null,null,null,null,null,null,null,null,null,null,18,"-","-",116,124,124,124,null,null,2,2,1,1,1,1,2,2,1,1,1,1,1,1,0,1,1,1,1,null,2,null,null,155,107,"","","","","","","","","","","","","","","-","-",13,null,262,null,null,null,null,null,null,null,null,null,null,null,null,null,null,null,null,null,null,null,null,null,null,null,null,null,null,null,null,null,null,null,null,null,null,null,null,null,null,null,null,null,null,null,null,null,null,null,null,null,null,null,null,null,null,null,null,null,null,null,null,null,null,124,null,124,"(116)"]
["125 (128)","Lisbeth Blihd","Lanternan",248,null,2,62,null,null,102,null,null,null,null,null,null,null,146,null,null,null,null,null,null,null,null,null,18,"-","-",128,125,125,125,null,null,1,2,2,1,1,1,1,1,1,2,2,1,1,1,0,1,1,1,1,null,2,null,null,146,102,"","","","","","","","","","","","","","","-","-",13,null,248,null,null,null,null,null,null,null,null,null,null,null,null,null,null,null,null,null,null,null,null,null,null,null,null,null,null,null,null,null,null,null,null,null,null,null,null,null,null,null,null,null,null,null,null,null,null,null,null,null,null,null,null,null,null,null,null,null,null,null,null,null,null,125,null,125,"(128)"]
["126 (129)","Jerry Viksten","Korpen Åseda",246,null,2,61.5,null,122,null,null,null,null,null,null,null,null,null,124,null,null,null,null,null,null,null,null,18,"-","-",129,126,126,126,null,null,2,2,1,1,1,1,1,1,1,1,2,2,1,1,0,1,1,1,1,null,2,null,null,124,122,"","","","","","","","","","","","","","","-","-",13,null,246,null,null,null,null,null,null,null,null,null,null,null,null,null,null,null,null,null,null,null,null,null,null,null,null,null,null,null,null,null,null,null,null,null,null,null,null,null,null,null,null,null,null,null,null,null,null,null,null,null,null,null,null,null,null,null,null,null,null,null,null,null,null,126,null,126,"(129)"]
["127 (130)","Karin Gullbrand","Tingsryd",232,null,4,29,null,null,null,55,null,53,null,17,107,null,null,null,null,null,null,null,null,null,null,null,18,"-","-",130,127,127,127,null,null,1,1,2,2,2,2,2,3,2,1,1,1,1,1,0,1,1,1,1,null,2,null,null,107,55,53,17,"","","","","","","","","","","","","-","-",11,null,232,null,null,null,null,null,null,null,null,null,null,null,null,null,null,null,null,null,null,null,null,null,null,null,null,null,null,null,null,null,null,null,null,null,null,null,null,null,null,null,null,null,null,null,null,null,null,null,null,null,null,null,null,null,null,null,null,null,null,null,null,null,null,113,null,127,"(130)"]
["128 (131)","Arne Nygren","Korpen Åseda",231,null,2,57.75,null,94,null,null,null,null,null,null,null,null,null,137,null,null,null,null,null,null,null,null,18,"-","-",131,128,128,128,null,null,2,2,1,1,1,1,1,1,1,1,2,2,1,1,0,1,1,1,1,null,2,null,null,137,94,"","","","","","","","","","","","","","","-","-",13,null,231,null,null,null,null,null,null,null,null,null,null,null,null,null,null,null,null,null,null,null,null,null,null,null,null,null,null,null,null,null,null,null,null,null,null,null,null,null,null,null,null,null,null,null,null,null,null,null,null,null,null,null,null,null,null,null,null,null,null,null,null,null,null,128,null,128,"(131)"]
["129 (132)","Towe Danielsson","Korpen Nybro",{"$f":"SUM(BH133:BT133)","v":215},null,{"$f":"COUNT(I133:AA133)","v":1},{"$f":"SUM((CB133)/(F133*2))","v":107.5},null,null,null,null,null,null,null,null,null,null,null,null,215,null,null,null,null,null,null,null,{"$f":"SUM($I$3:$AA$3)","v":18},{"$f":"BX133","v":"-"},{"$f":"BY133","v":"-"},132,129,{"$f":"IF(F133>1,ROW(129:129),\"-\")","v":"-"},129,null,null,1,1,1,1,1,1,1,1,1,1,1,2,2,1,0,1,1,1,1,null,2,null,null,215,"","","","","","","","","","","","","","","","-","-",{"$f":"SUM(AB133-F133)-3","v":14},null,{"$f":"SUM(BH133:BW133)","v":215},null,null,null,null,null,null,null,null,null,null,null,null,null,null,null,null,null,null,null,null,null,null,null,null,null,null,null,null,null,null,null,null,null,null,null,null,null,null,null,null,null,null,null,null,null,null,null,null,null,null,null,null,null,null,null,null,null,null,null,null,null,null,129,null,{"$f":"IF(BE133>=1,AF133,\"\")","v":129},{"$f":"IF(BE133>1,\"(\"&AE133&\")\",\"(\"&AG133&\")\")","v":"(132)"}]
["130 (117)","Viktor Holgersson","Sketnabäck",210,null,2,52.5,null,null,null,97,113,null,null,null,null,null,null,null,null,null,null,null,null,null,null,null,18,"-","-",117,130,130,130,null,null,1,1,2,3,2,1,1,1,1,1,1,1,1,1,0,1,1,1,1,null,2,null,null,113,97,"","","","","","","","","","","","","",{"$f":"IF($F134>15,LARGE($I134:$AA134,16),\"\")","v":""},{"$f":"IF($F134>14,LARGE($I134:$AA134,15),\"-\")","v":"-"},{"$f":"IF($F134>15,LARGE($I134:$AA134,16),\"-\")","v":"-"},13,null,210,null,null,null,null,null,null,null,null,null,null,null,null,null,null,null,null,null,null,null,null,null,null,null,null,null,null,null,null,null,null,null,null,null,null,null,null,null,null,null,null,null,null,null,null,null,null,null,null,null,null,null,null,null,null,null,null,null,null,null,null,null,null,130,null,130,"(117)"]
["130 (134)","Carina Andersson","Dynapac ",210,null,2,52.5,null,null,null,150,60,null,null,null,null,null,null,null,null,null,null,null,null,null,null,null,18,"-","-",134,130,131,131,null,null,1,1,2,3,2,1,1,1,1,1,1,1,1,1,0,1,1,1,1,null,2,null,null,150,60,"","","","","","","","","","","","","","","-","-",13,null,210,null,null,null,null,null,null,null,null,null,null,null,null,null,null,null,null,null,null,null,null,null,null,null,null,null,null,null,null,null,null,null,null,null,null,null,null,null,null,null,null,null,null,null,null,null,null,null,null,null,null,null,null,null,null,null,null,null,null,null,null,null,null,131,null,130,"(134)"]
["132 (136)","Elin Edlund","Dynapac ",203,null,2,50.75,null,null,155,null,null,null,null,null,null,48,null,null,null,null,null,null,null,null,null,null,18,"-","-",136,132,132,132,null,null,1,2,2,1,1,1,1,1,2,2,1,1,1,1,0,1,1,1,1,null,2,null,null,155,48,"","","","","","","","","","","","","","","-","-",13,null,203,null,null,null,null,null,null,null,null,null,null,null,null,null,null,null,null,null,null,null,null,null,null,null,null,null,null,null,null,null,null,null,null,null,null,null,null,null,null,null,null,null,null,null,null,null,null,null,null,null,null,null,null,null,null,null,null,null,null,null,null,null,null,132,null,132,"(136)"]
["133 (137)","Irené Pettersson","Lanternan",197,null,2,49.25,null,null,72,null,null,null,null,null,null,null,125,null,null,null,null,null,null,null,null,null,18,"-","-",137,133,133,133,null,null,1,2,2,1,1,1,1,1,1,2,2,1,1,1,0,1,1,1,1,null,2,null,null,125,72,"","","","","","","","","","","","","","","-","-",13,null,197,null,null,null,null,null,null,null,null,null,null,null,null,null,null,null,null,null,null,null,null,null,null,null,null,null,null,null,null,null,null,null,null,null,null,null,null,null,null,null,null,null,null,null,null,null,null,null,null,null,null,null,null,null,null,null,null,null,null,null,null,null,null,133,null,133,"(137)"]
["134 (138)","Kristoffer Israelsson","Sibbamåla",193,null,1,96.5,null,null,null,null,null,null,193,null,null,null,null,null,null,null,null,null,null,null,null,null,18,"-","-",138,134,"-",134,null,null,1,1,1,1,1,2,2,1,1,1,1,1,1,1,0,1,1,1,1,null,2,null,null,193,"","","","","","","","","","","","","","","","-","-",14,null,193,null,null,null,null,null,null,null,null,null,null,null,null,null,null,null,null,null,null,null,null,null,null,null,null,null,null,null,null,null,null,null,null,null,null,null,null,null,null,null,null,null,null,null,null,null,null,null,null,null,null,null,null,null,null,null,null,null,null,null,null,null,null,135,null,134,"(138)"]
["135 (139)","Kjell Rydh","Korpen Nybro",187,null,1,93.5,null,null,null,null,null,null,null,null,null,null,null,null,187,null,null,null,null,null,null,null,18,"-","-",139,135,"-",135,null,null,1,1,1,1,1,1,1,1,1,1,1,2,2,1,0,1,1,1,1,null,2,null,null,187,"","","","","","","","","","","","","","","","-","-",14,null,187,null,null,null,null,null,null,null,null,null,null,null,null,null,null,null,null,null,null,null,null,null,null,null,null,null,null,null,null,null,null,null,null,null,null,null,null,null,null,null,null,null,null,null,null,null,null,null,null,null,null,null,null,null,null,null,null,null,null,null,null,null,null,136,null,135,"(139)"]
["135 (139)","Lena Johansson","Tingsryd",187,null,1,93.5,null,null,null,null,null,null,null,null,null,null,null,null,null,null,null,null,187,null,null,null,18,"-","-",139,135,"-",136,null,null,1,1,1,1,1,1,1,1,1,1,1,1,1,1,0,2,2,1,1,null,2,null,null,187,"","","","","","","","","","","","","","","","-","-",14,null,187,null,null,null,null,null,null,null,null,null,null,null,null,null,null,null,null,null,null,null,null,null,null,null,null,null,null,null,null,null,null,null,null,null,null,null,null,null,null,null,null,null,null,null,null,null,null,null,null,null,null,null,null,null,null,null,null,null,null,null,null,null,null,137,null,135,"(139)"]
["137 (141)","Judith Karlsson","Växjö Hsk",183,null,2,45.75,null,null,null,null,null,null,null,null,129,null,null,null,null,54,null,null,null,null,null,null,18,"-","-",141,137,137,137,null,null,1,1,1,1,1,1,1,2,2,1,1,1,2,2,0,1,1,1,1,null,2,null,null,129,54,"","","","","","","","","","","","","","","-","-",13,null,183,null,null,null,null,null,null,null,null,null,null,null,null,null,null,null,null,null,null,null,null,null,null,null,null,null,null,null,null,null,null,null,null,null,null,null,null,null,null,null,null,null,null,null,null,null,null,null,null,null,null,null,null,null,null,null,null,null,null,null,null,null,null,138,null,137,"(141)"]
["138 (142)","Patrick Axelsson","Alvesta",178,null,1,89,null,null,null,null,null,null,null,178,null,null,null,null,null,null,null,null,null,null,null,null,18,"-","-",142,138,"-",138,null,null,1,1,1,1,1,1,2,2,1,1,1,1,1,1,0,1,1,1,1,null,2,null,null,178,"","","","","","","","","","","","","","","","-","-",14,null,178,null,null,null,null,null,null,null,null,null,null,null,null,null,null,null,null,null,null,null,null,null,null,null,null,null,null,null,null,null,null,null,null,null,null,null,null,null,null,null,null,null,null,null,null,null,null,null,null,null,null,null,null,null,null,null,null,null,null,null,null,null,null,167,null,167,"(142)"]
["139 (144)","Börje Carlsson","Korpen Åseda",172,null,1,86,null,null,null,null,null,null,null,null,null,null,null,172,null,null,null,null,null,null,null,null,18,"-","-",144,139,"-",139,null,null,1,1,1,1,1,1,1,1,1,1,2,2,1,1,0,1,1,1,1,null,2,null,null,172,"","","","","","","","","","","","","","","","-","-",14,null,172,null,null,null,null,null,null,null,null,null,null,null,null,null,null,null,null,null,null,null,null,null,null,null,null,null,null,null,null,null,null,null,null,null,null,null,null,null,null,null,null,null,null,null,null,null,null,null,null,null,null,null,null,null,null,null,null,null,null,null,null,null,null,139,null,{"$f":"IF(BE143>=1,AF143,\"\")","v":139},"(144)"]
["140 (145)","Bill Bergman","Bergmans",169,null,1,84.5,null,null,null,null,null,null,null,169,null,null,null,null,null,null,null,null,null,null,null,null,18,"-","-",145,140,"-",140,null,null,1,1,1,1,1,1,2,2,1,1,1,1,1,1,0,1,1,1,1,null,2,null,null,169,"","","","","","","","","","","","","","","","-","-",14,null,169,null,null,null,null,null,null,null,null,null,null,null,null,null,null,null,null,null,null,null,null,null,null,null,null,null,null,null,null,null,null,null,null,null,null,null,null,null,null,null,null,null,null,null,null,null,null,null,null,null,null,null,null,null,null,null,null,null,null,null,null,null,null,140,null,{"$f":"IF(BE144>1,AF144,\"\")","v":140},"(145)"]
["141 (146)","Ola Frost","Sibbamåla",163,null,1,81.5,null,null,null,null,null,null,null,null,null,null,null,null,null,null,163,null,null,null,null,null,18,"-","-",146,141,"-",141,null,null,1,1,1,1,1,1,1,1,1,1,1,1,1,2,1,1,1,1,1,null,2,null,null,163,"","","","","","","","","","","","","","","","-","-",14,null,163,null,null,null,null,null,null,null,null,null,null,null,null,null,null,null,null,null,null,null,null,null,null,null,null,null,null,null,null,null,null,null,null,null,null,null,null,null,null,null,null,null,null,null,null,null,null,null,null,null,null,null,null,null,null,null,null,null,null,null,null,null,null,141,null,{"$f":"IF(BE145>=1,AF145,\"\")","v":141},"(146)"]
["142 (148)","Ulrich Hofer","Lanternan",162,null,1,81,null,null,null,null,null,null,null,null,null,null,162,null,null,null,null,null,null,null,null,null,18,"-","-",148,142,"-",142,null,null,1,1,1,1,1,1,1,1,1,2,2,1,1,1,0,1,1,1,1,null,2,null,null,162,"","","","","","","","","","","","","","","","-","-",14,null,162,null,null,null,null,null,null,null,null,null,null,null,null,null,null,null,null,null,null,null,null,null,null,null,null,null,null,null,null,null,null,null,null,null,null,null,null,null,null,null,null,null,null,null,null,null,null,null,null,null,null,null,null,null,null,null,null,null,null,null,null,null,null,142,null,{"$f":"IF(BE146>=1,AF146,\"\")","v":142},"(148)"]
["143 (120)","Magnus Stenberg","Hsk Tingzås",157,null,1,78.5,null,null,null,null,null,null,null,157,null,null,null,null,null,null,null,null,null,null,null,null,18,"-","-",120,143,"-",143,null,null,1,1,1,1,1,1,2,2,1,1,1,1,1,1,0,1,1,1,1,null,2,null,null,157,"","","","","","","","","","","","","","","","-","-",14,null,157,null,null,null,null,null,null,null,null,null,null,null,null,null,null,null,null,null,null,null,null,null,null,null,null,null,null,null,null,null,null,null,null,null,null,null,null,null,null,null,null,null,null,null,null,null,null,null,null,null,null,null,null,null,null,null,null,null,null,null,null,null,null,143,null,{"$f":"IF(BE147>=1,AF147,\"\")","v":143},"(120)"]
["144 (149)","Nathalie Jonasson","Team Småland Hsk",153,null,1,76.5,null,null,null,null,null,null,null,null,null,null,null,null,null,null,153,null,null,null,null,null,18,"-","-",149,144,"-",144,null,null,1,1,1,1,1,1,1,1,1,1,1,1,1,2,1,1,1,1,1,null,2,null,null,153,"","","","","","","","","","","","","","","","-","-",14,null,153,null,null,null,null,null,null,null,null,null,null,null,null,null,null,null,null,null,null,null,null,null,null,null,null,null,null,null,null,null,null,null,null,null,null,null,null,null,null,null,null,null,null,null,null,null,null,null,null,null,null,null,null,null,null,null,null,null,null,null,null,null,null,144,null,{"$f":"IF(BE148>=1,AF148,\"\")","v":144},"(149)"]
["145 (150)","Per-Åke Södergren","Cementa IF",151,null,1,75.5,null,null,null,null,null,null,null,151,null,null,null,null,null,null,null,null,null,null,null,null,18,"-","-",150,145,"-",145,null,null,1,1,1,1,1,1,2,2,1,1,1,1,1,1,0,1,1,1,1,null,2,null,null,151,"","","","","","","","","","","","","","","","-","-",14,null,151,null,null,null,null,null,null,null,null,null,null,null,null,null,null,null,null,null,null,null,null,null,null,null,null,null,null,null,null,null,null,null,null,null,null,null,null,null,null,null,null,null,null,null,null,null,null,null,null,null,null,null,null,null,null,null,null,null,null,null,null,null,null,145,null,{"$f":"IF(BE149>=1,AF149,\"\")","v":145},"(150)"]
["146 (152)","Peter Karlsson","Sibbamåla",143,null,1,71.5,null,null,143,null,null,null,null,null,null,null,null,null,null,null,null,null,null,null,null,null,18,"-","-",152,146,"-",146,null,null,1,2,2,1,1,1,1,1,1,1,1,1,1,1,0,1,1,1,1,null,2,null,null,143,"","","","","","","","","","","","","","","","-","-",14,null,143,null,null,null,null,null,null,null,null,null,null,null,null,null,null,null,null,null,null,null,null,null,null,null,null,null,null,null,null,null,null,null,null,null,null,null,null,null,null,null,null,null,null,null,null,null,null,null,null,null,null,null,null,null,null,null,null,null,null,null,null,null,null,175,null,{"$f":"IF(BE150>1,AF150,\"\")","v":146},"(152)"]
["147 (154)","Linda Belsing","Sibbamåla",139,null,1,69.5,null,null,139,null,null,null,null,null,null,null,null,null,null,null,null,null,null,null,null,null,18,"-","-",154,147,"-",147,null,null,1,2,2,1,1,1,1,1,1,1,1,1,1,1,0,1,1,1,1,null,2,null,null,139,"","","","","","","","","","","","","","","","-","-",14,null,139,null,null,null,null,null,null,null,null,null,null,null,null,null,null,null,null,null,null,null,null,null,null,null,null,null,null,null,null,null,null,null,null,null,null,null,null,null,null,null,null,null,null,null,null,null,null,null,null,null,null,null,null,null,null,null,null,null,null,null,null,null,null,146,null,{"$f":"IF(BE151>=1,AF151,\"\")","v":147},"(154)"]
["148 (155)","Kent-Åke Alriksson","Sibbamåla",135,null,1,67.5,null,null,null,null,null,null,null,null,null,135,null,null,null,null,null,null,null,null,null,null,18,"-","-",155,148,"-",148,null,null,1,1,1,1,1,1,1,1,2,2,1,1,1,1,0,1,1,1,1,null,2,null,null,135,"","","","","","","","","","","","","","","","-","-",14,null,135,null,null,null,null,null,null,null,null,null,null,null,null,null,null,null,null,null,null,null,null,null,null,null,null,null,null,null,null,null,null,null,null,null,null,null,null,null,null,null,null,null,null,null,null,null,null,null,null,null,null,null,null,null,null,null,null,null,null,null,null,null,null,147,null,148,"(155)"]
["148 (155)","Emma Svensson","Dynapac ",135,null,1,67.5,null,null,135,null,null,null,null,null,null,null,null,null,null,null,null,null,null,null,null,null,18,"-","-",155,148,"-",149,null,null,1,2,2,1,1,1,1,1,1,1,1,1,1,1,0,1,1,1,1,null,2,null,null,135,"","","","","","","","","","","","","","","","-","-",14,null,135,null,null,null,null,null,null,null,null,null,null,null,null,null,null,null,null,null,null,null,null,null,null,null,null,null,null,null,null,null,null,null,null,null,null,null,null,null,null,null,null,null,null,null,null,null,null,null,null,null,null,null,null,null,null,null,null,null,null,null,null,null,null,148,null,148,"(155)"]
["150 (157)","Bo Trulsson","Korpen Åseda",133,null,1,66.5,null,133,null,null,null,null,null,null,null,null,null,null,null,null,null,null,null,null,null,null,18,"-","-",157,150,"-",150,null,null,2,2,1,1,1,1,1,1,1,1,1,1,1,1,0,1,1,1,1,null,2,null,null,133,"","","","","","","","","","","","","","","","-","-",14,null,133,null,null,null,null,null,null,null,null,null,null,null,null,null,null,null,null,null,null,null,null,null,null,null,null,null,null,null,null,null,null,null,null,null,null,null,null,null,null,null,null,null,null,null,null,null,null,null,null,null,null,null,null,null,null,null,null,null,null,null,null,null,null,149,null,150,"(157)"]
["151 (125)","Patrik Glimfalk","Cementa IF",131,null,1,65.5,null,null,null,null,null,null,null,131,null,null,null,null,null,null,null,null,null,null,null,null,18,"-","-",125,151,"-",151,null,null,1,1,1,1,1,1,2,2,1,1,1,1,1,1,0,1,1,1,1,null,2,null,null,131,"","","","","","","","","","","","","","","","-","-",14,null,131,null,null,null,null,null,null,null,null,null,null,null,null,null,null,null,null,null,null,null,null,null,null,null,null,null,null,null,null,null,null,null,null,null,null,null,null,null,null,null,null,null,null,null,null,null,null,null,null,null,null,null,null,null,null,null,null,null,null,null,null,null,null,150,null,151,"(125)"]
["152 (158)","André Andersson","Cementa IF",129,null,1,64.5,null,null,null,null,null,null,null,129,null,null,null,null,null,null,null,null,null,null,null,null,18,"-","-",158,152,"-",152,null,null,1,1,1,1,1,1,2,2,1,1,1,1,1,1,0,1,1,1,1,null,2,null,null,129,"","","","","","","","","","","","","","","","-","-",14,null,129,null,null,null,null,null,null,null,null,null,null,null,null,null,null,null,null,null,null,null,null,null,null,null,null,null,null,null,null,null,null,null,null,null,null,null,null,null,null,null,null,null,null,null,null,null,null,null,null,null,null,null,null,null,null,null,null,null,null,null,null,null,null,151,null,152,"(158)"]
[{"$f":"IF(BE157>1,AF157&\" (\"&AE157&\")\",AF157&\" (\"&AG157&\")\")","v":"153 (159)"},"Lars-Olof Pettersson","Dynapac ",128,null,1,64,null,null,null,null,null,null,null,null,null,128,null,null,null,null,null,null,null,null,null,null,18,"-","-",159,{"$f":"IF(D157<D156,AH157,AF156)","v":153},"-",153,null,null,{"$f":"COUNT($I$3,I157,H157)","v":1},{"$f":"COUNT($J$3,J157,I157)","v":1},{"$f":"COUNT($K$3,K157,J157)","v":1},{"$f":"COUNT($L$3,L157,K157)","v":1},{"$f":"COUNT($M$3,M157,L157)","v":1},{"$f":"COUNT($N$3,N157,M157)","v":1},{"$f":"COUNT($O$3,O157,N157)","v":1},{"$f":"COUNT($P$3,P157,O157)","v":1},{"$f":"COUNT($Q$3,Q157,P157)","v":2},{"$f":"COUNT($R$3,R157,Q157)","v":2},{"$f":"COUNT($S$3,S157,R157)","v":1},{"$f":"COUNT($T$3,T157,S157)","v":1},{"$f":"COUNT($U$3,U157,T157)","v":1},{"$f":"COUNT($V$3,V157,U157)","v":1},{"$f":"COUNT($W$3,W157,V157)","v":0},{"$f":"COUNT($X$3,X157,W157)","v":1},{"$f":"COUNT($Y$3,Y157,X157)","v":1},{"$f":"COUNT($Z$3,Z157,Y157)","v":1},{"$f":"COUNT($AA$3,AA157,Z157)","v":1},null,{"$f":"IF(H157=\"x\",1,2)","v":2},null,null,{"$f":"IF($F157>0,LARGE($I157:$AA157,1),\"\")","v":128},{"$f":"IF($F157>1,LARGE($I157:$AA157,2),\"\")","v":""},{"$f":"IF($F157>2,LARGE($I157:$AA157,3),\"\")","v":""},{"$f":"IF($F157>3,LARGE($I157:$AA157,4),\"\")","v":""},{"$f":"IF($F157>4,LARGE($I157:$AA157,5),\"\")","v":""},{"$f":"IF($F157>5,LARGE($I157:$AA157,6),\"\")","v":""},{"$f":"IF($F157>6,LARGE($I157:$AA157,7),\"\")","v":""},{"$f":"IF($F157>7,LARGE($I157:$AA157,8),\"\")","v":""},{"$f":"IF($F157>8,LARGE($I157:$AA157,9),\"\")","v":""},{"$f":"IF($F157>9,LARGE($I157:$AA157,10),\"\")","v":""},{"$f":"IF($F157>10,LARGE($I157:$AA157,11),\"\")","v":""},{"$f":"IF($F157>11,LARGE($I157:$AA157,12),\"\")","v":""},{"$f":"IF($F157>12,LARGE($I157:$AA157,13),\"\")","v":""},{"$f":"IF($F157>13,LARGE($I157:$AA157,14),\"\")","v":""},{"$f":"IF($F157>14,LARGE($I157:$AA157,15),\"\")","v":""},"","-","-",14,null,128,null,null,null,null,null,null,null,null,null,null,null,null,null,null,null,null,null,null,null,null,null,null,null,null,null,null,null,null,null,null,null,null,null,null,null,null,null,null,null,null,null,null,null,null,null,null,null,null,null,null,null,null,null,null,null,null,null,null,null,null,null,null,184,null,{"$f":"IF(BE157>1,AF157,\"\")","v":153},"(159)"]
["154 (160)","Anton Wetterstrand","Cementa IF",123,null,1,61.5,null,null,null,null,null,null,null,123,null,null,null,null,null,null,null,null,null,null,null,null,18,"-","-",160,154,"-",154,null,null,1,1,1,1,1,1,2,2,1,1,1,1,1,1,0,1,1,1,1,null,2,null,null,123,"","","","","","","","","","","","","","","","-","-",14,null,123,null,null,null,null,null,null,null,null,null,null,null,null,null,null,null,null,null,null,null,null,null,null,null,null,null,null,null,null,null,null,null,null,null,null,null,null,null,null,null,null,null,null,null,null,null,null,null,null,null,null,null,null,null,null,null,null,null,null,null,null,null,null,152,null,{"$f":"IF(BE158>=1,AF158,\"\")","v":154},"(160)"]
["155 (161)","Robin Alriksson","Sibbamåla",119,null,1,59.5,null,null,null,null,null,null,null,null,null,119,null,null,null,null,null,null,null,null,null,null,18,"-","-",161,155,"-",155,null,null,1,1,1,1,1,1,1,1,2,2,1,1,1,1,0,1,1,1,1,null,2,null,null,119,"","","","","","","","","","","","","","","","-","-",14,null,119,null,null,null,null,null,null,null,null,null,null,null,null,null,null,null,null,null,null,null,null,null,null,null,null,null,null,null,null,null,null,null,null,null,null,null,null,null,null,null,null,null,null,null,null,null,null,null,null,null,null,null,null,null,null,null,null,null,null,null,null,null,null,153,null,155,"(161)"]
["156 (132)","Bengt-Arne Andersson","Mulde VK",116,null,1,58,null,null,null,null,null,null,null,116,null,null,null,null,null,null,null,null,null,null,null,null,18,"-","-",132,156,"-",156,null,null,1,1,1,1,1,1,2,2,1,1,1,1,1,1,0,1,1,1,1,null,2,null,null,116,"","","","","","","","","","","","","","","","-","-",14,null,116,null,null,null,null,null,null,null,null,null,null,null,null,null,null,null,null,null,null,null,null,null,null,null,null,null,null,null,null,null,null,null,null,null,null,null,null,null,null,null,null,null,null,null,null,null,null,null,null,null,null,null,null,null,null,null,null,null,null,null,null,null,null,154,null,156,"(132)"]
["157 (162)","Klas-Åke Lindström","Mulde VK",112,null,1,56,null,null,null,null,null,null,null,112,null,null,null,null,null,null,null,null,null,null,null,null,18,"-","-",162,157,"-",157,null,null,1,1,1,1,1,1,2,2,1,1,1,1,1,1,0,1,1,1,1,null,2,null,null,112,"","","","","","","","","","","","","","","","-","-",14,null,112,null,null,null,null,null,null,null,null,null,null,null,null,null,null,null,null,null,null,null,null,null,null,null,null,null,null,null,null,null,null,null,null,null,null,null,null,null,null,null,null,null,null,null,null,null,null,null,null,null,null,null,null,null,null,null,null,null,null,null,null,null,null,156,null,157,"(162)"]
["158 (164)","Alexander Storme","Hsk Tingzås",107,null,1,53.5,null,107,null,null,null,null,null,null,null,null,null,null,null,null,null,null,null,null,null,null,18,"-","-",164,158,"-",158,null,null,2,2,1,1,1,1,1,1,1,1,1,1,1,1,0,1,1,1,1,null,2,null,null,107,"","","","","","","","","","","","","","","","-","-",14,null,107,null,null,null,null,null,null,null,null,null,null,null,null,null,null,null,null,null,null,null,null,null,null,null,null,null,null,null,null,null,null,null,null,null,null,null,null,null,null,null,null,null,null,null,null,null,null,null,null,null,null,null,null,null,null,null,null,null,null,null,null,null,null,157,null,158,"(164)"]
["159 (165)","Therese Frost","Sibbamåla",98,null,1,49,null,null,null,null,null,null,null,null,null,null,null,null,null,null,98,null,null,null,null,null,18,"-","-",165,159,"-",159,null,null,1,1,1,1,1,1,1,1,1,1,1,1,1,2,1,1,1,1,1,null,2,null,null,98,"","","","","","","","","","","","","","","","-","-",14,null,98,null,null,null,null,null,null,null,null,null,null,null,null,null,null,null,null,null,null,null,null,null,null,null,null,null,null,null,null,null,null,null,null,null,null,null,null,null,null,null,null,null,null,null,null,null,null,null,null,null,null,null,null,null,null,null,null,null,null,null,null,null,null,158,null,159,"(165)"]
["160 (166)","Niclas Gunnarsson","Sibbamåla",94,null,1,47,null,null,null,null,null,null,null,null,null,null,null,null,null,null,94,null,null,null,null,null,18,"-","-",166,160,159,160,null,null,1,1,1,1,1,1,1,1,1,1,1,1,1,2,1,1,1,1,1,null,2,null,null,94,"","","","","","","","","","","","","","","","-","-",14,null,94,null,null,null,null,null,null,null,null,null,null,null,null,null,null,null,null,null,null,null,null,null,null,null,null,null,null,null,null,null,null,null,null,null,null,null,null,null,null,null,null,null,null,null,null,null,null,null,null,null,null,null,null,null,null,null,null,null,null,null,null,null,null,159,null,160,"(166)"]
["161 (167)","Göran Brincner","Värends Hsk",91,null,1,45.5,null,null,null,null,null,null,null,null,null,null,null,null,91,null,null,null,null,null,null,null,18,"-","-",167,161,{"$f":"IF(F165>1,ROW(161:161),\"-\")","v":"-"},161,null,null,1,1,1,1,1,1,1,1,1,1,1,2,2,1,0,1,1,1,1,null,2,null,null,91,"","","","","","","","","","","","","","","","-","-",14,null,91,null,null,null,null,null,null,null,null,null,null,null,null,null,null,null,null,null,null,null,null,null,null,null,null,null,null,null,null,null,null,null,null,null,null,null,null,null,null,null,null,null,null,null,null,null,null,null,null,null,null,null,null,null,null,null,null,null,null,null,null,null,null,206,null,{"$f":"IF(BE165>1,AF165,\"\")","v":161},"(167)"]
["162 (169)","Margareta Lundqvist","Växjö Bs",86,null,1,43,null,null,null,null,null,null,null,null,null,null,null,null,null,null,null,null,null,null,86,null,18,"-","-",169,162,"-",162,null,null,1,1,1,1,1,1,1,1,1,1,1,1,1,1,0,1,1,2,2,null,2,null,null,86,"","","","","","","","","","","","","","","","-","-",14,null,86,null,null,null,null,null,null,null,null,null,null,null,null,null,null,null,null,null,null,null,null,null,null,null,null,null,null,null,null,null,null,null,null,null,null,null,null,null,null,null,null,null,null,null,null,null,null,null,null,null,null,null,null,null,null,null,null,null,null,null,null,null,null,160,null,{"$f":"IF(BE166>=1,AF166,\"\")","v":162},"(169)"]
["162 (169)","Anna Stenberg","Hsk Tingzås",86,null,1,43,null,null,null,null,null,null,null,86,null,null,null,null,null,null,null,null,null,null,null,null,18,"-","-",169,162,"-",163,null,null,1,1,1,1,1,1,2,2,1,1,1,1,1,1,0,1,1,1,1,null,2,null,null,86,"","","","","","","","","","","","","","","","-","-",14,null,86,null,null,null,null,null,null,null,null,null,null,null,null,null,null,null,null,null,null,null,null,null,null,null,null,null,null,null,null,null,null,null,null,null,null,null,null,null,null,null,null,null,null,null,null,null,null,null,null,null,null,null,null,null,null,null,null,null,null,null,null,null,null,161,null,161,"(169)"]
["164 (146)","Rasmus Johansson","Cementa IF",85,null,1,42.5,null,null,null,null,null,null,null,85,null,null,null,null,null,null,null,null,null,null,null,null,18,"-","-",146,164,"-",164,null,null,1,1,1,1,1,1,2,2,1,1,1,1,1,1,0,1,1,1,1,null,2,null,null,85,"","","","","","","","","","","","","","","","-","-",14,null,85,null,null,null,null,null,null,null,null,null,null,null,null,null,null,null,null,null,null,null,null,null,null,null,null,null,null,null,null,null,null,null,null,null,null,null,null,null,null,null,null,null,null,null,null,null,null,null,null,null,null,null,null,null,null,null,null,null,null,null,null,null,null,162,null,{"$f":"IF(BE168>1,AF168,\"\")","v":164},"(146)"]
["164 (171)","Roger Frost","Sibbamåla",85,null,1,42.5,null,null,null,null,null,null,null,null,null,null,null,null,null,null,85,null,null,null,null,null,18,"-","-",171,164,"-",165,null,null,1,1,1,1,1,1,1,1,1,1,1,1,1,2,1,1,1,1,1,null,2,null,null,85,"","","","","","","","","","","","","","","","-","-",14,null,85,null,null,null,null,null,null,null,null,null,null,null,null,null,null,null,null,null,null,null,null,null,null,null,null,null,null,null,null,null,null,null,null,null,null,null,null,null,null,null,null,null,null,null,null,null,null,null,null,null,null,null,null,null,null,null,null,null,null,null,null,null,null,163,null,{"$f":"IF(BE169>1,AF169,\"\")","v":164},"(171)"]
["166 (172)","Ella Johansson","Dynapac ",80,null,1,40,null,null,null,null,null,null,null,null,null,80,null,null,null,null,null,null,null,null,null,null,18,"-","-",172,166,"-",166,null,null,1,1,1,1,1,1,1,1,2,2,1,1,1,1,0,1,1,1,1,null,2,null,null,80,"","","","","","","","","","","","","","","","-","-",14,null,80,null,null,null,null,null,null,null,null,null,null,null,null,null,null,null,null,null,null,null,null,null,null,null,null,null,null,null,null,null,null,null,null,null,null,null,null,null,null,null,null,null,null,null,null,null,null,null,null,null,null,null,null,null,null,null,null,null,null,null,null,null,null,164,null,{"$f":"IF(BE170>1,AF170,\"\")","v":166},"(172)"]
["167 (174)","Nellie Persson","Tingsryd",75,null,2,18.75,null,null,null,45,30,null,null,null,null,null,null,null,null,null,null,null,null,null,null,null,18,"-","-",174,167,167,167,null,null,1,1,2,3,2,1,1,1,1,1,1,1,1,1,0,1,1,1,1,null,2,null,null,45,30,"","","","","","","","","","","","","","","-","-",13,null,75,null,null,null,null,null,null,null,null,null,null,null,null,null,null,null,null,null,null,null,null,null,null,null,null,null,null,null,null,null,null,null,null,null,null,null,null,null,null,null,null,null,null,null,null,null,null,null,null,null,null,null,null,null,null,null,null,null,null,null,null,null,null,165,null,{"$f":"IF(BE171>1,AF171,\"\")","v":167},"(174)"]
["168 (176)","Birgitta Westerlund","Växjö Bs",74,null,1,37,null,null,null,null,null,null,null,null,null,null,null,null,null,null,null,null,null,null,74,null,18,"-","-",176,168,"-",168,null,null,1,1,1,1,1,1,1,1,1,1,1,1,1,1,0,1,1,2,2,null,2,null,null,74,"","","","","","","","","","","","","","","","-","-",14,null,74,null,null,null,null,null,null,null,null,null,null,null,null,null,null,null,null,null,null,null,null,null,null,null,null,null,null,null,null,null,null,null,null,null,null,null,null,null,null,null,null,null,null,null,null,null,null,null,null,null,null,null,null,null,null,null,null,null,null,null,null,null,null,195,null,{"$f":"IF(BE172>1,AF172,\"\")","v":168},"(176)"]
["168 (176)","Göte Rosberg","Korpen Åseda",74,null,1,37,null,null,null,null,null,null,null,null,null,null,null,74,null,null,null,null,null,null,null,null,18,"-","-",176,168,"-",169,null,null,1,1,1,1,1,1,1,1,1,1,2,2,1,1,0,1,1,1,1,null,2,null,null,74,"","","","","","","","","","","","","","","","-","-",14,null,74,null,null,null,null,null,null,null,null,null,null,null,null,null,null,null,null,null,null,null,null,null,null,null,null,null,null,null,null,null,null,null,null,null,null,null,null,null,null,null,null,null,null,null,null,null,null,null,null,null,null,null,null,null,null,null,null,null,null,null,null,null,null,134,null,{"$f":"IF(BE173>=1,AF173,\"\")","v":168},"(176)"]
["170 (178)","Gustav Södergren","Cementa IF",72,null,1,36,null,null,null,null,null,null,null,72,null,null,null,null,null,null,null,null,null,null,null,null,18,"-","-",178,170,"-",170,null,null,1,1,1,1,1,1,2,2,1,1,1,1,1,1,0,1,1,1,1,null,2,null,null,72,"","","","","","","","","","","","","","","","-","-",14,null,72,null,null,null,null,null,null,null,null,null,null,null,null,null,null,null,null,null,null,null,null,null,null,null,null,null,null,null,null,null,null,null,null,null,null,null,null,null,null,null,null,null,null,null,null,null,null,null,null,null,null,null,null,null,null,null,null,null,null,null,null,null,null,166,null,{"$f":"IF(BE174>1,AF174,\"\")","v":170},"(178)"]
["171 (179)","Thorgny Björkqvist","Tingsryd",71,null,1,35.5,null,null,null,null,null,null,null,71,null,null,null,null,null,null,null,null,null,null,null,null,18,"-","-",179,171,"-",171,null,null,1,1,1,1,1,1,2,2,1,1,1,1,1,1,0,1,1,1,1,null,2,null,null,71,"","","","","","","","","","","","","","","","-","-",14,null,71,null,null,null,null,null,null,null,null,null,null,null,null,null,null,null,null,null,null,null,null,null,null,null,null,null,null,null,null,null,null,null,null,null,null,null,null,null,null,null,null,null,null,null,null,null,null,null,null,null,null,null,null,null,null,null,null,null,null,null,null,null,null,168,null,168,"(179)"]
["171 (179)","Åke Lönnqvist","Växjö Bs",71,null,1,35.5,null,null,null,null,null,null,null,null,null,null,null,null,null,null,null,null,null,null,71,null,18,"-","-",179,171,"-",172,null,null,1,1,1,1,1,1,1,1,1,1,1,1,1,1,0,1,1,2,2,null,2,null,null,71,null,null,null,null,null,null,null,null,null,null,null,null,null,null,"","-","-",14,null,71,null,null,null,null,null,null,null,null,null,null,null,null,null,null,null,null,null,null,null,null,null,null,null,null,null,null,null,null,null,null,null,null,null,null,null,null,null,null,null,null,null,null,null,null,null,null,null,null,null,null,null,null,null,null,null,null,null,null,null,null,null,null,215,null,{"$f":"IF(BE176>1,AF176,\"\")","v":171},"(179)"]
["173 (181)","Ingegerd Sjöstrand","Hsk Tingzås",67,null,1,33.5,null,67,null,null,null,null,null,null,null,null,null,null,null,null,null,null,null,null,null,null,18,"-","-",181,173,"-",173,null,null,2,2,1,1,1,1,1,1,1,1,1,1,1,1,0,1,1,1,1,null,2,null,null,67,{"$f":"IF($F177>1,LARGE($I177:$AA177,2),\"\")","v":""},{"$f":"IF($F177>2,LARGE($I177:$AA177,3),\"\")","v":""},{"$f":"IF($F177>3,LARGE($I177:$AA177,4),\"\")","v":""},{"$f":"IF($F177>4,LARGE($I177:$AA177,5),\"\")","v":""},{"$f":"IF($F177>5,LARGE($I177:$AA177,6),\"\")","v":""},{"$f":"IF($F177>6,LARGE($I177:$AA177,7),\"\")","v":""},{"$f":"IF($F177>7,LARGE($I177:$AA177,8),\"\")","v":""},{"$f":"IF($F177>8,LARGE($I177:$AA177,9),\"\")","v":""},{"$f":"IF($F177>9,LARGE($I177:$AA177,10),\"\")","v":""},{"$f":"IF($F177>10,LARGE($I177:$AA177,11),\"\")","v":""},{"$f":"IF($F177>11,LARGE($I177:$AA177,12),\"\")","v":""},{"$f":"IF($F177>12,LARGE($I177:$AA177,13),\"\")","v":""},{"$f":"IF($F177>13,LARGE($I177:$AA177,14),\"\")","v":""},{"$f":"IF($F177>14,LARGE($I177:$AA177,15),\"\")","v":""},"","-","-",14,null,67,null,null,null,null,null,null,null,null,null,null,null,null,null,null,null,null,null,null,null,null,null,null,null,null,null,null,null,null,null,null,null,null,null,null,null,null,null,null,null,null,null,null,null,null,null,null,null,null,null,null,null,null,null,null,null,null,null,null,null,null,null,null,188,null,188,"(181)"]
["174 (182)","Ronald Bergman","Bergmans",66,null,1,33,null,null,null,null,null,null,null,66,null,null,null,null,null,null,null,null,null,null,null,null,18,"-","-",182,174,"-",174,null,null,1,1,1,1,1,1,2,2,1,1,1,1,1,1,0,1,1,1,1,null,2,null,null,66,"","","","","","","","","","","","","","","","-","-",14,null,66,null,null,null,null,null,null,null,null,null,null,null,null,null,null,null,null,null,null,null,null,null,null,null,null,null,null,null,null,null,null,null,null,null,null,null,null,null,null,null,null,null,null,null,null,null,null,null,null,null,null,null,null,null,null,null,null,null,null,null,null,null,null,170,null,{"$f":"IF(BE178>1,AF178,\"\")","v":174},"(182)"]
["175 (152)","Ulf Stenberg","Mulde VK",65,null,1,32.5,null,null,null,null,null,null,null,65,null,null,null,null,null,null,null,null,null,null,null,null,18,"-","-",152,175,"-",175,null,null,1,1,1,1,1,1,2,2,1,1,1,1,1,1,0,1,1,1,1,null,2,null,null,65,"","","","","","","","","","","","","","","","-","-",14,null,65,null,null,null,null,null,null,null,null,null,null,null,null,null,null,null,null,null,null,null,null,null,null,null,null,null,null,null,null,null,null,null,null,null,null,null,null,null,null,null,null,null,null,null,null,null,null,null,null,null,null,null,null,null,null,null,null,null,null,null,null,null,null,171,null,175,"(152)"]
["176 (184)","Carl-Axel Moberg","Växjö Bs",51,null,1,25.5,null,null,null,null,null,null,null,null,null,null,null,null,null,null,null,null,null,null,51,null,18,"-","-",184,176,"-",176,null,null,1,1,1,1,1,1,1,1,1,1,1,1,1,1,0,1,1,2,2,null,2,null,null,51,"","","","","","","","","","","","","","","","-","-",14,null,51,null,null,null,null,null,null,null,null,null,null,null,null,null,null,null,null,null,null,null,null,null,null,null,null,null,null,null,null,null,null,null,null,null,null,null,null,null,null,null,null,null,null,null,null,null,null,null,null,null,null,null,null,null,null,null,null,null,null,null,null,null,null,172,null,176,"(184)"]
["177 (186)","Birgitta Lagerström","Lanternan",41,null,1,20.5,null,null,null,null,null,null,null,null,null,null,41,null,null,null,null,null,null,null,null,null,18,"-","-",186,177,"-",177,null,null,1,1,1,1,1,1,1,1,1,2,2,1,1,1,0,1,1,1,1,null,2,null,null,41,"","","","","","","","","","","","","","","","-","-",14,null,41,null,null,null,null,null,null,null,null,null,null,null,null,null,null,null,null,null,null,null,null,null,null,null,null,null,null,null,null,null,null,null,null,null,null,null,null,null,null,null,null,null,null,null,null,null,null,null,null,null,null,null,null,null,null,null,null,null,null,null,null,null,null,173,null,177,"(186)"]
["178 (187)","Lisbetha Andersson","Lanternan",27,null,1,13.5,null,null,null,null,null,null,null,null,null,null,27,null,null,null,null,null,null,null,null,null,18,"-","-",187,178,"-",178,null,null,1,1,1,1,1,1,1,1,1,2,2,1,1,1,0,1,1,1,1,null,2,null,null,27,"","","","","","","","","","","","","","","","-","-",14,null,27,null,null,null,null,null,null,null,null,null,null,null,null,null,null,null,null,null,null,null,null,null,null,null,null,null,null,null,null,null,null,null,null,null,null,null,null,null,null,null,null,null,null,null,null,null,null,null,null,null,null,null,null,null,null,null,null,null,null,null,null,null,null,174,null,178,"(187)"]
["179 (188)","Susanne Bergman","Bergmans",20,null,1,10,null,null,null,null,null,null,null,20,null,null,null,null,null,null,null,null,null,null,null,null,18,"-","-",188,179,"-",179,null,null,1,1,1,1,1,1,2,2,1,1,1,1,1,1,0,1,1,1,1,null,2,null,null,20,"","","","","","","","","","","","","","","","-","-",14,null,20,null,null,null,null,null,null,null,null,null,null,null,null,null,null,null,null,null,null,null,null,null,null,null,null,null,null,null,null,null,null,null,null,null,null,null,null,null,null,null,null,null,null,null,null,null,null,null,null,null,null,null,null,null,null,null,null,null,null,null,null,null,null,182,null,179,"(188)"]
["180 (189)","Cathy Seventer","Bergmans",6,null,1,3,null,null,null,null,null,null,null,6,null,null,null,null,null,null,null,null,null,null,null,null,18,"-","-",189,180,"-",180,null,null,1,1,1,1,1,1,2,2,1,1,1,1,1,1,0,1,1,1,1,null,2,null,null,6,"","","","","","","","","","","","","","","","-","-",14,null,6,null,null,null,null,null,null,null,null,null,null,null,null,null,null,null,null,null,null,null,null,null,null,null,null,null,null,null,null,null,null,null,null,null,null,null,null,null,null,null,null,null,null,null,null,null,null,null,null,null,null,null,null,null,null,null,null,null,null,null,null,null,null,176,null,180,"(189)"]
["181 (134)",null,null,0,null,0,{"$error":"#DIV/0!"},null,null,null,null,null,null,null,null,null,null,null,null,null,null,null,null,null,null,null,null,18,"-","-",134,181,"-",181,null,null,1,1,1,1,1,1,1,1,1,1,1,1,1,1,0,1,1,1,1,null,2,null,null,"","","","","","","","","","","","","","","","","-","-",15,null,0,null,null,null,null,null,null,null,null,null,null,null,null,null,null,null,null,null,null,null,null,null,null,null,null,null,null,null,null,null,null,null,null,null,null,null,null,null,null,null,null,null,null,null,null,null,null,null,null,null,null,null,null,null,null,null,null,null,null,null,null,null,null,202,null,181,"(134)"]
["181 (142)",null,null,0,null,0,{"$error":"#DIV/0!"},null,null,null,null,null,null,null,null,null,null,null,null,null,null,null,null,null,null,null,null,18,"-","-",142,181,"-",182,null,null,1,1,1,1,1,1,1,1,1,1,1,1,1,1,0,1,1,1,1,null,2,null,null,"","","","","","","","","","","","","","","","","-","-",15,null,0,null,null,null,null,null,null,null,null,null,null,null,null,null,null,null,null,null,null,null,null,null,null,null,null,null,null,null,null,null,null,null,null,null,null,null,null,null,null,null,null,null,null,null,null,null,null,null,null,null,null,null,null,null,null,null,null,null,null,null,null,null,null,177,null,177,"(142)"]
["181 (150)",null,null,0,null,0,{"$error":"#DIV/0!"},null,null,null,null,null,null,null,null,null,null,null,null,null,null,null,null,null,null,null,null,18,"-","-",150,181,"-",183,null,null,1,1,1,1,1,1,1,1,1,1,1,1,1,1,0,1,1,1,1,null,2,null,null,"","","","","","","","","","","","","","","","","-","-",15,null,0,null,null,null,null,null,null,null,null,null,null,null,null,null,null,null,null,null,null,null,null,null,null,null,null,null,null,null,null,null,null,null,null,null,null,null,null,null,null,null,null,null,null,null,null,null,null,null,null,null,null,null,null,null,null,null,null,null,null,null,null,null,null,178,null,{"$f":"IF(BE187>1,AF187,\"\")","v":181},"(150)"]
["181 (162)",null,null,0,null,0,{"$error":"#DIV/0!"},null,null,null,null,null,null,null,null,null,null,null,null,null,null,null,null,null,null,null,null,18,"-","-",162,181,"-",184,null,null,1,1,1,1,1,1,1,1,1,1,1,1,1,1,0,1,1,1,1,null,2,null,null,"","","","","","","","","","","","","","","","","-","-",15,null,0,null,null,null,null,null,null,null,null,null,null,null,null,null,null,null,null,null,null,null,null,null,null,null,null,null,null,null,null,null,null,null,null,null,null,null,null,null,null,null,null,null,null,null,null,null,null,null,null,null,null,null,null,null,null,null,null,null,null,null,null,null,null,179,null,179,"(162)"]
[{"$f":"IF(BE189>1,AF189&\" (\"&AE189&\")\",AF189&\" (\"&AG189&\")\")","v":"181 (167)"},null,null,0,null,0,{"$error":"#DIV/0!"},null,null,null,null,null,null,null,null,null,null,null,null,null,null,null,null,null,null,null,null,18,"-","-",167,181,"-",185,null,null,1,1,1,1,1,1,1,1,1,1,1,1,1,1,0,1,1,1,1,null,2,null,null,"","","","","","","","","","","","","","","","","-","-",15,null,0,null,null,null,null,null,null,null,null,null,null,null,null,null,null,null,null,null,null,null,null,null,null,null,null,null,null,null,null,null,null,null,null,null,null,null,null,null,null,null,null,null,null,null,null,null,null,null,null,null,null,null,null,null,null,null,null,null,null,null,null,null,null,180,null,{"$f":"IF(BE189>1,AF189,\"\")","v":181},"(167)"]
["181 (172)",null,null,0,null,0,{"$error":"#DIV/0!"},null,null,null,null,null,null,null,null,null,null,null,null,null,null,null,null,null,null,null,null,18,"-","-",172,181,"-",186,null,null,1,1,1,1,1,1,1,1,1,1,1,1,1,1,0,1,1,1,1,null,2,null,null,"","","","","","","","","","","","","","","","","-","-",15,null,0,null,null,null,null,null,null,null,null,null,null,null,null,null,null,null,null,null,null,null,null,null,null,null,null,null,null,null,null,null,null,null,null,null,null,null,null,null,null,null,null,null,null,null,null,null,null,null,null,null,null,null,null,null,null,null,null,null,null,null,null,null,null,181,null,{"$f":"IF(BE190>1,AF190,\"\")","v":181},"(172)"]
["181 (174)",null,null,0,null,0,{"$error":"#DIV/0!"},null,null,null,null,null,null,null,null,null,null,null,null,null,null,null,null,null,null,null,null,18,"-","-",174,181,"-",187,null,null,1,1,1,1,1,1,1,1,1,1,1,1,1,1,0,1,1,1,1,null,2,null,null,"","","","","","","","","","","","","","","","","-","-",15,null,0,null,null,null,null,null,null,null,null,null,null,null,null,null,null,null,null,null,null,null,null,null,null,null,null,null,null,null,null,null,null,null,null,null,null,null,null,null,null,null,null,null,null,null,null,null,null,null,null,null,null,null,null,null,null,null,null,null,null,null,null,null,null,155,null,{"$f":"IF(BE191>=1,AF191,\"\")","v":181},"(174)"]
["181 (182)",null,null,0,null,0,{"$error":"#DIV/0!"},null,null,null,null,null,null,null,null,null,null,null,null,null,null,null,null,null,null,null,null,18,"-","-",182,181,"-",188,null,null,1,1,1,1,1,1,1,1,1,1,1,1,1,1,0,1,1,1,1,null,2,null,null,"","","","","","","","","","","","","","","","","-","-",15,null,0,null,null,null,null,null,null,null,null,null,null,null,null,null,null,null,null,null,null,null,null,null,null,null,null,null,null,null,null,null,null,null,null,null,null,null,null,null,null,null,null,null,null,null,null,null,null,null,null,null,null,null,null,null,null,null,null,null,null,null,null,null,null,183,null,{"$f":"IF(BE192>1,AF192,\"\")","v":181},"(182)"]
["181 (184)",null,null,0,null,0,{"$error":"#DIV/0!"},null,null,null,null,null,null,null,null,null,null,null,null,null,null,null,null,null,null,null,null,18,"-","-",184,181,"-",189,null,null,1,1,1,1,1,1,1,1,1,1,1,1,1,1,0,1,1,1,1,null,2,null,null,"","","","","","","","","","","","","","","","","-","-",15,null,0,null,null,null,null,null,null,null,null,null,null,null,null,null,null,null,null,null,null,null,null,null,null,null,null,null,null,null,null,null,null,null,null,null,null,null,null,null,null,null,null,null,null,null,null,null,null,null,null,null,null,null,null,null,null,null,null,null,null,null,null,null,null,185,null,181,"(184)"]
["181 (190)",null,null,0,null,0,{"$error":"#DIV/0!"},null,null,null,null,null,null,null,null,null,null,null,null,null,null,null,null,null,null,null,null,18,"-","-",190,181,"-",190,null,null,1,1,1,1,1,1,1,1,1,1,1,1,1,1,0,1,1,1,1,null,2,null,null,"","","","","","","","","","","","","","","","","-","-",15,null,0,null,null,null,null,null,null,null,null,null,null,null,null,null,null,null,null,null,null,null,null,null,null,null,null,null,null,null,null,null,null,null,null,null,null,null,null,null,null,null,null,null,null,null,null,null,null,null,null,null,null,null,null,null,null,null,null,null,null,null,null,null,null,186,null,181,"(190)"]
["181 (190)",null,null,0,null,0,{"$error":"#DIV/0!"},null,null,null,null,null,null,null,null,null,null,null,null,null,null,null,null,null,null,null,null,18,"-","-",190,181,"-",191,null,null,1,1,1,1,1,1,1,1,1,1,1,1,1,1,0,1,1,1,1,null,2,null,null,"","","","","","","","","","","","","","","","","-","-",15,null,0,null,null,null,null,null,null,null,null,null,null,null,null,null,null,null,null,null,null,null,null,null,null,null,null,null,null,null,null,null,null,null,null,null,null,null,null,null,null,null,null,null,null,null,null,null,null,null,null,null,null,null,null,null,null,null,null,null,null,null,null,null,null,187,null,181,"(190)"]
["181 (190)",null,null,0,null,0,{"$error":"#DIV/0!"},null,null,null,null,null,null,null,null,null,null,null,null,null,null,null,null,null,null,null,null,18,"-","-",190,181,"-",192,null,null,1,1,1,1,1,1,1,1,1,1,1,1,1,1,0,1,1,1,1,null,2,null,null,"","","","","","","","","","","","","","","","","-","-",15,null,0,null,null,null,null,null,null,null,null,null,null,null,null,null,null,null,null,null,null,null,null,null,null,null,null,null,null,null,null,null,null,null,null,null,null,null,null,null,null,null,null,null,null,null,null,null,null,null,null,null,null,null,null,null,null,null,null,null,null,null,null,null,null,205,null,181,"(190)"]
["181 (190)",null,null,{"$f":"SUM(BH197:BT197)","v":0},null,{"$f":"COUNT(I197:AA197)","v":0},{"$f":"SUM((CB197)/(F197*2))","v":{"$error":"#DIV/0!"}},null,null,null,null,null,null,null,null,null,null,null,null,null,null,null,null,null,null,null,null,{"$f":"SUM($I$3:$AA$3)","v":18},{"$f":"BX197","v":"-"},{"$f":"BY197","v":"-"},190,181,{"$f":"IF(F197>1,ROW(193:193),\"-\")","v":"-"},193,null,null,1,1,1,1,1,1,1,1,1,1,1,1,1,1,0,1,1,1,1,null,2,null,null,"",null,null,null,null,null,null,null,null,null,null,null,null,null,null,"","-","-",{"$f":"SUM(AB197-F197)-3","v":15},null,{"$f":"SUM(BH197:BW197)","v":0},null,null,null,null,null,null,null,null,null,null,null,null,null,null,null,null,null,null,null,null,null,null,null,null,null,null,null,null,null,null,null,null,null,null,null,null,null,null,null,null,null,null,null,null,null,null,null,null,null,null,null,null,null,null,null,null,null,null,null,null,null,null,216,null,181,{"$f":"IF(BE197>1,\"(\"&AE197&\")\",\"(\"&AG197&\")\")","v":"(190)"}]
["181 (190)",null,null,0,null,0,{"$error":"#DIV/0!"},null,null,null,null,null,null,null,null,null,null,null,null,null,null,null,null,null,null,null,null,18,"-","-",190,181,"-",194,null,null,1,1,1,1,1,1,1,1,1,1,1,1,1,1,0,1,1,1,1,null,2,null,null,"",{"$f":"IF($F198>1,LARGE($I198:$AA198,2),\"\")","v":""},{"$f":"IF($F198>2,LARGE($I198:$AA198,3),\"\")","v":""},{"$f":"IF($F198>3,LARGE($I198:$AA198,4),\"\")","v":""},{"$f":"IF($F198>4,LARGE($I198:$AA198,5),\"\")","v":""},{"$f":"IF($F198>5,LARGE($I198:$AA198,6),\"\")","v":""},{"$f":"IF($F198>6,LARGE($I198:$AA198,7),\"\")","v":""},{"$f":"IF($F198>7,LARGE($I198:$AA198,8),\"\")","v":""},{"$f":"IF($F198>8,LARGE($I198:$AA198,9),\"\")","v":""},{"$f":"IF($F198>9,LARGE($I198:$AA198,10),\"\")","v":""},{"$f":"IF($F198>10,LARGE($I198:$AA198,11),\"\")","v":""},{"$f":"IF($F198>11,LARGE($I198:$AA198,12),\"\")","v":""},{"$f":"IF($F198>12,LARGE($I198:$AA198,13),\"\")","v":""},{"$f":"IF($F198>13,LARGE($I198:$AA198,14),\"\")","v":""},{"$f":"IF($F198>14,LARGE($I198:$AA198,15),\"\")","v":""},{"$f":"IF($F198>15,LARGE($I198:$AA198,16),\"\")","v":""},{"$f":"IF($F198>14,LARGE($I198:$AA198,15),\"-\")","v":"-"},{"$f":"IF($F198>15,LARGE($I198:$AA198,16),\"-\")","v":"-"},15,null,0,null,null,null,null,null,null,null,null,null,null,null,null,null,null,null,null,null,null,null,null,null,null,null,null,null,null,null,null,null,null,null,null,null,null,null,null,null,null,null,null,null,null,null,null,null,null,null,null,null,null,null,null,null,null,null,null,null,null,null,null,null,null,189,null,181,"(190)"]
["181 (190)",null,null,0,null,0,{"$error":"#DIV/0!"},null,null,null,null,null,null,null,null,null,null,null,null,null,null,null,null,null,null,null,null,18,"-","-",190,181,"-",195,null,null,1,1,1,1,1,1,1,1,1,1,1,1,1,1,0,1,1,1,1,null,2,null,null,"","","","","","","","","","","","","","","","","-","-",15,null,0,null,null,null,null,null,null,null,null,null,null,null,null,null,null,null,null,null,null,null,null,null,null,null,null,null,null,null,null,null,null,null,null,null,null,null,null,null,null,null,null,null,null,null,null,null,null,null,null,null,null,null,null,null,null,null,null,null,null,null,null,null,null,190,null,181,"(190)"]
["181 (190)",null,null,0,null,0,{"$error":"#DIV/0!"},null,null,null,null,null,null,null,null,null,null,null,null,null,null,null,null,null,null,null,null,18,"-","-",190,181,"-",196,null,null,1,1,1,1,1,1,1,1,1,1,1,1,1,1,0,1,1,1,1,null,2,null,null,"","","","","","","","","","","","","","","","","-","-",15,null,0,null,null,null,null,null,null,null,null,null,null,null,null,null,null,null,null,null,null,null,null,null,null,null,null,null,null,null,null,null,null,null,null,null,null,null,null,null,null,null,null,null,null,null,null,null,null,null,null,null,null,null,null,null,null,null,null,null,null,null,null,null,null,191,null,181,"(190)"]
["181 (190)",null,null,0,null,0,{"$error":"#DIV/0!"},null,null,null,null,null,null,null,null,null,null,null,null,null,null,null,null,null,null,null,null,18,"-","-",190,181,"-",197,null,null,1,1,1,1,1,1,1,1,1,1,1,1,1,1,0,1,1,1,1,null,2,null,null,"","","","","","","","","","","","","","","","","-","-",15,null,0,null,null,null,null,null,null,null,null,null,null,null,null,null,null,null,null,null,null,null,null,null,null,null,null,null,null,null,null,null,null,null,null,null,null,null,null,null,null,null,null,null,null,null,null,null,null,null,null,null,null,null,null,null,null,null,null,null,null,null,null,null,null,192,null,181,"(190)"]
["181 (190)",null,null,0,null,0,{"$error":"#DIV/0!"},null,null,null,null,null,null,null,null,null,null,null,null,null,null,null,null,null,null,null,null,18,"-","-",190,181,"-",198,null,null,1,1,1,1,1,1,1,1,1,1,1,1,1,1,0,1,1,1,1,null,2,null,null,"","","","","","","","","","","","","","","","","-","-",15,null,0,null,null,null,null,null,null,null,null,null,null,null,null,null,null,null,null,null,null,null,null,null,null,null,null,null,null,null,null,null,null,null,null,null,null,null,null,null,null,null,null,null,null,null,null,null,null,null,null,null,null,null,null,null,null,null,null,null,null,null,null,null,null,193,null,181,"(190)"]
["181 (190)",null,null,0,null,0,{"$error":"#DIV/0!"},null,null,null,null,null,null,null,null,null,null,null,null,null,null,null,null,null,null,null,null,18,"-","-",190,181,"-",199,null,null,1,1,1,1,1,1,1,1,1,1,1,1,1,1,0,1,1,1,1,null,2,null,null,"","","","","","","","","","","","","","","","","-","-",15,null,0,null,null,null,null,null,null,null,null,null,null,null,null,null,null,null,null,null,null,null,null,null,null,null,null,null,null,null,null,null,null,null,null,null,null,null,null,null,null,null,null,null,null,null,null,null,null,null,null,null,null,null,null,null,null,null,null,null,null,null,null,null,null,169,null,181,"(190)"]
["181 (190)",null,null,0,null,0,{"$error":"#DIV/0!"},null,null,null,null,null,null,null,null,null,null,null,null,null,null,null,null,null,null,null,null,18,"-","-",190,{"$f":"IF(D204<D203,AH204,AF203)","v":181},"-",200,null,null,{"$f":"COUNT($I$3,I204,H204)","v":1},{"$f":"COUNT($J$3,J204,I204)","v":1},{"$f":"COUNT($K$3,K204,J204)","v":1},{"$f":"COUNT($L$3,L204,K204)","v":1},{"$f":"COUNT($M$3,M204,L204)","v":1},{"$f":"COUNT($N$3,N204,M204)","v":1},{"$f":"COUNT($O$3,O204,N204)","v":1},{"$f":"COUNT($P$3,P204,O204)","v":1},{"$f":"COUNT($Q$3,Q204,P204)","v":1},{"$f":"COUNT($R$3,R204,Q204)","v":1},{"$f":"COUNT($S$3,S204,R204)","v":1},{"$f":"COUNT($T$3,T204,S204)","v":1},{"$f":"COUNT($U$3,U204,T204)","v":1},{"$f":"COUNT($V$3,V204,U204)","v":1},{"$f":"COUNT($W$3,W204,V204)","v":0},{"$f":"COUNT($X$3,X204,W204)","v":1},{"$f":"COUNT($Y$3,Y204,X204)","v":1},{"$f":"COUNT($Z$3,Z204,Y204)","v":1},{"$f":"COUNT($AA$3,AA204,Z204)","v":1},null,{"$f":"IF(H204=\"x\",1,2)","v":2},null,null,{"$f":"IF($F204>0,LARGE($I204:$AA204,1),\"\")","v":""},{"$f":"IF($F204>1,LARGE($I204:$AA204,2),\"\")","v":""},{"$f":"IF($F204>2,LARGE($I204:$AA204,3),\"\")","v":""},{"$f":"IF($F204>3,LARGE($I204:$AA204,4),\"\")","v":""},{"$f":"IF($F204>4,LARGE($I204:$AA204,5),\"\")","v":""},{"$f":"IF($F204>5,LARGE($I204:$AA204,6),\"\")","v":""},{"$f":"IF($F204>6,LARGE($I204:$AA204,7),\"\")","v":""},{"$f":"IF($F204>7,LARGE($I204:$AA204,8),\"\")","v":""},{"$f":"IF($F204>8,LARGE($I204:$AA204,9),\"\")","v":""},{"$f":"IF($F204>9,LARGE($I204:$AA204,10),\"\")","v":""},{"$f":"IF($F204>10,LARGE($I204:$AA204,11),\"\")","v":""},{"$f":"IF($F204>11,LARGE($I204:$AA204,12),\"\")","v":""},{"$f":"IF($F204>12,LARGE($I204:$AA204,13),\"\")","v":""},{"$f":"IF($F204>13,LARGE($I204:$AA204,14),\"\")","v":""},{"$f":"IF($F204>14,LARGE($I204:$AA204,15),\"\")","v":""},"","-","-",15,null,0,null,null,null,null,null,null,null,null,null,null,null,null,null,null,null,null,null,null,null,null,null,null,null,null,null,null,null,null,null,null,null,null,null,null,null,null,null,null,null,null,null,null,null,null,null,null,null,null,null,null,null,null,null,null,null,null,null,null,null,null,null,null,194,null,181,"(190)"]
["181 (190)",null,null,0,null,0,{"$error":"#DIV/0!"},null,null,null,null,null,null,null,null,null,null,null,null,null,null,null,null,null,null,null,null,18,"-","-",190,181,"-",201,null,null,1,1,1,1,1,1,1,1,1,1,1,1,1,1,0,1,1,1,1,null,2,null,null,"","","","","","","","","","","","","","","","","-","-",15,null,0,null,null,null,null,null,null,null,null,null,null,null,null,null,null,null,null,null,null,null,null,null,null,null,null,null,null,null,null,null,null,null,null,null,null,null,null,null,null,null,null,null,null,null,null,null,null,null,null,null,null,null,null,null,null,null,null,null,null,null,null,null,null,196,null,181,"(190)"]
["181 (190)",null,null,0,null,0,{"$error":"#DIV/0!"},null,null,null,null,null,null,null,null,null,null,null,null,null,null,null,null,null,null,null,null,18,"-","-",190,181,"-",202,null,null,1,1,1,1,1,1,1,1,1,1,1,1,1,1,0,1,1,1,1,null,2,null,null,"","","","","","","","","","","","","","","","","-","-",15,null,0,null,null,null,null,null,null,null,null,null,null,null,null,null,null,null,null,null,null,null,null,null,null,null,null,null,null,null,null,null,null,null,null,null,null,null,null,null,null,null,null,null,null,null,null,null,null,null,null,null,null,null,null,null,null,null,null,null,null,null,null,null,null,197,null,181,"(190)"]
["181 (190)",null,null,0,null,0,{"$error":"#DIV/0!"},null,null,null,null,null,null,null,null,null,null,null,null,null,null,null,null,null,null,null,null,18,"-","-",190,181,"-",203,null,null,1,1,1,1,1,1,1,1,1,1,1,1,1,1,0,1,1,1,1,null,2,null,null,"","","","","","","","","","","","","","","","","-","-",15,null,0,null,null,null,null,null,null,null,null,null,null,null,null,null,null,null,null,null,null,null,null,null,null,null,null,null,null,null,null,null,null,null,null,null,null,null,null,null,null,null,null,null,null,null,null,null,null,null,null,null,null,null,null,null,null,null,null,null,null,null,null,null,null,207,null,181,"(190)"]
["181 (190)",null,null,0,null,0,{"$error":"#DIV/0!"},null,null,null,null,null,null,null,null,null,null,null,null,null,null,null,null,null,null,null,null,18,"-","-",190,181,"-",204,null,null,1,1,1,1,1,1,1,1,1,1,1,1,1,1,0,1,1,1,1,null,2,null,null,"","","","","","","","","","","","","","","","","-","-",15,null,0,null,null,null,null,null,null,null,null,null,null,null,null,null,null,null,null,null,null,null,null,null,null,null,null,null,null,null,null,null,null,null,null,null,null,null,null,null,null,null,null,null,null,null,null,null,null,null,null,null,null,null,null,null,null,null,null,null,null,null,null,null,null,198,null,181,"(190)"]
["181 (190)",null,null,0,null,0,{"$error":"#DIV/0!"},null,null,null,null,null,null,null,null,null,null,null,null,null,null,null,null,null,null,null,null,18,"-","-",190,181,"-",205,null,null,1,1,1,1,1,1,1,1,1,1,1,1,1,1,0,1,1,1,1,null,2,null,null,"","","","","","","","","","","","","","","","","-","-",15,null,0,null,null,null,null,null,null,null,null,null,null,null,null,null,null,null,null,null,null,null,null,null,null,null,null,null,null,null,null,null,null,null,null,null,null,null,null,null,null,null,null,null,null,null,null,null,null,null,null,null,null,null,null,null,null,null,null,null,null,null,null,null,null,199,null,181,"(190)"]
["181 (190)",null,null,0,null,0,{"$error":"#DIV/0!"},null,null,null,null,null,null,null,null,null,null,null,null,null,null,null,null,null,null,null,null,18,"-","-",190,181,"-",206,null,null,1,1,1,1,1,1,1,1,1,1,1,1,1,1,0,1,1,1,1,null,2,null,null,"","","","","","","","","","","","","","","","","-","-",15,null,0,null,null,null,null,null,null,null,null,null,null,null,null,null,null,null,null,null,null,null,null,null,null,null,null,null,null,null,null,null,null,null,null,null,null,null,null,null,null,null,null,null,null,null,null,null,null,null,null,null,null,null,null,null,null,null,null,null,null,null,null,null,null,200,null,181,"(190)"]
["181 (190)",null,null,0,null,0,{"$error":"#DIV/0!"},null,null,null,null,null,null,null,null,null,null,null,null,null,null,null,null,null,null,null,null,18,"-","-",190,181,"-",207,null,null,1,1,1,1,1,1,1,1,1,1,1,1,1,1,0,1,1,1,1,null,2,null,null,"","","","","","","","","","","","","","","","","-","-",15,null,0,null,null,null,null,null,null,null,null,null,null,null,null,null,null,null,null,null,null,null,null,null,null,null,null,null,null,null,null,null,null,null,null,null,null,null,null,null,null,null,null,null,null,null,null,null,null,null,null,null,null,null,null,null,null,null,null,null,null,null,null,null,null,201,null,181,"(190)"]
["181 (190)",null,null,0,null,0,{"$error":"#DIV/0!"},null,null,null,null,null,null,null,null,null,null,null,null,null,null,null,null,null,null,null,null,18,"-","-",190,181,"-",208,null,null,1,1,1,1,1,1,1,1,1,1,1,1,1,1,0,1,1,1,1,null,2,null,null,"","","","","","","","","","","","","","","","","-","-",15,null,0,null,null,null,null,null,null,null,null,null,null,null,null,null,null,null,null,null,null,null,null,null,null,null,null,null,null,null,null,null,null,null,null,null,null,null,null,null,null,null,null,null,null,null,null,null,null,null,null,null,null,null,null,null,null,null,null,null,null,null,null,null,null,203,null,181,"(190)"]
["181 (190)",null,null,0,null,0,{"$error":"#DIV/0!"},null,null,null,null,null,null,null,null,null,null,null,null,null,null,null,null,null,null,null,null,18,"-","-",190,181,"-",209,null,null,1,1,1,1,1,1,1,1,1,1,1,1,1,1,0,1,1,1,1,null,2,null,null,"","","","","","","","","","","","","","","","","-","-",15,null,0,null,null,null,null,null,null,null,null,null,null,null,null,null,null,null,null,null,null,null,null,null,null,null,null,null,null,null,null,null,null,null,null,null,null,null,null,null,null,null,null,null,null,null,null,null,null,null,null,null,null,null,null,null,null,null,null,null,null,null,null,null,null,204,null,181,"(190)"]
[{"$f":"IF(BE214>1,AF214&\" (\"&AE214&\")\",AF214&\" (\"&AG214&\")\")","v":"181 (190)"},null,null,0,null,0,{"$error":"#DIV/0!"},null,null,null,null,null,null,null,null,null,null,null,null,null,null,null,null,null,null,null,null,18,"-","-",190,{"$f":"IF(D214<D213,AH214,AF213)","v":181},"-",210,null,null,{"$f":"COUNT($I$3,I214,H214)","v":1},{"$f":"COUNT($J$3,J214,I214)","v":1},{"$f":"COUNT($K$3,K214,J214)","v":1},{"$f":"COUNT($L$3,L214,K214)","v":1},{"$f":"COUNT($M$3,M214,L214)","v":1},{"$f":"COUNT($N$3,N214,M214)","v":1},{"$f":"COUNT($O$3,O214,N214)","v":1},{"$f":"COUNT($P$3,P214,O214)","v":1},{"$f":"COUNT($Q$3,Q214,P214)","v":1},{"$f":"COUNT($R$3,R214,Q214)","v":1},{"$f":"COUNT($S$3,S214,R214)","v":1},{"$f":"COUNT($T$3,T214,S214)","v":1},{"$f":"COUNT($U$3,U214,T214)","v":1},{"$f":"COUNT($V$3,V214,U214)","v":1},{"$f":"COUNT($W$3,W214,V214)","v":0},{"$f":"COUNT($X$3,X214,W214)","v":1},{"$f":"COUNT($Y$3,Y214,X214)","v":1},{"$f":"COUNT($Z$3,Z214,Y214)","v":1},{"$f":"COUNT($AA$3,AA214,Z214)","v":1},null,{"$f":"IF(H214=\"x\",1,2)","v":2},null,null,{"$f":"IF($F214>0,LARGE($I214:$AA214,1),\"\")","v":""},{"$f":"IF($F214>1,LARGE($I214:$AA214,2),\"\")","v":""},{"$f":"IF($F214>2,LARGE($I214:$AA214,3),\"\")","v":""},{"$f":"IF($F214>3,LARGE($I214:$AA214,4),\"\")","v":""},{"$f":"IF($F214>4,LARGE($I214:$AA214,5),\"\")","v":""},{"$f":"IF($F214>5,LARGE($I214:$AA214,6),\"\")","v":""},{"$f":"IF($F214>6,LARGE($I214:$AA214,7),\"\")","v":""},{"$f":"IF($F214>7,LARGE($I214:$AA214,8),\"\")","v":""},{"$f":"IF($F214>8,LARGE($I214:$AA214,9),\"\")","v":""},{"$f":"IF($F214>9,LARGE($I214:$AA214,10),\"\")","v":""},{"$f":"IF($F214>10,LARGE($I214:$AA214,11),\"\")","v":""},{"$f":"IF($F214>11,LARGE($I214:$AA214,12),\"\")","v":""},{"$f":"IF($F214>12,LARGE($I214:$AA214,13),\"\")","v":""},{"$f":"IF($F214>13,LARGE($I214:$AA214,14),\"\")","v":""},{"$f":"IF($F214>14,LARGE($I214:$AA214,15),\"\")","v":""},"","-","-",{"$f":"SUM(AB214-F214)-3","v":15},null,{"$f":"SUM(BH214:BW214)","v":0},null,null,null,null,null,null,null,null,null,null,null,null,null,null,null,null,null,null,null,null,null,null,null,null,null,null,null,null,null,null,null,null,null,null,null,null,null,null,null,null,null,null,null,null,null,null,null,null,null,null,null,null,null,null,null,null,null,null,null,null,null,null,208,null,{"$f":"IF(BE214>1,AF214,\"\")","v":181},{"$f":"IF(BE214>1,\"(\"&AE214&\")\",\"(\"&AG214&\")\")","v":"(190)"}]
["181 (190)",null,null,0,null,0,{"$error":"#DIV/0!"},null,null,null,null,null,null,null,null,null,null,null,null,null,null,null,null,null,null,null,null,18,"-","-",190,181,"-",211,null,null,1,1,1,1,1,1,1,1,1,1,1,1,1,1,0,1,1,1,1,null,2,null,null,"","","","","","","","","","","","","","","","","-","-",15,null,0,null,null,null,null,null,null,null,null,null,null,null,null,null,null,null,null,null,null,null,null,null,null,null,null,null,null,null,null,null,null,null,null,null,null,null,null,null,null,null,null,null,null,null,null,null,null,null,null,null,null,null,null,null,null,null,null,null,null,null,null,null,null,209,null,181,"(190)"]
["181 (190)",null,null,0,null,0,{"$error":"#DIV/0!"},null,null,null,null,null,null,null,null,null,null,null,null,null,null,null,null,null,null,null,null,18,"-","-",190,181,"-",212,null,null,1,1,1,1,1,1,1,1,1,1,1,1,1,1,0,1,1,1,1,null,2,null,null,"","","","","","","","","","","","","","","","","-","-",15,null,0,null,null,null,null,null,null,null,null,null,null,null,null,null,null,null,null,null,null,null,null,null,null,null,null,null,null,null,null,null,null,null,null,null,null,null,null,null,null,null,null,null,null,null,null,null,null,null,null,null,null,null,null,null,null,null,null,null,null,null,null,null,null,210,null,181,"(190)"]
["181 (190)",null,null,0,null,0,{"$error":"#DIV/0!"},null,null,null,null,null,null,null,null,null,null,null,null,null,null,null,null,null,null,null,null,18,"-","-",190,181,"-",213,null,null,1,1,1,1,1,1,1,1,1,1,1,1,1,1,0,1,1,1,1,null,2,null,null,"",null,null,null,null,null,null,null,null,null,null,null,null,null,null,"","-","-",15,null,0,null,null,null,null,null,null,null,null,null,null,null,null,null,null,null,null,null,null,null,null,null,null,null,null,null,null,null,null,null,null,null,null,null,null,null,null,null,null,null,null,null,null,null,null,null,null,null,null,null,null,null,null,null,null,null,null,null,null,null,null,null,null,211,null,181,"(190)"]
["181 (190)",null,null,0,null,0,{"$error":"#DIV/0!"},null,null,null,null,null,null,null,null,null,null,null,null,null,null,null,null,null,null,null,null,18,"-","-",190,181,"-",214,null,null,1,1,1,1,1,1,1,1,1,1,1,1,1,1,0,1,1,1,1,null,2,null,null,"",null,null,null,null,null,null,null,null,null,null,null,null,null,null,"","-","-",15,null,0,null,null,null,null,null,null,null,null,null,null,null,null,null,null,null,null,null,null,null,null,null,null,null,null,null,null,null,null,null,null,null,null,null,null,null,null,null,null,null,null,null,null,null,null,null,null,null,null,null,null,null,null,null,null,null,null,null,null,null,null,null,null,212,null,181,"(190)"]
["181 (190)",null,null,0,null,0,{"$error":"#DIV/0!"},null,null,null,null,null,null,null,null,null,null,null,null,null,null,null,null,null,null,null,null,18,"-","-",190,181,"-",215,null,null,1,1,1,1,1,1,1,1,1,1,1,1,1,1,0,1,1,1,1,null,2,null,null,"",null,null,null,null,null,null,null,null,null,null,null,null,null,null,"","-","-",15,null,0,null,null,null,null,null,null,null,null,null,null,null,null,null,null,null,null,null,null,null,null,null,null,null,null,null,null,null,null,null,null,null,null,null,null,null,null,null,null,null,null,null,null,null,null,null,null,null,null,null,null,null,null,null,null,null,null,null,null,null,null,null,null,213,null,181,"(190)"]
["181 (190)",null,null,0,null,0,{"$error":"#DIV/0!"},null,null,null,null,null,null,null,null,null,null,null,null,null,null,null,null,null,null,null,null,18,"-","-",190,181,"-",216,null,null,1,1,1,1,1,1,1,1,1,1,1,1,1,1,0,1,1,1,1,null,2,null,null,"",null,null,null,null,null,null,null,null,null,null,null,null,null,null,"","-","-",15,null,0,null,null,null,null,null,null,null,null,null,null,null,null,null,null,null,null,null,null,null,null,null,null,null,null,null,null,null,null,null,null,null,null,null,null,null,null,null,null,null,null,null,null,null,null,null,null,null,null,null,null,null,null,null,null,null,null,null,null,null,null,null,null,214,null,181,"(190)"]

{"sheet":"Regler","index":1,"n_rows":29,"n_cols":1,"rows_kept":29,"cut":false,"hidden":false,"merged":[]}
["Regler för Sverige-,Junior- o Miniorranking"]
[]
["Rankingpoäng utgör den totala poängen från rankingtävlingar under säsongen "]
["som varje enskild kastare har fått ihop."]
["Max från 13 tävlingar kan medräknas, och då räknas de 13 med högst resultat."]
[]
["Den som har högst poäng när säsongen är över vinner."]
[]
["Skulle det vara kastare som hamnar på samma poäng när säsongen är över, och är bland de"]
["tre bästa så gäller detta för att skilja dem åt."]
[]
["1. Högst snitt per serie"]
["2. Högst poäng på en tävling, sedan näst högst osv."]
["3. Högsta poängen på senaste tävlingen, sedan den dessför innan osv.(DM-tävlingar ej inräknade) "]
["4. Skulle det fortfarande inte gå att skilja dem åt, så blir de på samma plats."]
[]
[]
["Seriespelsranking"]
[]
["Alla individuella seriespelsresultaten under säsongen räknas in."]
["Den som har högst snitt när säsongen är över vinner. "]
[]
["För att kunna vara bland de tre pristagarna, måste man spelat minst 7 serier."]
[]
["Skulle det vara kastare som hamnar på samma snitt när säsongen är över, och är bland de"]
["tre bästa så gäller detta för att skilja dem åt."]
[]
["1. Det högsta serieresultatet, sedan näst högsta osv."]
["2. Skulle det fortfarande inte gå att skilja dem åt, så blir de på samma plats."]

{"sheet":"Miniorranking","index":2,"n_rows":47,"n_cols":141,"rows_kept":47,"cut":false,"hidden":false,"merged":[]}
[null,"Svenska Hästskokastarförbundets Sverigeranking"]
[null,null,"MINIOR"]
[null,null,"SLUTSTÄLLNING 2016/2017",null,null,null,null,null,{"$f":"IF(SUM(I5:I407)>100,1,\"\")","v":1},1,1,1,1,1,1,1,1,1,1,1,1,1,"",1,1,1,1]
["Plac.","Kastare ","Klubb","Ranking-poäng",null,"Antal täv-lingar","Snitt per serie",null,"Växjö Open","Björkenäs Open","Utomhus-SM Dag 1","Utomhus-SM Dag 2","Utomhus Smålandsmästaren","Carlskrona Cup","Gotland Open","Septemberskon","Dynapac Open","Blekinge-DM Ute","Åseda Open","Höstskon Nybro","Novemberkampen","Inomhus-SM","Gotlands-DM inne","Inomhus Smålandsmästaren ","Blekinge DM Inne","Värendspokalen","Tingsryds Open"]
[{"$f":"EJ5&EK5","v":"1(1)"},"Alexander Lundqvist","Alvesta Hsk",{"$f":"SUM(I5:AA5)","v":4068},null,{"$f":"COUNT(I5:AA5)","v":15},{"$f":"SUM((D5)/(F5*2))","v":135.6},null,263,256,204,271,366,null,178,256,318,null,172,400,234,325,null,248,null,347,230,null,null,1,{"$f":"IF(D5>1,ROW(1:1),\"-\")","v":1},{"$f":"IF(F5>1,ROW(1:1),\"-\")","v":1},null,null,null,{"$f":"COUNT($I$3,I5,H5)","v":2},{"$f":"COUNT($J$3,J5,I5)","v":3},{"$f":"COUNT($K$3,K5,J5)","v":3},{"$f":"COUNT($L$3,L5,K5)","v":3},{"$f":"COUNT($M$3,M5,L5)","v":3},{"$f":"COUNT($N$3,N5,M5)","v":2},{"$f":"COUNT($O$3,O5,N5)","v":2},{"$f":"COUNT($P$3,P5,O5)","v":3},{"$f":"COUNT($Q$3,Q5,P5)","v":3},{"$f":"COUNT($R$3,R5,Q5)","v":2},{"$f":"COUNT($S$3,S5,R5)","v":2},{"$f":"COUNT($T$3,T5,S5)","v":3},{"$f":"COUNT($U$3,U5,T5)","v":3},{"$f":"COUNT($V$3,V5,U5)","v":3},{"$f":"COUNT($W$3,W5,V5)","v":1},{"$f":"COUNT($X$3,X5,W5)","v":2},{"$f":"COUNT($Y$3,Y5,X5)","v":2},{"$f":"COUNT($Z$3,Z5,Y5)","v":2},{"$f":"COUNT($AA$3,AA5,Z5)","v":3},null,{"$f":"COUNTIF(AI5:BC5,\">1\")","v":18},{"$f":"IF(H5=\"x\",1,2)","v":2},null,null,null,null,null,null,null,null,null,null,null,null,null,null,null,null,null,null,null,null,null,null,null,null,null,null,null,null,null,null,null,null,null,null,null,null,null,null,null,null,null,null,null,null,null,null,null,null,null,null,null,null,null,null,null,null,null,null,null,null,null,null,null,null,null,null,null,null,null,null,null,null,null,null,null,null,null,null,null,null,1,null,{"$f":"IF(BD5>=1,AE5,\"\")","v":1},{"$f":"IF(BE5>1,\"(\"&AD5&\")\",\"(\"&AF5&\")\")","v":"(1)"}]
[{"$f":"EJ6&EK6","v":"2(2)"},"Natalie Sundahl","Carlskrona Hsc",2081,null,14,74.321428571428569,null,152,71,null,159,null,166,null,192,146,168,190,120,89,229,null,null,165,130,104,null,null,2,{"$f":"IF(D6=D5,ROW(1:1),IF(D6>1,ROW(2:2),\"-\"))","v":2},2,null,null,null,{"$f":"COUNT($I$3,I6,H6)","v":2},{"$f":"COUNT($J$3,J6,I6)","v":3},{"$f":"COUNT($K$3,K6,J6)","v":2},{"$f":"COUNT($L$3,L6,K6)","v":2},{"$f":"COUNT($M$3,M6,L6)","v":2},{"$f":"COUNT($N$3,N6,M6)","v":2},{"$f":"COUNT($O$3,O6,N6)","v":2},{"$f":"COUNT($P$3,P6,O6)","v":2},{"$f":"COUNT($Q$3,Q6,P6)","v":3},{"$f":"COUNT($R$3,R6,Q6)","v":3},{"$f":"COUNT($S$3,S6,R6)","v":3},{"$f":"COUNT($T$3,T6,S6)","v":3},{"$f":"COUNT($U$3,U6,T6)","v":3},{"$f":"COUNT($V$3,V6,U6)","v":3},{"$f":"COUNT($W$3,W6,V6)","v":1},{"$f":"COUNT($X$3,X6,W6)","v":1},{"$f":"COUNT($Y$3,Y6,X6)","v":2},{"$f":"COUNT($Z$3,Z6,Y6)","v":3},{"$f":"COUNT($AA$3,AA6,Z6)","v":3},null,{"$f":"COUNTIF(AI6:BC6,\">1\")","v":17},{"$f":"IF(H6=\"x\",1,2)","v":2},null,null,null,null,null,null,null,null,null,null,null,null,null,null,null,null,null,null,null,null,null,null,null,null,null,null,null,null,null,null,null,null,null,null,null,null,null,null,null,null,null,null,null,null,null,null,null,null,null,null,null,null,null,null,null,null,null,null,null,null,null,null,null,null,null,null,null,null,null,null,null,null,null,null,null,null,null,null,null,null,2,null,{"$f":"IF(BD6>=1,AE6,\"\")","v":2},{"$f":"IF(BE6>1,\"(\"&AD6&\")\",\"(\"&AF6&\")\")","v":"(2)"}]
["3(3)","Oscar Stener","Alvesta Hsk",1347,null,9,74.833333333333329,null,null,null,null,null,null,null,178,null,120,null,138,194,98,175,null,88,null,285,71,null,null,3,{"$f":"IF(AND(D7=D6,D7=D5),ROW(1:1),IF(D7=D6,ROW(2:2),IF(D7>1,ROW(3:3),\"-\")))","v":3},3,null,null,null,1,1,1,1,1,1,2,2,2,2,2,3,3,3,1,2,2,2,3,null,12,2,null,null,null,null,null,null,null,null,null,null,null,null,null,null,null,null,null,null,null,null,null,null,null,null,null,null,null,null,null,null,null,null,null,null,null,null,null,null,null,null,null,null,null,null,null,null,null,null,null,null,null,null,null,null,null,null,null,null,null,null,null,null,null,null,null,null,null,null,null,null,null,null,null,null,null,null,null,null,null,null,3,null,3,"(3)"]
["4(4)","Johannes Engkvist","Alvesta Hsk",1061,null,11,48.227272727272727,null,118,89,null,57,99,null,101,null,75,null,null,118,61,158,null,138,null,47,null,null,null,4,{"$f":"IF(AND(D8=D7,D8=D6,D8=D5),ROW(1:1),IF(AND(D8=D7,D8=D6),ROW(2:2),IF(D8=D7,ROW(3:3),IF(D8>1,ROW(4:4),\"-\"))))","v":4},4,null,null,null,2,3,2,2,3,2,2,2,2,2,1,2,3,3,1,2,2,2,2,null,17,2,null,null,null,null,null,null,null,null,null,null,null,null,null,null,null,null,null,null,null,null,null,null,null,null,null,null,null,null,null,null,null,null,null,null,null,null,null,null,null,null,null,null,null,null,null,null,null,null,null,null,null,null,null,null,null,null,null,null,null,null,null,null,null,null,null,null,null,null,null,null,null,null,null,null,null,null,null,null,null,null,4,null,4,"(4)"]
["5(5)","Lukas Gunnarsson","Tingsryd Hsc",601,null,4,75.125,null,203,null,85,90,null,null,null,null,null,null,null,null,null,223,null,null,null,null,null,null,null,5,{"$f":"IF(AND(D9=D8,D9=D7,D9=D6,D9=D5),ROW(1:1),IF(AND(D9=D8,D9=D7,D9=D6),ROW(2:2),IF(AND(D9=D8,D9=D7),ROW(3:3),IF(D9=D8,ROW(4:4),IF(D9>1,ROW(5:5),\"-\")))))","v":5},5,null,null,null,2,2,2,3,2,1,1,1,1,1,1,1,1,2,1,1,1,1,1,null,6,2,null,null,null,null,null,null,null,null,null,null,null,null,null,null,null,null,null,null,null,null,null,null,null,null,null,null,null,null,null,null,null,null,null,null,null,null,null,null,null,null,null,null,null,null,null,null,null,null,null,null,null,null,null,null,null,null,null,null,null,null,null,null,null,null,null,null,null,null,null,null,null,null,null,null,null,null,null,null,null,null,5,null,5,"(5)"]
["6(6)","Julius Gneupel","Sibbamåla",502,null,4,62.75,null,null,null,116,137,null,null,null,null,103,null,null,null,null,null,null,null,146,null,null,null,null,6,6,6,null,null,null,1,1,2,3,2,1,1,1,2,2,1,1,1,1,0,1,2,2,1,null,7,2,null,null,null,null,null,null,null,null,null,null,null,null,null,null,null,null,null,null,null,null,null,null,null,null,null,null,null,null,null,null,null,null,null,null,null,null,null,null,null,null,null,null,null,null,null,null,null,null,null,null,null,null,null,null,null,null,null,null,null,null,null,null,null,null,null,null,null,null,null,null,null,null,null,null,null,null,null,null,null,null,6,null,6,"(6)"]
["7(7)","Evelina Olsson","Dynapac ",299,null,3,49.833333333333336,null,137,101,null,61,null,null,null,null,null,null,null,null,null,null,null,null,null,null,null,null,null,7,7,7,null,null,null,2,3,2,2,2,1,1,1,1,1,1,1,1,1,0,1,1,1,1,null,5,2,null,null,null,null,null,null,null,null,null,null,null,null,null,null,null,null,null,null,null,null,null,null,null,null,null,null,null,null,null,null,null,null,null,null,null,null,null,null,null,null,null,null,null,null,null,null,null,null,null,null,null,null,null,null,null,null,null,null,null,null,null,null,null,null,null,null,null,null,null,null,null,null,null,null,null,null,null,null,null,null,7,null,7,"(7)"]
["8(8)","Linus Israelsson","Sibbamåla",189,null,2,47.25,null,null,null,null,107,null,null,null,null,null,null,null,null,null,null,null,null,82,null,null,null,null,8,{"$f":"IF(AND(D12=D11,D12=D10,D12=D9,D12=D8),ROW(4:4),IF(AND(D12=D11,D12=D10,D12=D9),ROW(5:5),IF(AND(D12=D11,D12=D10),ROW(6:6),IF(D12=D11,ROW(7:7),IF(D12>1,ROW(8:8),\"-\")))))","v":8},{"$f":"IF(F12>1,ROW(8:8),\"-\")","v":8},null,null,null,{"$f":"COUNT($I$3,I12,H12)","v":1},{"$f":"COUNT($J$3,J12,I12)","v":1},{"$f":"COUNT($K$3,K12,J12)","v":1},{"$f":"COUNT($L$3,L12,K12)","v":2},{"$f":"COUNT($M$3,M12,L12)","v":2},{"$f":"COUNT($N$3,N12,M12)","v":1},{"$f":"COUNT($O$3,O12,N12)","v":1},{"$f":"COUNT($P$3,P12,O12)","v":1},{"$f":"COUNT($Q$3,Q12,P12)","v":1},{"$f":"COUNT($R$3,R12,Q12)","v":1},{"$f":"COUNT($S$3,S12,R12)","v":1},{"$f":"COUNT($T$3,T12,S12)","v":1},{"$f":"COUNT($U$3,U12,T12)","v":1},{"$f":"COUNT($V$3,V12,U12)","v":1},{"$f":"COUNT($W$3,W12,V12)","v":0},{"$f":"COUNT($X$3,X12,W12)","v":1},{"$f":"COUNT($Y$3,Y12,X12)","v":2},{"$f":"COUNT($Z$3,Z12,Y12)","v":2},{"$f":"COUNT($AA$3,AA12,Z12)","v":1},null,{"$f":"COUNTIF(AI12:BC12,\">1\")","v":4},{"$f":"IF(H12=\"x\",1,2)","v":2},null,null,null,null,null,null,null,null,null,null,null,null,null,null,null,null,null,null,null,null,null,null,null,null,null,null,null,null,null,null,null,null,null,null,null,null,null,null,null,null,null,null,null,null,null,null,null,null,null,null,null,null,null,null,null,null,null,null,null,null,null,null,null,null,null,null,null,null,null,null,null,null,null,null,null,null,null,null,null,null,8,null,8,"(8)"]
["9(9)","Abbe Johansson","Dynapac ",118,null,2,29.5,null,null,null,null,null,null,null,null,null,54,64,null,null,null,null,null,null,null,null,null,null,null,9,{"$f":"IF(AND(D13=D12,D13=D11,D13=D10,D13=D9),ROW(5:5),IF(AND(D13=D12,D13=D11,D13=D10),ROW(6:6),IF(AND(D13=D12,D13=D11),ROW(7:7),IF(D13=D12,ROW(8:8),IF(D13>1,ROW(9:9),\"-\")))))","v":9},{"$f":"IF(F13>1,ROW(9:9),\"-\")","v":9},null,null,null,{"$f":"COUNT($I$3,I13,H13)","v":1},{"$f":"COUNT($J$3,J13,I13)","v":1},{"$f":"COUNT($K$3,K13,J13)","v":1},{"$f":"COUNT($L$3,L13,K13)","v":1},{"$f":"COUNT($M$3,M13,L13)","v":1},{"$f":"COUNT($N$3,N13,M13)","v":1},{"$f":"COUNT($O$3,O13,N13)","v":1},{"$f":"COUNT($P$3,P13,O13)","v":1},{"$f":"COUNT($Q$3,Q13,P13)","v":2},{"$f":"COUNT($R$3,R13,Q13)","v":3},{"$f":"COUNT($S$3,S13,R13)","v":2},{"$f":"COUNT($T$3,T13,S13)","v":1},{"$f":"COUNT($U$3,U13,T13)","v":1},{"$f":"COUNT($V$3,V13,U13)","v":1},{"$f":"COUNT($W$3,W13,V13)","v":0},{"$f":"COUNT($X$3,X13,W13)","v":1},{"$f":"COUNT($Y$3,Y13,X13)","v":1},{"$f":"COUNT($Z$3,Z13,Y13)","v":1},{"$f":"COUNT($AA$3,AA13,Z13)","v":1},null,{"$f":"COUNTIF(AI13:BC13,\">1\")","v":3},{"$f":"IF(H13=\"x\",1,2)","v":2},null,null,null,null,null,null,null,null,null,null,null,null,null,null,null,null,null,null,null,null,null,null,null,null,null,null,null,null,null,null,null,null,null,null,null,null,null,null,null,null,null,null,null,null,null,null,null,null,null,null,null,null,null,null,null,null,null,null,null,null,null,null,null,null,null,null,null,null,null,null,null,null,null,null,null,null,null,null,null,null,9,null,9,"(9)"]
["(-)",null,null,0,null,0,{"$error":"#DIV/0!"},null,null,null,null,null,null,null,null,null,null,null,null,null,null,null,null,null,null,null,null,null,null,"-","-","-",null,null,null,1,1,1,1,1,1,1,1,1,1,1,1,1,1,0,1,1,1,1,null,0,2,null,null,null,null,null,null,null,null,null,null,null,null,null,null,null,null,null,null,null,null,null,null,null,null,null,null,null,null,null,null,null,null,null,null,null,null,null,null,null,null,null,null,null,null,null,null,null,null,null,null,null,null,null,null,null,null,null,null,null,null,null,null,null,null,null,null,null,null,null,null,null,null,null,null,null,null,null,null,null,null,10,null,"","(-)"]
["(10)",null,null,0,null,0,{"$error":"#DIV/0!"},null,null,null,null,null,null,null,null,null,null,null,null,null,null,null,null,null,null,null,null,null,null,10,10,"-",null,null,null,1,1,1,1,1,1,1,1,1,1,1,1,1,1,0,1,1,1,1,null,0,2,null,null,null,null,null,null,null,null,null,null,null,null,null,null,null,null,null,null,null,null,null,null,null,null,null,null,null,null,null,null,null,null,null,null,null,null,null,null,null,null,null,null,null,null,null,null,null,null,null,null,null,null,null,null,null,null,null,null,null,null,null,null,null,null,null,null,null,null,null,null,null,null,null,null,null,null,null,null,null,null,11,null,"","(10)"]
["(10)",null,null,0,null,0,{"$error":"#DIV/0!"},null,null,null,null,null,null,null,null,null,null,null,null,null,null,null,null,null,null,null,null,null,null,10,10,"-",null,null,null,1,1,1,1,1,1,1,1,1,1,1,1,1,1,0,1,1,1,1,null,0,2,null,null,null,null,null,null,null,null,null,null,null,null,null,null,null,null,null,null,null,null,null,null,null,null,null,null,null,null,null,null,null,null,null,null,null,null,null,null,null,null,null,null,null,null,null,null,null,null,null,null,null,null,null,null,null,null,null,null,null,null,null,null,null,null,null,null,null,null,null,null,null,null,null,null,null,null,null,null,null,null,12,null,"","(10)"]
["(10)",null,null,0,null,0,{"$error":"#DIV/0!"},null,null,null,null,null,null,null,null,null,null,null,null,null,null,null,null,null,null,null,null,null,null,10,10,"-",null,null,null,1,1,1,1,1,1,1,1,1,1,1,1,1,1,0,1,1,1,1,null,0,2,null,null,null,null,null,null,null,null,null,null,null,null,null,null,null,null,null,null,null,null,null,null,null,null,null,null,null,null,null,null,null,null,null,null,null,null,null,null,null,null,null,null,null,null,null,null,null,null,null,null,null,null,null,null,null,null,null,null,null,null,null,null,null,null,null,null,null,null,null,null,null,null,null,null,null,null,null,null,null,null,13,null,"","(10)"]
["(10)",null,null,0,null,0,{"$error":"#DIV/0!"},null,null,null,null,null,null,null,null,null,null,null,null,null,null,null,null,null,null,null,null,null,null,10,10,"-",null,null,null,1,1,1,1,1,1,1,1,1,1,1,1,1,1,0,1,1,1,1,null,0,2,null,null,null,null,null,null,null,null,null,null,null,null,null,null,null,null,null,null,null,null,null,null,null,null,null,null,null,null,null,null,null,null,null,null,null,null,null,null,null,null,null,null,null,null,null,null,null,null,null,null,null,null,null,null,null,null,null,null,null,null,null,null,null,null,null,null,null,null,null,null,null,null,null,null,null,null,null,null,null,null,14,null,{"$f":"IF(BD18>=1,AE18,\"\")","v":""},"(10)"]
["(11)",null,null,0,null,0,{"$error":"#DIV/0!"},null,null,null,null,null,null,null,null,null,null,null,null,null,null,null,null,null,null,null,null,null,null,11,11,"-",null,null,null,1,1,1,1,1,1,1,1,1,1,1,1,1,1,0,1,1,1,1,null,0,2,null,null,null,null,null,null,null,null,null,null,null,null,null,null,null,null,null,null,null,null,null,null,null,null,null,null,null,null,null,null,null,null,null,null,null,null,null,null,null,null,null,null,null,null,null,null,null,null,null,null,null,null,null,null,null,null,null,null,null,null,null,null,null,null,null,null,null,null,null,null,null,null,null,null,null,null,null,null,null,null,15,null,"","(11)"]
["(12)",null,null,0,null,0,{"$error":"#DIV/0!"},null,null,null,null,null,null,null,null,null,null,null,null,null,null,null,null,null,null,null,null,null,null,12,12,"-",null,null,null,1,1,1,1,1,1,1,1,1,1,1,1,1,1,0,1,1,1,1,null,0,2,null,null,null,null,null,null,null,null,null,null,null,null,null,null,null,null,null,null,null,null,null,null,null,null,null,null,null,null,null,null,null,null,null,null,null,null,null,null,null,null,null,null,null,null,null,null,null,null,null,null,null,null,null,null,null,null,null,null,null,null,null,null,null,null,null,null,null,null,null,null,null,null,null,null,null,null,null,null,null,null,16,null,{"$f":"IF(BD20>=1,AE20,\"\")","v":""},"(12)"]
["(13)",null,null,0,null,0,{"$error":"#DIV/0!"},null,null,null,null,null,null,null,null,null,null,null,null,null,null,null,null,null,null,null,null,null,null,13,13,"-",null,null,null,1,1,1,1,1,1,1,1,1,1,1,1,1,1,0,1,1,1,1,null,0,2,null,null,null,null,null,null,null,null,null,null,null,null,null,null,null,null,null,null,null,null,null,null,null,null,null,null,null,null,null,null,null,null,null,null,null,null,null,null,null,null,null,null,null,null,null,null,null,null,null,null,null,null,null,null,null,null,null,null,null,null,null,null,null,null,null,null,null,null,null,null,null,null,null,null,null,null,null,null,null,null,17,null,"","(13)"]
[{"$f":"EJ22&EK22","v":"(14)"},null,null,0,null,0,{"$error":"#DIV/0!"},null,null,null,null,null,null,null,null,null,null,null,null,null,null,null,null,null,null,null,null,null,null,14,14,"-",null,null,null,1,1,1,1,1,1,1,1,1,1,1,1,1,1,0,1,1,1,1,null,0,2,null,null,null,null,null,null,null,null,null,null,null,null,null,null,null,null,null,null,null,null,null,null,null,null,null,null,null,null,null,null,null,null,null,null,null,null,null,null,null,null,null,null,null,null,null,null,null,null,null,null,null,null,null,null,null,null,null,null,null,null,null,null,null,null,null,null,null,null,null,null,null,null,null,null,null,null,null,null,null,null,18,null,"","(14)"]
[{"$f":"EJ23&EK23","v":"(15)"},null,null,0,null,0,{"$error":"#DIV/0!"},null,null,null,null,null,null,null,null,null,null,null,null,null,null,null,null,null,null,null,null,null,null,15,{"$f":"IF(AND(D23=D22,D23=D21,D23=D20,D23=D19),ROW(15:15),IF(AND(D23=D22,D23=D21,D23=D20),ROW(16:16),IF(AND(D23=D22,D23=D21),ROW(17:17),IF(D23=D22,ROW(18:18),IF(D23>1,ROW(19:19),\"-\")))))","v":15},{"$f":"IF(F23>1,ROW(19:19),\"-\")","v":"-"},null,null,null,{"$f":"COUNT($I$3,I23,H23)","v":1},{"$f":"COUNT($J$3,J23,I23)","v":1},{"$f":"COUNT($K$3,K23,J23)","v":1},{"$f":"COUNT($L$3,L23,K23)","v":1},{"$f":"COUNT($M$3,M23,L23)","v":1},{"$f":"COUNT($N$3,N23,M23)","v":1},{"$f":"COUNT($O$3,O23,N23)","v":1},{"$f":"COUNT($P$3,P23,O23)","v":1},{"$f":"COUNT($Q$3,Q23,P23)","v":1},{"$f":"COUNT($R$3,R23,Q23)","v":1},{"$f":"COUNT($S$3,S23,R23)","v":1},{"$f":"COUNT($T$3,T23,S23)","v":1},{"$f":"COUNT($U$3,U23,T23)","v":1},{"$f":"COUNT($V$3,V23,U23)","v":1},{"$f":"COUNT($W$3,W23,V23)","v":0},{"$f":"COUNT($X$3,X23,W23)","v":1},{"$f":"COUNT($Y$3,Y23,X23)","v":1},{"$f":"COUNT($Z$3,Z23,Y23)","v":1},{"$f":"COUNT($AA$3,AA23,Z23)","v":1},null,{"$f":"COUNTIF(AI23:BC23,\">1\")","v":0},{"$f":"IF(H23=\"x\",1,2)","v":2},null,null,null,null,null,null,null,null,null,null,null,null,null,null,null,null,null,null,null,null,null,null,null,null,null,null,null,null,null,null,null,null,null,null,null,null,null,null,null,null,null,null,null,null,null,null,null,null,null,null,null,null,null,null,null,null,null,null,null,null,null,null,null,null,null,null,null,null,null,null,null,null,null,null,null,null,null,null,null,null,19,null,"",{"$f":"IF(BE23>1,\"(\"&AD23&\")\",\"(\"&AF23&\")\")","v":"(15)"}]
["(16)",null,null,0,null,0,{"$error":"#DIV/0!"},null,null,null,null,null,null,null,null,null,null,null,null,null,null,null,null,null,null,null,null,null,null,16,16,"-",null,null,null,1,1,1,1,1,1,1,1,1,1,1,1,1,1,0,1,1,1,1,null,0,2,null,null,null,null,null,null,null,null,null,null,null,null,null,null,null,null,null,null,null,null,null,null,null,null,null,null,null,null,null,null,null,null,null,null,null,null,null,null,null,null,null,null,null,null,null,null,null,null,null,null,null,null,null,null,null,null,null,null,null,null,null,null,null,null,null,null,null,null,null,null,null,null,null,null,null,null,null,null,null,null,20,null,"","(16)"]
[{"$f":"EJ25&EK25","v":"(17)"},null,null,0,null,0,{"$error":"#DIV/0!"},null,null,null,null,null,null,null,null,null,null,null,null,null,null,null,null,null,null,null,null,null,null,17,{"$f":"IF(AND(D25=D24,D25=D23,D25=D22,D25=D21),ROW(17:17),IF(AND(D25=D24,D25=D23,D25=D22),ROW(18:18),IF(AND(D25=D24,D25=D23),ROW(19:19),IF(D25=D24,ROW(20:20),IF(D25>1,ROW(21:21),\"-\")))))","v":17},{"$f":"IF(F25>1,ROW(21:21),\"-\")","v":"-"},null,null,null,{"$f":"COUNT($I$3,I25,H25)","v":1},{"$f":"COUNT($J$3,J25,I25)","v":1},{"$f":"COUNT($K$3,K25,J25)","v":1},{"$f":"COUNT($L$3,L25,K25)","v":1},{"$f":"COUNT($M$3,M25,L25)","v":1},{"$f":"COUNT($N$3,N25,M25)","v":1},{"$f":"COUNT($O$3,O25,N25)","v":1},{"$f":"COUNT($P$3,P25,O25)","v":1},{"$f":"COUNT($Q$3,Q25,P25)","v":1},{"$f":"COUNT($R$3,R25,Q25)","v":1},{"$f":"COUNT($S$3,S25,R25)","v":1},{"$f":"COUNT($T$3,T25,S25)","v":1},{"$f":"COUNT($U$3,U25,T25)","v":1},{"$f":"COUNT($V$3,V25,U25)","v":1},{"$f":"COUNT($W$3,W25,V25)","v":0},{"$f":"COUNT($X$3,X25,W25)","v":1},{"$f":"COUNT($Y$3,Y25,X25)","v":1},{"$f":"COUNT($Z$3,Z25,Y25)","v":1},{"$f":"COUNT($AA$3,AA25,Z25)","v":1},null,{"$f":"COUNTIF(AI25:BC25,\">1\")","v":0},{"$f":"IF(H25=\"x\",1,2)","v":2},null,null,null,null,null,null,null,null,null,null,null,null,null,null,null,null,null,null,null,null,null,null,null,null,null,null,null,null,null,null,null,null,null,null,null,null,null,null,null,null,null,null,null,null,null,null,null,null,null,null,null,null,null,null,null,null,null,null,null,null,null,null,null,null,null,null,null,null,null,null,null,null,null,null,null,null,null,null,null,null,21,null,"",{"$f":"IF(BE25>1,\"(\"&AD25&\")\",\"(\"&AF25&\")\")","v":"(17)"}]
[]
[]
[null,null,null,null,null,null,null,null,null,null,null,null,null,null,null,null,null,null,null,null,null,null,null,null,null,null,null,null,null,null,null,null,null,null,null,null,null,null,null,null,null,null,null,null,null,null,null,null,null,null,null,null,null,null,null,null,null,null,null,null,null,null,null,null,null,null,null,null,null,null,null,null,null,null,null,null,null,null,null,null,null,null,null,null,null,null,null,null,null,null,null,null,null,null,null,null,null,null,null,null,null,null,null,null,null,null,null,null,null,null,null,null,null,null,null,null,null,null,null,null,null,null,null,null,null,null,null,null,null,null,null,null,null,null,null,null,null,1,null,{"$f":"IF(BD28>=1,AE28,\"\")","v":""},{"$f":"IF(BD28>1,\"(\"&AD28&\")\",\"(\"&AF28&\")\")","v":"()"}]
[null,null,null,null,null,null,null,null,null,null,null,null,null,null,null,null,null,null,null,null,null,null,null,null,null,null,null,null,null,null,null,null,null,null,null,null,null,null,null,null,null,null,null,null,null,null,null,null,null,null,null,null,null,null,null,null,null,null,null,null,null,null,null,null,null,null,null,null,null,null,null,null,null,null,null,null,null,null,null,null,null,null,null,null,null,null,null,null,null,null,null,null,null,null,null,null,null,null,null,null,null,null,null,null,null,null,null,null,null,null,null,null,null,null,null,null,null,null,null,null,null,null,null,null,null,null,null,null,null,null,null,null,null,null,null,null,null,3,null,"","()"]
[null,null,null,null,null,null,null,null,null,null,null,null,null,null,null,null,null,null,null,null,null,null,null,null,null,null,null,null,null,null,null,null,null,null,null,null,null,null,null,null,null,null,null,null,null,null,null,null,null,null,null,null,null,null,null,null,null,null,null,null,null,null,null,null,null,null,null,null,null,null,null,null,null,null,null,null,null,null,null,null,null,null,null,null,null,null,null,null,null,null,null,null,null,null,null,null,null,null,null,null,null,null,null,null,null,null,null,null,null,null,null,null,null,null,null,null,null,null,null,null,null,null,null,null,null,null,null,null,null,null,null,null,null,null,null,null,null,4,null,"","()"]
[null,null,null,null,null,null,null,null,null,null,null,null,null,null,null,null,null,null,null,null,null,null,null,null,null,null,null,null,null,null,null,null,null,null,null,null,null,null,null,null,null,null,null,null,null,null,null,null,null,null,null,null,null,null,null,null,null,null,null,null,null,null,null,null,null,null,null,null,null,null,null,null,null,null,null,null,null,null,null,null,null,null,null,null,null,null,null,null,null,null,null,null,null,null,null,null,null,null,null,null,null,null,null,null,null,null,null,null,null,null,null,null,null,null,null,null,null,null,null,null,null,null,null,null,null,null,null,null,null,null,null,null,null,null,null,null,null,5,null,"","()"]
[null,null,null,null,null,null,null,null,null,null,null,null,null,null,null,null,null,null,null,null,null,null,null,null,null,null,null,null,null,null,null,null,null,null,null,null,null,null,null,null,null,null,null,null,null,null,null,null,null,null,null,null,null,null,null,null,null,null,null,null,null,null,null,null,null,null,null,null,null,null,null,null,null,null,null,null,null,null,null,null,null,null,null,null,null,null,null,null,null,null,null,null,null,null,null,null,null,null,null,null,null,null,null,null,null,null,null,null,null,null,null,null,null,null,null,null,null,null,null,null,null,null,null,null,null,null,null,null,null,null,null,null,null,null,null,null,null,6,null,"","()"]
[null,null,null,null,null,null,null,null,null,null,null,null,null,null,null,null,null,null,null,null,null,null,null,null,null,null,null,null,null,null,null,null,null,null,null,null,null,null,null,null,null,null,null,null,null,null,null,null,null,null,null,null,null,null,null,null,null,null,null,null,null,null,null,null,null,null,null,null,null,null,null,null,null,null,null,null,null,null,null,null,null,null,null,null,null,null,null,null,null,null,null,null,null,null,null,null,null,null,null,null,null,null,null,null,null,null,null,null,null,null,null,null,null,null,null,null,null,null,null,null,null,null,null,null,null,null,null,null,null,null,null,null,null,null,null,null,null,7,null,"","()"]
[null,null,null,null,null,null,null,null,null,null,null,null,null,null,null,null,null,null,null,null,null,null,null,null,null,null,null,null,null,null,null,null,null,null,null,null,null,null,null,null,null,null,null,null,null,null,null,null,null,null,null,null,null,null,null,null,null,null,null,null,null,null,null,null,null,null,null,null,null,null,null,null,null,null,null,null,null,null,null,null,null,null,null,null,null,null,null,null,null,null,null,null,null,null,null,null,null,null,null,null,null,null,null,null,null,null,null,null,null,null,null,null,null,null,null,null,null,null,null,null,null,null,null,null,null,null,null,null,null,null,null,null,null,null,null,null,null,8,null,"","()"]
[null,null,null,null,null,null,null,null,null,null,null,null,null,null,null,null,null,null,null,null,null,null,null,null,null,null,null,null,null,null,null,null,null,null,null,null,null,null,null,null,null,null,null,null,null,null,null,null,null,null,null,null,null,null,null,null,null,null,null,null,null,null,null,null,null,null,null,null,null,null,null,null,null,null,null,null,null,null,null,null,null,null,null,null,null,null,null,null,null,null,null,null,null,null,null,null,null,null,null,null,null,null,null,null,null,null,null,null,null,null,null,null,null,null,null,null,null,null,null,null,null,null,null,null,null,null,null,null,null,null,null,null,null,null,null,null,null,9,null,"","()"]
[null,null,null,null,null,null,null,null,null,null,null,null,null,null,null,null,null,null,null,null,null,null,null,null,null,null,null,null,null,null,null,null,null,null,null,null,null,null,null,null,null,null,null,null,null,null,null,null,null,null,null,null,null,null,null,null,null,null,null,null,null,null,null,null,null,null,null,null,null,null,null,null,null,null,null,null,null,null,null,null,null,null,null,null,null,null,null,null,null,null,null,null,null,null,null,null,null,null,null,null,null,null,null,null,null,null,null,null,null,null,null,null,null,null,null,null,null,null,null,null,null,null,null,null,null,null,null,null,null,null,null,null,null,null,null,null,null,10,null,"","()"]
[null,null,null,null,null,null,null,null,null,null,null,null,null,null,null,null,null,null,null,null,null,null,null,null,null,null,null,null,null,null,null,null,null,null,null,null,null,null,null,null,null,null,null,null,null,null,null,null,null,null,null,null,null,null,null,null,null,null,null,null,null,null,null,null,null,null,null,null,null,null,null,null,null,null,null,null,null,null,null,null,null,null,null,null,null,null,null,null,null,null,null,null,null,null,null,null,null,null,null,null,null,null,null,null,null,null,null,null,null,null,null,null,null,null,null,null,null,null,null,null,null,null,null,null,null,null,null,null,null,null,null,null,null,null,null,null,null,11,null,"","()"]
[null,null,null,null,null,null,null,null,null,null,null,null,null,null,null,null,null,null,null,null,null,null,null,null,null,null,null,null,null,null,null,null,null,null,null,null,null,null,null,null,null,null,null,null,null,null,null,null,null,null,null,null,null,null,null,null,null,null,null,null,null,null,null,null,null,null,null,null,null,null,null,null,null,null,null,null,null,null,null,null,null,null,null,null,null,null,null,null,null,null,null,null,null,null,null,null,null,null,null,null,null,null,null,null,null,null,null,null,null,null,null,null,null,null,null,null,null,null,null,null,null,null,null,null,null,null,null,null,null,null,null,null,null,null,null,null,null,12,null,"","()"]
[null,null,null,null,null,null,null,null,null,null,null,null,null,null,null,null,null,null,null,null,null,null,null,null,null,null,null,null,null,null,null,null,null,null,null,null,null,null,null,null,null,null,null,null,null,null,null,null,null,null,null,null,null,null,null,null,null,null,null,null,null,null,null,null,null,null,null,null,null,null,null,null,null,null,null,null,null,null,null,null,null,null,null,null,null,null,null,null,null,null,null,null,null,null,null,null,null,null,null,null,null,null,null,null,null,null,null,null,null,null,null,null,null,null,null,null,null,null,null,null,null,null,null,null,null,null,null,null,null,null,null,null,null,null,null,null,null,13,null,"","()"]
[null,null,null,null,null,null,null,null,null,null,null,null,null,null,null,null,null,null,null,null,null,null,null,null,null,null,null,null,null,null,null,null,null,null,null,null,null,null,null,null,null,null,null,null,null,null,null,null,null,null,null,null,null,null,null,null,null,null,null,null,null,null,null,null,null,null,null,null,null,null,null,null,null,null,null,null,null,null,null,null,null,null,null,null,null,null,null,null,null,null,null,null,null,null,null,null,null,null,null,null,null,null,null,null,null,null,null,null,null,null,null,null,null,null,null,null,null,null,null,null,null,null,null,null,null,null,null,null,null,null,null,null,null,null,null,null,null,14,null,{"$f":"IF(BD40>=1,AE40,14)","v":14},"()"]
[null,null,null,null,null,null,null,null,null,null,null,null,null,null,null,null,null,null,null,null,null,null,null,null,null,null,null,null,null,null,null,null,null,null,null,null,null,null,null,null,null,null,null,null,null,null,null,null,null,null,null,null,null,null,null,null,null,null,null,null,null,null,null,null,null,null,null,null,null,null,null,null,null,null,null,null,null,null,null,null,null,null,null,null,null,null,null,null,null,null,null,null,null,null,null,null,null,null,null,null,null,null,null,null,null,null,null,null,null,null,null,null,null,null,null,null,null,null,null,null,null,null,null,null,null,null,null,null,null,null,null,null,null,null,null,null,null,15,null,{"$f":"IF(BD41>=1,AE41,\"\")","v":""},"()"]
[null,null,null,null,null,null,null,null,null,null,null,null,null,null,null,null,null,null,null,null,null,null,null,null,null,null,null,null,null,null,null,null,null,null,null,null,null,null,null,null,null,null,null,null,null,null,null,null,null,null,null,null,null,null,null,null,null,null,null,null,null,null,null,null,null,null,null,null,null,null,null,null,null,null,null,null,null,null,null,null,null,null,null,null,null,null,null,null,null,null,null,null,null,null,null,null,null,null,null,null,null,null,null,null,null,null,null,null,null,null,null,null,null,null,null,null,null,null,null,null,null,null,null,null,null,null,null,null,null,null,null,null,null,null,null,null,null,16,null,{"$f":"IF(BD42>=1,AE42,\"\")","v":""},"()"]
[null,null,null,null,null,null,null,null,null,null,null,null,null,null,null,null,null,null,null,null,null,null,null,null,null,null,null,null,null,null,null,null,null,null,null,null,null,null,null,null,null,null,null,null,null,null,null,null,null,null,null,null,null,null,null,null,null,null,null,null,null,null,null,null,null,null,null,null,null,null,null,null,null,null,null,null,null,null,null,null,null,null,null,null,null,null,null,null,null,null,null,null,null,null,null,null,null,null,null,null,null,null,null,null,null,null,null,null,null,null,null,null,null,null,null,null,null,null,null,null,null,null,null,null,null,null,null,null,null,null,null,null,null,null,null,null,null,2,null,{"$f":"IF(BD43>=1,AE43,\"\")","v":""},"()"]
[null,null,null,null,null,null,null,null,null,null,null,null,null,null,null,null,null,null,null,null,null,null,null,null,null,null,null,null,null,null,null,null,null,null,null,null,null,null,null,null,null,null,null,null,null,null,null,null,null,null,null,null,null,null,null,null,null,null,null,null,null,null,null,null,null,null,null,null,null,null,null,null,null,null,null,null,null,null,null,null,null,null,null,null,null,null,null,null,null,null,null,null,null,null,null,null,null,null,null,null,null,null,null,null,null,null,null,null,null,null,null,null,null,null,null,null,null,null,null,null,null,null,null,null,null,null,null,null,null,null,null,null,null,null,null,null,null,17,null,{"$f":"IF(BD44>=1,AE44,\"\")","v":""},{"$f":"IF(BD44>2,\"(\"&AD44&\")\",\"(\"&AF44&\")\")","v":"()"}]
[null,null,null,null,null,null,null,null,null,null,null,null,null,null,null,null,null,null,null,null,null,null,null,null,null,null,null,null,null,null,null,null,null,null,null,null,null,null,null,null,null,null,null,null,null,null,null,null,null,null,null,null,null,null,null,null,null,null,null,null,null,null,null,null,null,null,null,null,null,null,null,null,null,null,null,null,null,null,null,null,null,null,null,null,null,null,null,null,null,null,null,null,null,null,null,null,null,null,null,null,null,null,null,null,null,null,null,null,null,null,null,null,null,null,null,null,null,null,null,null,null,null,null,null,null,null,null,null,null,null,null,null,null,null,null,null,null,18,null,18,{"$f":"IF(BD45>1,\"(\"&AD45&\")\",\"(\"&AF45&\")\")","v":"()"}]
[null,null,null,null,null,null,null,null,null,null,null,null,null,null,null,null,null,null,null,null,null,null,null,null,null,null,null,null,null,null,null,null,null,null,null,null,null,null,null,null,null,null,null,null,null,null,null,null,null,null,null,null,null,null,null,null,null,null,null,null,null,null,null,null,null,null,null,null,null,null,null,null,null,null,null,null,null,null,null,null,null,null,null,null,null,null,null,null,null,null,null,null,null,null,null,null,null,null,null,null,null,null,null,null,null,null,null,null,null,null,null,null,null,null,null,null,null,null,null,null,null,null,null,null,null,null,null,null,null,null,null,null,null,null,null,null,null,19,null,19,{"$f":"IF(BD46>1,\"(\"&AD46&\")\",\"(\"&AF46&\")\")","v":"()"}]
[null,null,null,null,null,null,null,null,null,null,null,null,null,null,null,null,null,null,null,null,null,null,null,null,null,null,null,null,null,null,null,null,null,null,null,null,null,null,null,null,null,null,null,null,null,null,null,null,null,null,null,null,null,null,null,null,null,null,null,null,null,null,null,null,null,null,null,null,null,null,null,null,null,null,null,null,null,null,null,null,null,null,null,null,null,null,null,null,null,null,null,null,null,null,null,null,null,null,null,null,null,null,null,null,null,null,null,null,null,null,null,null,null,null,null,null,null,null,null,null,null,null,null,null,null,null,null,null,null,null,null,null,null,null,null,null,null,20,null,20,{"$f":"IF(BD47>1,\"(\"&AD47&\")\",\"(\"&AF47&\")\")","v":"()"}]

{"sheet":"Seriespelsranking","index":3,"n_rows":123,"n_cols":135,"rows_kept":123,"cut":false,"hidden":false,"merged":[]}
[null,"Svenska Hästskokastarförbundets Seriespelsranking"]
[null,"2016_2017"]
[null,"SLUTSTÄLLNING"]
["Plac.","Kastare ","Klubb","Ranking-snitt ",null,"Antal serie-resultat","Total-poäng serie-resultat",null,"Antal vunna dubblar","Antal förlorade dubblar","Antal vunna singlar","Antal förlorade singlar","Antal vunna matcher i %","Inskrivning resultat",null,null,null,null,null,null,null,null,null,null,null,null,null,null,null,null,null,null,null,null,null,null,null,null,null,null,null,null,null,null,null,null,null,null,null,null,null,null,null,null,null,null,null,null,null,null,null,null,null,null,null,null,null,null,"Uträkning   för","statistik vunna resp.","förlorade ","dubblar och singlar."]
[{"$f":"DU5&EE5","v":"1(1)"},"Sandor Bodi","Växjö",{"$f":"IF(F5>0.5,(G5/F5),0)","v":223.69230769230768},null,{"$f":"COUNT(N5:BO5)","v":39},{"$f":"SUM(N5:BO5)","v":8724},null,{"$f":"COUNTIF(BQ5:DR5,2)","v":0},{"$f":"COUNTIF(BQ5:DR5,-2)","v":0},{"$f":"COUNTIF(BQ5:DR5,1)","v":0},{"$f":"COUNTIF(BQ5:DR5,-1)","v":0},{"$f":"IF(F5>0,(I5+K5)/(F5),0)","v":0},236,211,190,233,138,249,258,239,254,139,229,139,175,234,231,240,214,229,244,263,263,182,253,229,194,281,207,221,285,219,217,218,262,251,260,174,247,217,199,null,null,null,null,null,null,null,null,null,null,null,null,null,null,null,null,null,null,null,null,null,null,null,null,null,null,null,null,null,null,null,null,null,null,null,null,null,null,null,null,null,null,null,null,null,null,null,null,null,null,null,null,null,null,null,null,null,null,null,null,null,null,null,null,null,null,null,null,null,null,null,1,{"$f":"IF(AND(D5=D4,D5=D3,D5=D2,D5=D1),ROW(1:1),IF(AND(D5=D4,D5=D3,D5=D2),ROW(1:1),IF(AND(D5=D4,D5=D3),ROW(1:1),IF(D5=D4,ROW(1:1),IF(D5>1,ROW(1:1),\"-\")))))","v":1},{"$f":"IF(DX5=1,ROW(1:1),\"-\")","v":1},null,1,null,null,null,11,null,{"$f":"IF(DX5=1,DU5,IF(DX5=\"\",DU5,\"\"))","v":1},{"$f":"IF(DX5=1,\"(\"&DT5&\")\",\"(\"&DV5&\")\")","v":"(1)"}]
["2(2)","Tobias Gneupel","Sibbamåla",219.52500000000001,null,40,8781,null,0,0,0,0,0,217,162,224,169,245,266,195,220,222,245,296,228,180,228,170,248,155,284,228,222,230,230,223,209,195,211,284,242,289,244,176,280,174,226,239,175,152,189,191,218,null,null,null,null,null,null,null,null,null,null,null,null,null,null,null,null,null,null,null,null,null,null,null,null,null,null,null,null,null,null,null,null,null,null,null,null,null,null,null,null,null,null,null,null,null,null,null,null,null,null,null,null,null,null,null,null,null,null,null,null,null,null,null,null,null,null,null,null,null,null,2,{"$f":"IF(AND(D6=D5,D6=D4,D6=D3,D6=D2),ROW(1:1),IF(AND(D6=D5,D6=D4,D6=D3),ROW(1:1),IF(AND(D6=D5,D6=D4),ROW(1:1),IF(D6=D5,ROW(1:1),IF(D6>1,ROW(2:2),\"-\")))))","v":2},2,null,1,null,null,null,16,null,2,"(2)"]
["3(3)","Kent Sundahl","Carlskrona",210.76923076923077,null,39,8220,null,0,0,0,0,0,153,157,184,114,161,238,311,226,268,250,173,201,256,194,186,242,239,208,230,187,193,204,238,258,172,235,190,234,273,182,235,184,162,212,235,206,202,241,186,null,null,null,null,null,null,null,null,null,null,null,null,null,null,null,null,null,null,null,null,null,null,null,null,null,null,null,null,null,null,null,null,null,null,null,null,null,null,null,null,null,null,null,null,null,null,null,null,null,null,null,null,null,null,null,null,null,null,null,null,null,null,null,null,null,null,null,null,null,null,null,3,{"$f":"IF(AND(D7=D6,D7=D5,D7=D4,D7=D3),ROW(1:1),IF(AND(D7=D6,D7=D5,D7=D4),ROW(1:1),IF(AND(D7=D6,D7=D5),ROW(1:1),IF(D7=D6,ROW(2:2),IF(D7>1,ROW(3:3),\"-\")))))","v":3},3,null,1,null,null,null,20,null,3,"(3)"]
["4(4)","Olle Ottosson","Dynapac Södra",196.38095238095238,null,42,8248,null,0,0,0,0,0,159,164,205,189,202,118,174,255,213,199,237,249,151,208,169,240,228,194,207,272,172,199,237,197,179,242,198,213,217,186,189,163,147,176,197,204,211,219,146,174,162,187,null,null,null,null,null,null,null,null,null,null,null,null,null,null,null,null,null,null,null,null,null,null,null,null,null,null,null,null,null,null,null,null,null,null,null,null,null,null,null,null,null,null,null,null,null,null,null,null,null,null,null,null,null,null,null,null,null,null,null,null,null,null,null,null,null,null,null,null,4,{"$f":"IF(AND(D8=D7,D8=D6,D8=D5),ROW(1:1),IF(AND(D8=D7,D8=D6),ROW(2:2),IF(D8=D7,ROW(3:3),IF(D8>1,ROW(4:4),\"-\"))))","v":4},4,null,1,null,null,null,4,null,4,"(4)"]
["5(5)","Armin Sisic","Värends Hsk",176.9,null,20,3538,null,0,0,0,0,0,104,163,164,189,147,198,160,208,191,262,211,238,163,174,142,157,179,194,137,157,null,null,null,null,null,null,null,null,null,null,null,null,null,null,null,null,null,null,null,null,null,null,null,null,null,null,null,null,null,null,null,null,null,null,null,null,null,null,null,null,null,null,null,null,null,null,null,null,null,null,null,null,null,null,null,null,null,null,null,null,null,null,null,null,null,null,null,null,null,null,null,null,null,null,null,null,null,null,null,null,null,null,null,null,null,null,null,null,null,null,5,{"$f":"IF(D9>1,ROW(5:5),\"-\")","v":5},5,null,1,null,null,null,1,null,5,"(5)"]
["6(6)","Ingvar Eriksson","Carlskrona",176.7948717948718,null,39,6895,null,0,0,0,0,0,191,136,191,148,148,178,212,245,229,182,167,194,264,215,163,169,179,195,205,218,132,132,111,188,189,171,111,174,185,145,235,161,217,225,184,88,142,138,138,null,null,null,null,null,null,null,null,null,null,null,null,null,null,null,null,null,null,null,null,null,null,null,null,null,null,null,null,null,null,null,null,null,null,null,null,null,null,null,null,null,null,null,null,null,null,null,null,null,null,null,null,null,null,null,null,null,null,null,null,null,null,null,null,null,null,null,null,null,null,null,6,{"$f":"IF(D10=D9,ROW(5:5),IF(D10>1,ROW(6:6),\"-\"))","v":6},6,null,1,null,null,null,2,null,6,"(6)"]
["7(7)","Gert Karlsson","Korpen Åseda",171.7741935483871,null,31,5325,null,0,0,0,0,0,198,215,178,132,142,157,117,220,136,110,191,181,157,149,276,286,153,210,192,225,141,161,126,118,171,159,98,162,207,171,186,null,null,null,null,null,null,null,null,null,null,null,null,null,null,null,null,null,null,null,null,null,null,null,null,null,null,null,null,null,null,null,null,null,null,null,null,null,null,null,null,null,null,null,null,null,null,null,null,null,null,null,null,null,null,null,null,null,null,null,null,null,null,null,null,null,null,null,null,null,null,null,null,null,null,null,null,null,null,null,7,{"$f":"IF(AND(D11=D10,D11=D9,D11=D8,D11=D7),ROW(3:3),IF(AND(D11=D10,D11=D9,D11=D8),ROW(4:4),IF(AND(D11=D10,D11=D9),ROW(5:5),IF(D11=D10,ROW(6:6),IF(D11>1,ROW(7:7),\"-\")))))","v":7},7,null,1,null,null,null,5,null,7,"(7)"]
["8(8)","Johan Johansson","Tingsryd",170.86842105263159,null,38,6493,null,0,0,0,0,0,172,166,185,117,173,161,255,141,151,113,135,141,199,162,130,160,165,199,162,239,175,162,181,221,181,169,198,164,180,223,117,154,178,145,145,206,214,154,null,null,null,null,null,null,null,null,null,null,null,null,null,null,null,null,null,null,null,null,null,null,null,null,null,null,null,null,null,null,null,null,null,null,null,null,null,null,null,null,null,null,null,null,null,null,null,null,null,null,null,null,null,null,null,null,null,null,null,null,null,null,null,null,null,null,null,null,null,null,null,null,8,8,8,null,1,null,null,null,6,null,8,"(8)"]
["9(9)","Matz Karlsson","Korpen Åseda",167.43589743589743,null,39,6530,null,0,0,0,0,0,196,172,174,210,100,182,204,193,162,175,134,196,128,131,190,168,180,174,123,126,163,57,147,159,265,189,219,126,231,191,118,126,127,195,181,225,225,123,145,null,null,null,null,null,null,null,null,null,null,null,null,null,null,null,null,null,null,null,null,null,null,null,null,null,null,null,null,null,null,null,null,null,null,null,null,null,null,null,null,null,null,null,null,null,null,null,null,null,null,null,null,null,null,null,null,null,null,null,null,null,null,null,null,null,null,null,null,null,null,null,9,9,9,null,1,null,null,null,8,null,9,"(9)"]
["10(10)","Magnus Israelsson","Sibbamåla ",165.62857142857143,null,35,5797,null,0,0,0,0,0,134,174,129,189,134,186,209,150,118,210,125,119,112,156,201,139,153,111,192,176,170,203,221,138,153,206,121,167,85,172,247,179,196,190,232,null,null,null,null,null,null,null,null,null,null,null,null,null,null,null,null,null,null,null,null,null,null,null,null,null,null,null,null,null,null,null,null,null,null,null,null,null,null,null,null,null,null,null,null,null,null,null,null,null,null,null,null,null,null,null,null,null,null,null,null,null,null,null,null,null,null,null,null,null,null,null,null,null,null,null,10,10,10,null,1,null,null,null,12,null,10,"(10)"]
["11(11)","Anders Johansson","Dynapac Södra",160.83333333333334,null,24,3860,null,0,0,0,0,0,180,200,171,179,118,134,128,166,124,135,113,161,109,136,185,200,158,136,115,225,193,200,232,162,null,null,null,null,null,null,null,null,null,null,null,null,null,null,null,null,null,null,null,null,null,null,null,null,null,null,null,null,null,null,null,null,null,null,null,null,null,null,null,null,null,null,null,null,null,null,null,null,null,null,null,null,null,null,null,null,null,null,null,null,null,null,null,null,null,null,null,null,null,null,null,null,null,null,null,null,null,null,null,null,null,null,null,null,null,null,11,11,11,null,1,null,null,null,15,null,11,"(11)"]
["12(12)","Lisbeth Nygaard-Karlsson","Tingsryd",159.25,null,40,6370,null,0,0,0,0,0,95,151,162,130,183,162,183,151,122,128,160,128,185,205,151,142,200,147,185,165,144,230,132,116,110,183,189,180,152,120,191,165,198,183,154,104,216,143,120,205,null,null,null,null,null,null,null,null,null,null,null,null,null,null,null,null,null,null,null,null,null,null,null,null,null,null,null,null,null,null,null,null,null,null,null,null,null,null,null,null,null,null,null,null,null,null,null,null,null,null,null,null,null,null,null,null,null,null,null,null,null,null,null,null,null,null,null,null,null,null,12,12,12,null,1,null,null,null,21,null,12,"(12)"]
["13(13)","Fredrik Lundin","Lanternan",158.4,null,10,1584,null,0,0,0,0,0,207,245,127,181,144,180,152,145,77,126,null,null,null,null,null,null,null,null,null,null,null,null,null,null,null,null,null,null,null,null,null,null,null,null,null,null,null,null,null,null,null,null,null,null,null,null,null,null,null,null,null,null,null,null,null,null,null,null,null,null,null,null,null,null,null,null,null,null,null,null,null,null,null,null,null,null,null,null,null,null,null,null,null,null,null,null,null,null,null,null,null,null,null,null,null,null,null,null,null,null,null,null,null,null,null,null,null,null,null,null,13,13,13,null,1,null,null,null,3,null,13,"(13)"]
["14(14)","Gebriela Kostantinos","Korpen Åseda",156.57692307692307,null,26,4071,null,0,0,0,0,0,136,151,189,172,131,137,171,122,133,232,202,172,174,165,169,188,128,167,98,132,115,91,136,169,190,201,null,null,null,null,null,null,null,null,null,null,null,null,null,null,null,null,null,null,null,null,null,null,null,null,null,null,null,null,null,null,null,null,null,null,null,null,null,null,null,null,null,null,null,null,null,null,null,null,null,null,null,null,null,null,null,null,null,null,null,null,null,null,null,null,null,null,null,null,null,null,null,null,null,null,null,null,null,null,null,null,null,null,null,null,14,14,14,null,1,null,null,null,7,null,14,"(14)"]
["15(15)","Lasse Brincner","Värends Hsk",152.55555555555554,null,27,4119,null,0,0,0,0,0,193,134,209,138,204,80,132,115,102,150,216,179,102,207,147,146,197,102,122,193,113,153,192,149,138,169,137,null,null,null,null,null,null,null,null,null,null,null,null,null,null,null,null,null,null,null,null,null,null,null,null,null,null,null,null,null,null,null,null,null,null,null,null,null,null,null,null,null,null,null,null,null,null,null,null,null,null,null,null,null,null,null,null,null,null,null,null,null,null,null,null,null,null,null,null,null,null,null,null,null,null,null,null,null,null,null,null,null,null,null,15,15,15,null,1,null,null,null,17,null,15,"(15)"]
["16(16)","Bo Petersson","Korpen Nybro",151.52173913043478,null,23,3485,null,0,0,0,0,0,166,169,228,179,162,128,161,171,128,108,138,166,115,180,227,124,128,182,92,123,133,191,86,null,null,null,null,null,null,null,null,null,null,null,null,null,null,null,null,null,null,null,null,null,null,null,null,null,null,null,null,null,null,null,null,null,null,null,null,null,null,null,null,null,null,null,null,null,null,null,null,null,null,null,null,null,null,null,null,null,null,null,null,null,null,null,null,null,null,null,null,null,null,null,null,null,null,null,null,null,null,null,null,null,null,null,null,null,null,null,16,16,16,null,1,null,null,null,18,null,16,"(16)"]
["17(17)","Tomas Lindahl","Korpen Åseda",151.38888888888889,null,36,5450,null,0,0,0,0,0,177,144,91,178,207,177,119,93,91,224,171,164,178,90,185,101,184,155,179,189,113,185,153,163,101,158,177,131,162,121,134,117,203,129,155,151,null,null,null,null,null,null,null,null,null,null,null,null,null,null,null,null,null,null,null,null,null,null,null,null,null,null,null,null,null,null,null,null,null,null,null,null,null,null,null,null,null,null,null,null,null,null,null,null,null,null,null,null,null,null,null,null,null,null,null,null,null,null,null,null,null,null,null,null,null,null,null,null,null,null,17,17,17,null,1,null,null,null,24,null,17,"(17)"]
["18(18)","Maj-Britt Jarl","Växjö",149.71428571428572,null,35,5240,null,0,0,0,0,0,146,149,138,131,112,113,162,153,142,128,178,187,154,95,154,205,133,74,105,208,195,171,145,162,115,138,130,130,82,192,108,216,230,166,193,null,null,null,null,null,null,null,null,null,null,null,null,null,null,null,null,null,null,null,null,null,null,null,null,null,null,null,null,null,null,null,null,null,null,null,null,null,null,null,null,null,null,null,null,null,null,null,null,null,null,null,null,null,null,null,null,null,null,null,null,null,null,null,null,null,null,null,null,null,null,null,null,null,null,null,18,18,18,null,1,null,null,null,9,null,18,"(18)"]
["19(19)","Roy Dahlén","Dynapac Södra",146.77777777777777,null,18,2642,null,0,0,0,0,0,142,136,192,108,130,86,112,175,136,168,54,148,169,184,207,154,140,201,null,null,null,null,null,null,null,null,null,null,null,null,null,null,null,null,null,null,null,null,null,null,null,null,null,null,null,null,null,null,null,null,null,null,null,null,null,null,null,null,null,null,null,null,null,null,null,null,null,null,null,null,null,null,null,null,null,null,null,null,null,null,null,null,null,null,null,null,null,null,null,null,null,null,null,null,null,null,null,null,null,null,null,null,null,null,null,null,null,null,null,null,19,19,19,null,1,null,null,null,10,null,19,"(19)"]
["20(20)","Mattias Gneupel","Sibbamåla",142.13513513513513,null,37,5259,null,0,0,0,0,0,82,191,165,148,135,151,158,82,129,219,107,193,142,195,123,198,144,125,151,88,166,86,106,162,174,159,119,164,120,188,136,101,135,135,106,138,138,null,null,null,null,null,null,null,null,null,null,null,null,null,null,null,null,null,null,null,null,null,null,null,null,null,null,null,null,null,null,null,null,null,null,null,null,null,null,null,null,null,null,null,null,null,null,null,null,null,null,null,null,null,null,null,null,null,null,null,null,null,null,null,null,null,null,null,null,null,null,null,null,null,20,20,20,null,1,null,null,null,22,null,20,"(20)"]
["21(21)","Christian Balsiger","Värends Hsk",134.44,null,25,3361,null,0,0,0,0,0,107,93,111,100,141,125,141,90,93,131,175,124,114,115,186,98,111,144,175,113,256,192,175,100,151,null,null,null,null,null,null,null,null,null,null,null,null,null,null,null,null,null,null,null,null,null,null,null,null,null,null,null,null,null,null,null,null,null,null,null,null,null,null,null,null,null,null,null,null,null,null,null,null,null,null,null,null,null,null,null,null,null,null,null,null,null,null,null,null,null,null,null,null,null,null,null,null,null,null,null,null,null,null,null,null,null,null,null,null,null,21,21,21,null,1,null,null,null,14,null,21,"(21)"]
["22(22)","Joel Sundahl","Carlskrona",133.02941176470588,null,34,4523,null,0,0,0,0,0,119,102,180,162,78,117,128,179,135,93,150,115,143,80,95,172,146,100,122,126,89,149,163,110,123,68,161,98,179,215,163,183,84,196,null,null,null,null,null,null,null,null,null,null,null,null,null,null,null,null,null,null,null,null,null,null,null,null,null,null,null,null,null,null,null,null,null,null,null,null,null,null,null,null,null,null,null,null,null,null,null,null,null,null,null,null,null,null,null,null,null,null,null,null,null,null,null,null,null,null,null,null,null,null,null,null,null,null,null,null,22,22,22,null,1,null,null,null,13,null,22,"(22)"]
["23(23)","Ewa Malmqvist","Jämjö Hsc",132.57692307692307,null,26,3447,null,0,0,0,0,0,94,115,153,171,150,133,54,104,109,170,159,140,135,148,145,161,74,132,86,141,154,222,172,111,72,142,null,null,null,null,null,null,null,null,null,null,null,null,null,null,null,null,null,null,null,null,null,null,null,null,null,null,null,null,null,null,null,null,null,null,null,null,null,null,null,null,null,null,null,null,null,null,null,null,null,null,null,null,null,null,null,null,null,null,null,null,null,null,null,null,null,null,null,null,null,null,null,null,null,null,null,null,null,null,null,null,null,null,null,null,23,23,23,null,1,null,null,null,19,null,23,"(23)"]
[{"$f":"DU28&EE28","v":"24(24)"},"Göran Mårtensson","Jämjö Hsc",131.30000000000001,null,10,1313,null,0,0,0,0,0,98,116,131,97,122,175,166,151,130,127,null,null,null,null,null,null,null,null,null,null,null,null,null,null,null,null,null,null,null,null,null,null,null,null,null,null,null,null,null,null,null,null,null,null,null,null,null,null,null,null,null,null,null,null,null,null,null,null,null,null,null,null,null,null,null,null,null,null,null,null,null,null,null,null,null,null,null,null,null,null,null,null,null,null,null,null,null,null,null,null,null,null,null,null,null,null,null,null,null,null,null,null,null,null,null,null,null,null,null,null,24,{"$f":"IF(AND(D28=D27,D28=D26,D28=D25,D28=D24),ROW(20:20),IF(AND(D28=D27,D28=D26,D28=D25),ROW(21:21),IF(AND(D28=D27,D28=D26),ROW(22:22),IF(D28=D27,ROW(23:23),IF(D28>1,ROW(24:24),\"-\")))))","v":24},{"$f":"IF(DX28=1,ROW(24:24),\"-\")","v":24},null,1,null,null,null,28,null,{"$f":"IF(DX28=1,DU28,IF(DX28=\"\",DU28,\"\"))","v":24},{"$f":"IF(DX28=1,\"(\"&DT28&\")\",\"(\"&DV28&\")\")","v":"(24)"}]
[{"$f":"DU29&EE29","v":"25(25)"},"Stefan Olofsson","Korpen Nybro",129.54545454545453,null,11,1425,null,0,0,0,0,0,135,108,107,126,153,182,118,141,139,124,92,null,null,null,null,null,null,null,null,null,null,null,null,null,null,null,null,null,null,null,null,null,null,null,null,null,null,null,null,null,null,null,null,null,null,null,null,null,null,null,null,null,null,null,null,null,null,null,null,null,null,null,null,null,null,null,null,null,null,null,null,null,null,null,null,null,null,null,null,null,null,null,null,null,null,null,null,null,null,null,null,null,null,null,null,null,null,null,null,null,null,null,null,null,null,null,null,null,null,null,25,{"$f":"IF(AND(D29=D28,D29=D27,D29=D26,D29=D25),ROW(21:21),IF(AND(D29=D28,D29=D27,D29=D26),ROW(22:22),IF(AND(D29=D28,D29=D27),ROW(23:23),IF(D29=D28,ROW(24:24),IF(D29>1,ROW(25:25),\"-\")))))","v":25},{"$f":"IF(DX29=1,ROW(25:25),\"-\")","v":25},null,1,null,null,null,23,null,{"$f":"IF(DX29=1,DU29,IF(DX29=\"\",DU29,\"\"))","v":25},{"$f":"IF(DX29=1,\"(\"&DT29&\")\",\"(\"&DV29&\")\")","v":"(25)"}]
[{"$f":"DU30&EE30","v":"26(26)"},"Leif Sundahl","Carlskrona",129.45714285714286,null,35,4531,null,0,0,0,0,0,108,125,112,100,124,100,95,137,135,161,89,120,131,132,134,104,140,98,121,115,149,95,167,151,132,142,126,180,127,152,146,149,121,161,152,null,null,null,null,null,null,null,null,null,null,null,null,null,null,null,null,null,null,null,null,null,null,null,null,null,null,null,null,null,null,null,null,null,null,null,null,null,null,null,null,null,null,null,null,null,null,null,null,null,null,null,null,null,null,null,null,null,null,null,null,null,null,null,null,null,null,null,null,null,null,null,null,null,null,null,26,{"$f":"IF(AND(D30=D29,D30=D28,D30=D27,D30=D26),ROW(22:22),IF(AND(D30=D29,D30=D28,D30=D27),ROW(23:23),IF(AND(D30=D29,D30=D28),ROW(24:24),IF(D30=D29,ROW(25:25),IF(D30>1,ROW(26:26),\"-\")))))","v":26},{"$f":"IF(DX30=1,ROW(26:26),\"-\")","v":26},null,1,null,null,null,25,null,{"$f":"IF(DX30=1,DU30,IF(DX30=\"\",DU30,\"\"))","v":26},{"$f":"IF(DX30=1,\"(\"&DT30&\")\",\"(\"&DV30&\")\")","v":"(26)"}]
[{"$f":"DU31&EE31","v":"27(27)"},"Stefan Tollstam","Dynapac Södra",129.22222222222223,null,9,1163,null,0,0,0,0,0,173,138,155,96,94,123,97,118,169,null,null,null,null,null,null,null,null,null,null,null,null,null,null,null,null,null,null,null,null,null,null,null,null,null,null,null,null,null,null,null,null,null,null,null,null,null,null,null,null,null,null,null,null,null,null,null,null,null,null,null,null,null,null,null,null,null,null,null,null,null,null,null,null,null,null,null,null,null,null,null,null,null,null,null,null,null,null,null,null,null,null,null,null,null,null,null,null,null,null,null,null,null,null,null,null,null,null,null,null,null,27,{"$f":"IF(AND(D31=D30,D31=D29,D31=D28,D31=D27),ROW(23:23),IF(AND(D31=D30,D31=D29,D31=D28),ROW(24:24),IF(AND(D31=D30,D31=D29),ROW(25:25),IF(D31=D30,ROW(26:26),IF(D31>1,ROW(27:27),\"-\")))))","v":27},{"$f":"IF(DX31=1,ROW(27:27),\"-\")","v":27},null,1,null,null,null,26,null,{"$f":"IF(DX31=1,DU31,IF(DX31=\"\",DU31,\"\"))","v":27},{"$f":"IF(DX31=1,\"(\"&DT31&\")\",\"(\"&DV31&\")\")","v":"(27)"}]
[{"$f":"DU32&EE32","v":"28(28)"},"Lukas Bern","Dynapac Södra",127.41176470588235,null,17,2166,null,0,0,0,0,0,128,127,148,223,118,84,145,111,117,107,65,97,85,150,147,150,164,null,null,null,null,null,null,null,null,null,null,null,null,null,null,null,null,null,null,null,null,null,null,null,null,null,null,null,null,null,null,null,null,null,null,null,null,null,null,null,null,null,null,null,null,null,null,null,null,null,null,null,null,null,null,null,null,null,null,null,null,null,null,null,null,null,null,null,null,null,null,null,null,null,null,null,null,null,null,null,null,null,null,null,null,null,null,null,null,null,null,null,null,null,28,{"$f":"IF(AND(D32=D31,D32=D30,D32=D29,D32=D28),ROW(24:24),IF(AND(D32=D31,D32=D30,D32=D29),ROW(25:25),IF(AND(D32=D31,D32=D30),ROW(26:26),IF(D32=D31,ROW(27:27),IF(D32>1,ROW(28:28),\"-\")))))","v":28},{"$f":"IF(DX32=1,ROW(28:28),\"-\")","v":28},null,1,null,null,null,27,null,{"$f":"IF(DX32=1,DU32,IF(DX32=\"\",DU32,\"\"))","v":28},{"$f":"IF(DX32=1,\"(\"&DT32&\")\",\"(\"&DV32&\")\")","v":"(28)"}]
["29(29)","Anita Fabbeke","Dynapac Södra",127.15789473684211,null,38,4832,null,0,0,0,0,0,122,92,73,88,119,128,155,102,132,126,135,120,99,99,151,124,122,186,178,125,132,146,159,152,105,137,77,191,116,116,134,104,134,110,148,143,125,127,null,null,null,null,null,null,null,null,null,null,null,null,null,null,null,null,null,null,null,null,null,null,null,null,null,null,null,null,null,null,null,null,null,null,null,null,null,null,null,null,null,null,null,null,null,null,null,null,null,null,null,null,null,null,null,null,null,null,null,null,null,null,null,null,null,null,null,null,null,null,null,null,29,29,29,null,1,null,null,null,29,null,29,"(29)"]
["30(30)","Bernt Olsson","Jämjö Hsc",126.54545454545455,null,22,2784,null,0,0,0,0,0,114,101,131,81,135,140,115,97,144,164,155,98,105,92,172,108,108,179,167,139,106,133,null,null,null,null,null,null,null,null,null,null,null,null,null,null,null,null,null,null,null,null,null,null,null,null,null,null,null,null,null,null,null,null,null,null,null,null,null,null,null,null,null,null,null,null,null,null,null,null,null,null,null,null,null,null,null,null,null,null,null,null,null,null,null,null,null,null,null,null,null,null,null,null,null,null,null,null,null,null,null,null,null,null,null,null,null,null,null,null,30,30,30,null,1,null,null,null,30,null,30,"(30)"]
["31(31)","Peter Olsson","Dynapac Södra",125.76190476190476,null,21,2641,null,0,0,0,0,0,104,168,152,70,130,149,123,147,138,106,213,134,108,128,88,50,70,200,103,134,126,null,null,null,null,null,null,null,null,null,null,null,null,null,null,null,null,null,null,null,null,null,null,null,null,null,null,null,null,null,null,null,null,null,null,null,null,null,null,null,null,null,null,null,null,null,null,null,null,null,null,null,null,null,null,null,null,null,null,null,null,null,null,null,null,null,null,null,null,null,null,null,null,null,null,null,null,null,null,null,null,null,null,null,null,null,null,null,null,null,31,31,31,null,1,null,null,null,31,null,31,"(31)"]
["32(32)","Maire Johansson","Växjö",125.76,null,25,3144,null,0,0,0,0,0,85,84,118,121,41,162,187,156,182,108,116,144,182,72,162,73,101,126,116,90,139,168,137,110,164,null,null,null,null,null,null,null,null,null,null,null,null,null,null,null,null,null,null,null,null,null,null,null,null,null,null,null,null,null,null,null,null,null,null,null,null,null,null,null,null,null,null,null,null,null,null,null,null,null,null,null,null,null,null,null,null,null,null,null,null,null,null,null,null,null,null,null,null,null,null,null,null,null,null,null,null,null,null,null,null,null,null,null,null,null,32,32,32,null,1,null,null,null,32,null,32,"(32)"]
[{"$f":"DU37&EE37","v":"33(33)"},"Carina Gneupel","Sibbamåla",{"$f":"IF(F37>0.5,(G37/F37),0)","v":125.71428571428571},null,{"$f":"COUNT(N37:BO37)","v":21},{"$f":"SUM(N37:BO37)","v":2640},null,{"$f":"COUNTIF(BQ37:DR37,2)","v":0},{"$f":"COUNTIF(BQ37:DR37,-2)","v":0},{"$f":"COUNTIF(BQ37:DR37,1)","v":0},{"$f":"COUNTIF(BQ37:DR37,-1)","v":0},{"$f":"IF(F37>0,(I37+K37)/(F37),0)","v":0},141,112,129,143,131,163,108,111,119,72,142,128,167,122,146,126,104,165,109,122,80,null,null,null,null,null,null,null,null,null,null,null,null,null,null,null,null,null,null,null,null,null,null,null,null,null,null,null,null,null,null,null,null,null,null,null,null,null,null,null,null,null,null,null,null,null,null,null,null,null,null,null,null,null,null,null,null,null,null,null,null,null,null,null,null,null,null,null,null,null,null,null,null,null,null,null,null,null,null,null,null,null,null,null,null,null,null,null,null,null,33,33,{"$f":"IF(DX37=1,ROW(33:33),\"-\")","v":33},null,1,null,null,null,33,null,{"$f":"IF(DX37=1,DU37,IF(DX37=\"\",DU37,\"\"))","v":33},{"$f":"IF(DX37=1,\"(\"&DT37&\")\",\"(\"&DV37&\")\")","v":"(33)"}]
["34(34)","Lennart Karlsson","Tingsryd",124.3030303030303,null,33,4102,null,0,0,0,0,0,148,126,106,129,105,128,118,84,101,111,95,92,115,121,122,151,165,93,171,138,75,147,162,123,108,96,78,117,144,191,112,192,138,null,null,null,null,null,null,null,null,null,null,null,null,null,null,null,null,null,null,null,null,null,null,null,null,null,null,null,null,null,null,null,null,null,null,null,null,null,null,null,null,null,null,null,null,null,null,null,null,null,null,null,null,null,null,null,null,null,null,null,null,null,null,null,null,null,null,null,null,null,null,null,null,null,null,null,null,null,34,34,34,null,1,null,null,null,34,null,34,"(34)"]
["35(35)","Göran Olofsson","Korpen Nybro",123.53333333333333,null,30,3706,null,0,0,0,0,0,149,54,143,140,151,139,165,159,92,65,55,109,106,102,141,142,86,90,107,110,139,124,81,207,95,185,128,168,142,132,null,null,null,null,null,null,null,null,null,null,null,null,null,null,null,null,null,null,null,null,null,null,null,null,null,null,null,null,null,null,null,null,null,null,null,null,null,null,null,null,null,null,null,null,null,null,null,null,null,null,null,null,null,null,null,null,null,null,null,null,null,null,null,null,null,null,null,null,null,null,null,null,null,null,null,null,null,null,null,null,35,35,35,null,1,null,null,null,35,null,35,"(35)"]
["36(36)","Mattias Olsson","Dynapac Södra",120.42857142857143,null,7,843,null,0,0,0,0,0,94,144,124,132,45,176,128,null,null,null,null,null,null,null,null,null,null,null,null,null,null,null,null,null,null,null,null,null,null,null,null,null,null,null,null,null,null,null,null,null,null,null,null,null,null,null,null,null,null,null,null,null,null,null,null,null,null,null,null,null,null,null,null,null,null,null,null,null,null,null,null,null,null,null,null,null,null,null,null,null,null,null,null,null,null,null,null,null,null,null,null,null,null,null,null,null,null,null,null,null,null,null,null,null,null,null,null,null,null,null,36,36,36,null,1,null,null,null,36,null,36,"(36)"]
["37(37)","Leo Andersson","Carlskrona",119.25,null,8,954,null,0,0,0,0,0,56,90,77,162,148,144,109,168,null,null,null,null,null,null,null,null,null,null,null,null,null,null,null,null,null,null,null,null,null,null,null,null,null,null,null,null,null,null,null,null,null,null,null,null,null,null,null,null,null,null,null,null,null,null,null,null,null,null,null,null,null,null,null,null,null,null,null,null,null,null,null,null,null,null,null,null,null,null,null,null,null,null,null,null,null,null,null,null,null,null,null,null,null,null,null,null,null,null,null,null,null,null,null,null,null,null,null,null,null,null,37,37,37,null,1,null,null,null,37,null,37,"(37)"]
["38(38)","Kjell Rydh","Korpen Nybro",119.24,null,25,2981,null,0,0,0,0,0,158,141,75,100,87,92,64,121,122,105,115,92,151,144,75,83,143,120,116,179,157,198,146,112,85,null,null,null,null,null,null,null,null,null,null,null,null,null,null,null,null,null,null,null,null,null,null,null,null,null,null,null,null,null,null,null,null,null,null,null,null,null,null,null,null,null,null,null,null,null,null,null,null,null,null,null,null,null,null,null,null,null,null,null,null,null,null,null,null,null,null,null,null,null,null,null,null,null,null,null,null,null,null,null,null,null,null,null,null,null,38,38,38,null,1,null,null,null,38,null,38,"(38)"]
["39(39)","Jan Petersson","Lanternan",119.23076923076923,null,13,1550,null,0,0,0,0,0,98,116,102,142,102,87,136,101,175,147,123,112,109,null,null,null,null,null,null,null,null,null,null,null,null,null,null,null,null,null,null,null,null,null,null,null,null,null,null,null,null,null,null,null,null,null,null,null,null,null,null,null,null,null,null,null,null,null,null,null,null,null,null,null,null,null,null,null,null,null,null,null,null,null,null,null,null,null,null,null,null,null,null,null,null,null,null,null,null,null,null,null,null,null,null,null,null,null,null,null,null,null,null,null,null,null,null,null,null,null,39,{"$f":"IF(AND(D43=D42,D43=D41,D43=D40,D43=D39),ROW(35:35),IF(AND(D43=D42,D43=D41,D43=D40),ROW(36:36),IF(AND(D43=D42,D43=D41),ROW(37:37),IF(D43=D42,ROW(38:38),IF(D43>1,ROW(39:39),\"-\")))))","v":39},39,null,1,null,null,null,39,null,39,"(39)"]
["40(40)","Ronny Lundberg","Lanternan",119.04166666666667,null,24,2857,null,0,0,0,0,0,85,104,132,123,144,101,104,102,137,83,130,145,117,113,68,98,131,133,136,88,133,119,171,160,null,null,null,null,null,null,null,null,null,null,null,null,null,null,null,null,null,null,null,null,null,null,null,null,null,null,null,null,null,null,null,null,null,null,null,null,null,null,null,null,null,null,null,null,null,null,null,null,null,null,null,null,null,null,null,null,null,null,null,null,null,null,null,null,null,null,null,null,null,null,null,null,null,null,null,null,null,null,null,null,null,null,null,null,null,null,40,40,40,null,1,null,null,null,40,null,40,"(40)"]
["41(41)","Bengt Fabbeke","Dynapac Södra",118.97058823529412,null,34,4045,null,0,0,0,0,0,170,139,109,46,89,125,115,143,145,110,78,128,95,85,146,126,84,176,119,82,134,145,112,173,143,91,135,108,123,136,129,123,112,71,null,null,null,null,null,null,null,null,null,null,null,null,null,null,null,null,null,null,null,null,null,null,null,null,null,null,null,null,null,null,null,null,null,null,null,null,null,null,null,null,null,null,null,null,null,null,null,null,null,null,null,null,null,null,null,null,null,null,null,null,null,null,null,null,null,null,null,null,null,null,null,null,null,null,null,null,41,41,41,null,1,null,null,null,41,null,41,"(41)"]
["42(42)","Bela Bodi","Växjö",117.93548387096774,null,31,3656,null,0,0,0,0,0,95,107,69,143,98,87,93,100,119,130,143,158,124,67,78,142,141,176,108,142,127,113,106,122,122,123,147,114,138,154,70,null,null,null,null,null,null,null,null,null,null,null,null,null,null,null,null,null,null,null,null,null,null,null,null,null,null,null,null,null,null,null,null,null,null,null,null,null,null,null,null,null,null,null,null,null,null,null,null,null,null,null,null,null,null,null,null,null,null,null,null,null,null,null,null,null,null,null,null,null,null,null,null,null,null,null,null,null,null,null,42,42,42,null,1,null,null,null,42,null,42,"(42)"]
["43(43)","Ingegerd Pettersson","Lanternan",117.16666666666667,null,18,2109,null,0,0,0,0,0,83,132,175,83,144,134,84,156,76,116,115,162,102,124,92,106,95,130,null,null,null,null,null,null,null,null,null,null,null,null,null,null,null,null,null,null,null,null,null,null,null,null,null,null,null,null,null,null,null,null,null,null,null,null,null,null,null,null,null,null,null,null,null,null,null,null,null,null,null,null,null,null,null,null,null,null,null,null,null,null,null,null,null,null,null,null,null,null,null,null,null,null,null,null,null,null,null,null,null,null,null,null,null,null,null,null,null,null,null,null,43,43,43,null,1,null,null,null,43,null,43,"(43)"]
["44(44)","Bengt Andersson","Växjö",116.14285714285714,null,14,1626,null,0,0,0,0,0,95,69,61,117,128,133,135,89,98,217,117,110,118,139,null,null,null,null,null,null,null,null,null,null,null,null,null,null,null,null,null,null,null,null,null,null,null,null,null,null,null,null,null,null,null,null,null,null,null,null,null,null,null,null,null,null,null,null,null,null,null,null,null,null,null,null,null,null,null,null,null,null,null,null,null,null,null,null,null,null,null,null,null,null,null,null,null,null,null,null,null,null,null,null,null,null,null,null,null,null,null,null,null,null,null,null,null,null,null,null,44,44,44,null,1,null,null,null,52,null,44,"(44)"]
["45(45)","Hans Johansson","Tingsryd",115.47058823529412,null,34,3926,null,0,0,0,0,0,89,141,85,106,85,95,139,127,121,102,133,68,81,113,87,132,130,153,134,132,121,92,126,111,81,146,121,106,171,123,157,106,103,109,null,null,null,null,null,null,null,null,null,null,null,null,null,null,null,null,null,null,null,null,null,null,null,null,null,null,null,null,null,null,null,null,null,null,null,null,null,null,null,null,null,null,null,null,null,null,null,null,null,null,null,null,null,null,null,null,null,null,null,null,null,null,null,null,null,null,null,null,null,null,null,null,null,null,null,null,45,45,45,null,1,null,null,null,44,null,45,"(45)"]
["46(46)","Berndt Petersson","Lanternan",114.21739130434783,null,23,2627,null,0,0,0,0,0,91,89,86,81,41,68,107,130,80,138,106,125,120,135,116,79,197,128,170,95,124,159,162,null,null,null,null,null,null,null,null,null,null,null,null,null,null,null,null,null,null,null,null,null,null,null,null,null,null,null,null,null,null,null,null,null,null,null,null,null,null,null,null,null,null,null,null,null,null,null,null,null,null,null,null,null,null,null,null,null,null,null,null,null,null,null,null,null,null,null,null,null,null,null,null,null,null,null,null,null,null,null,null,null,null,null,null,null,null,null,46,46,46,null,1,null,null,null,45,null,46,"(46)"]
["47(47)","Nils-Åke Hansson","Korpen Nybro",114.10526315789474,null,19,2168,null,0,0,0,0,0,125,78,132,126,81,126,129,110,105,103,172,115,128,112,214,65,85,92,70,null,null,null,null,null,null,null,null,null,null,null,null,null,null,null,null,null,null,null,null,null,null,null,null,null,null,null,null,null,null,null,null,null,null,null,null,null,null,null,null,null,null,null,null,null,null,null,null,null,null,null,null,null,null,null,null,null,null,null,null,null,null,null,null,null,null,null,null,null,null,null,null,null,null,null,null,null,null,null,null,null,null,null,null,null,null,null,null,null,null,null,47,47,47,null,1,null,null,null,46,null,47,"(47)"]
["48(48)","Alf Svensson","Korpen Åseda",112.66666666666667,null,12,1352,null,0,0,0,0,0,116,77,120,136,104,50,126,84,161,105,166,107,null,null,null,null,null,null,null,null,null,null,null,null,null,null,null,null,null,null,null,null,null,null,null,null,null,null,null,null,null,null,null,null,null,null,null,null,null,null,null,null,null,null,null,null,null,null,null,null,null,null,null,null,null,null,null,null,null,null,null,null,null,null,null,null,null,null,null,null,null,null,null,null,null,null,null,null,null,null,null,null,null,null,null,null,null,null,null,null,null,null,null,null,null,null,null,null,null,null,48,48,48,null,1,null,null,null,47,null,48,"(48)"]
["49(49)","Rune Karlsson","Korpen Nybro",112.14285714285714,null,7,785,null,0,0,0,0,0,172,123,143,108,42,83,114,null,null,null,null,null,null,null,null,null,null,null,null,null,null,null,null,null,null,null,null,null,null,null,null,null,null,null,null,null,null,null,null,null,null,null,null,null,null,null,null,null,null,null,null,null,null,null,null,null,null,null,null,null,null,null,null,null,null,null,null,null,null,null,null,null,null,null,null,null,null,null,null,null,null,null,null,null,null,null,null,null,null,null,null,null,null,null,null,null,null,null,null,null,null,null,null,null,null,null,null,null,null,null,49,49,49,null,1,null,null,null,48,null,49,"(49)"]
["50(50)","Christer Blomgren","Lanternan",110.09677419354838,null,31,3413,null,0,0,0,0,0,99,108,78,67,126,116,166,133,138,154,149,79,104,106,98,102,111,102,90,105,159,134,102,119,123,101,68,83,110,86,97,null,null,null,null,null,null,null,null,null,null,null,null,null,null,null,null,null,null,null,null,null,null,null,null,null,null,null,null,null,null,null,null,null,null,null,null,null,null,null,null,null,null,null,null,null,null,null,null,null,null,null,null,null,null,null,null,null,null,null,null,null,null,null,null,null,null,null,null,null,null,null,null,null,null,null,null,null,null,null,50,50,50,null,1,null,null,null,49,null,50,"(50)"]
["51(51)","Sune Ohlsson","Korpen Nybro",109.5,null,22,2409,null,0,0,0,0,0,61,83,66,79,148,134,112,172,87,146,111,142,103,111,115,103,50,96,136,95,144,115,null,null,null,null,null,null,null,null,null,null,null,null,null,null,null,null,null,null,null,null,null,null,null,null,null,null,null,null,null,null,null,null,null,null,null,null,null,null,null,null,null,null,null,null,null,null,null,null,null,null,null,null,null,null,null,null,null,null,null,null,null,null,null,null,null,null,null,null,null,null,null,null,null,null,null,null,null,null,null,null,null,null,null,null,null,null,null,null,51,51,51,null,1,null,null,null,50,null,51,"(51)"]
["52(52)","Dan Hallstan","Växjö",108.76,null,25,2719,null,0,0,0,0,0,89,99,63,103,87,106,51,125,136,133,105,105,157,49,174,54,157,162,115,156,101,120,113,71,88,null,null,null,null,null,null,null,null,null,null,null,null,null,null,null,null,null,null,null,null,null,null,null,null,null,null,null,null,null,null,null,null,null,null,null,null,null,null,null,null,null,null,null,null,null,null,null,null,null,null,null,null,null,null,null,null,null,null,null,null,null,null,null,null,null,null,null,null,null,null,null,null,null,null,null,null,null,null,null,null,null,null,null,null,null,52,52,52,null,1,null,null,null,51,null,52,"(52)"]
["53(53)","Clara Larsson","Värends Hsk",101.94444444444444,null,18,1835,null,0,0,0,0,0,48,93,127,111,88,131,78,97,98,94,67,76,110,109,135,108,113,152,null,null,null,null,null,null,null,null,null,null,null,null,null,null,null,null,null,null,null,null,null,null,null,null,null,null,null,null,null,null,null,null,null,null,null,null,null,null,null,null,null,null,null,null,null,null,null,null,null,null,null,null,null,null,null,null,null,null,null,null,null,null,null,null,null,null,null,null,null,null,null,null,null,null,null,null,null,null,null,null,null,null,null,null,null,null,null,null,null,null,null,null,53,53,53,null,1,null,null,null,53,null,53,"(53)"]
["54(54)","Gilbert Pettersson","Lanternan",101.06666666666666,null,15,1516,null,0,0,0,0,0,112,72,85,79,84,99,125,133,143,132,66,116,102,66,102,null,null,null,null,null,null,null,null,null,null,null,null,null,null,null,null,null,null,null,null,null,null,null,null,null,null,null,null,null,null,null,null,null,null,null,null,null,null,null,null,null,null,null,null,null,null,null,null,null,null,null,null,null,null,null,null,null,null,null,null,null,null,null,null,null,null,null,null,null,null,null,null,null,null,null,null,null,null,null,null,null,null,null,null,null,null,null,null,null,null,null,null,null,null,null,54,54,54,null,1,null,null,null,109,null,54,"(54)"]
["55(55)","Olle Nilsson","Tingsryd",100.9047619047619,null,21,2119,null,0,0,0,0,0,64,102,101,156,71,115,119,90,89,136,78,118,108,143,88,64,116,98,83,106,74,null,null,null,null,null,null,null,null,null,null,null,null,null,null,null,null,null,null,null,null,null,null,null,null,null,null,null,null,null,null,null,null,null,null,null,null,null,null,null,null,null,null,null,null,null,null,null,null,null,null,null,null,null,null,null,null,null,null,null,null,null,null,null,null,null,null,null,null,null,null,null,null,null,null,null,null,null,null,null,null,null,null,null,null,null,null,null,null,null,55,55,55,null,1,null,null,null,54,null,55,"(55)"]
["56(56)","Mikael Bodi","Växjö",100.82352941176471,null,34,3428,null,0,0,0,0,0,91,67,87,122,139,54,88,120,90,46,107,148,94,81,59,78,104,177,135,118,133,125,158,103,68,101,53,59,74,112,76,114,139,108,null,null,null,null,null,null,null,null,null,null,null,null,null,null,null,null,null,null,null,null,null,null,null,null,null,null,null,null,null,null,null,null,null,null,null,null,null,null,null,null,null,null,null,null,null,null,null,null,null,null,null,null,null,null,null,null,null,null,null,null,null,null,null,null,null,null,null,null,null,null,null,null,null,null,null,null,56,56,56,null,1,null,null,null,55,null,56,"(56)"]
["57(57)","Thomas Dahl","Växjö",100.53846153846153,null,26,2614,null,0,0,0,0,0,91,114,78,140,84,141,142,145,104,79,93,65,115,157,61,65,64,36,74,57,115,149,101,140,91,113,null,null,null,null,null,null,null,null,null,null,null,null,null,null,null,null,null,null,null,null,null,null,null,null,null,null,null,null,null,null,null,null,null,null,null,null,null,null,null,null,null,null,null,null,null,null,null,null,null,null,null,null,null,null,null,null,null,null,null,null,null,null,null,null,null,null,null,null,null,null,null,null,null,null,null,null,null,null,null,null,null,null,null,null,57,57,57,null,1,null,null,null,56,null,57,"(57)"]
["58(58)","Lasse Nilsson","Värends Hsk",100.3,null,10,1003,null,0,0,0,0,0,102,122,95,62,173,94,95,69,112,79,null,null,null,null,null,null,null,null,null,null,null,null,null,null,null,null,null,null,null,null,null,null,null,null,null,null,null,null,null,null,null,null,null,null,null,null,null,null,null,null,null,null,null,null,null,null,null,null,null,null,null,null,null,null,null,null,null,null,null,null,null,null,null,null,null,null,null,null,null,null,null,null,null,null,null,null,null,null,null,null,null,null,null,null,null,null,null,null,null,null,null,null,null,null,null,null,null,null,null,null,58,58,58,null,1,null,null,null,57,null,58,"(58)"]
["59(59)","Göran Persson","Dynapac Södra",99.391304347826093,null,23,2286,null,0,0,0,0,0,74,107,99,123,80,66,114,155,114,76,93,86,104,87,101,131,113,104,92,139,43,58,127,null,null,null,null,null,null,null,null,null,null,null,null,null,null,null,null,null,null,null,null,null,null,null,null,null,null,null,null,null,null,null,null,null,null,null,null,null,null,null,null,null,null,null,null,null,null,null,null,null,null,null,null,null,null,null,null,null,null,null,null,null,null,null,null,null,null,null,null,null,null,null,null,null,null,null,null,null,null,null,null,null,null,null,null,null,null,null,59,59,59,null,1,null,null,null,58,null,59,"(59)"]
["60(60)","Lars-Åke Karlsson","Jämjö Hsc",97.785714285714292,null,14,1369,null,0,0,0,0,0,97,95,76,109,112,77,95,85,111,101,121,85,79,126,null,null,null,null,null,null,null,null,null,null,null,null,null,null,null,null,null,null,null,null,null,null,null,null,null,null,null,null,null,null,null,null,null,null,null,null,null,null,null,null,null,null,null,null,null,null,null,null,null,null,null,null,null,null,null,null,null,null,null,null,null,null,null,null,null,null,null,null,null,null,null,null,null,null,null,null,null,null,null,null,null,null,null,null,null,null,null,null,null,null,null,null,null,null,null,null,60,60,60,null,1,null,null,null,59,null,60,"(60)"]
["61(61)","Martin Antic","Värends Hsk",97.214285714285708,null,14,1361,null,0,0,0,0,0,92,106,88,76,120,105,104,85,82,113,81,72,135,102,null,null,null,null,null,null,null,null,null,null,null,null,null,null,null,null,null,null,null,null,null,null,null,null,null,null,null,null,null,null,null,null,null,null,null,null,null,null,null,null,null,null,null,null,null,null,null,null,null,null,null,null,null,null,null,null,null,null,null,null,null,null,null,null,null,null,null,null,null,null,null,null,null,null,null,null,null,null,null,null,null,null,null,null,null,null,null,null,null,null,null,null,null,null,null,null,61,61,61,null,1,null,null,null,60,null,61,"(61)"]
["62(62)","Peter Edlund","Dynapac Södra",96.444444444444443,null,9,868,null,0,0,0,0,0,115,143,136,136,87,69,30,122,30,null,null,null,null,null,null,null,null,null,null,null,null,null,null,null,null,null,null,null,null,null,null,null,null,null,null,null,null,null,null,null,null,null,null,null,null,null,null,null,null,null,null,null,null,null,null,null,null,null,null,null,null,null,null,null,null,null,null,null,null,null,null,null,null,null,null,null,null,null,null,null,null,null,null,null,null,null,null,null,null,null,null,null,null,null,null,null,null,null,null,null,null,null,null,null,null,null,null,null,null,null,62,62,62,null,1,null,null,null,61,null,62,"(62)"]
["63(63)","Lars-Erik Gren","Team Småland Hsk",92.5,null,2,185,null,0,0,0,0,0,95,90,null,null,null,null,null,null,null,null,null,null,null,null,null,null,null,null,null,null,null,null,null,null,null,null,null,null,null,null,null,null,null,null,null,null,null,null,null,null,null,null,null,null,null,null,null,null,null,null,null,null,null,null,null,null,null,null,null,null,null,null,null,null,null,null,null,null,null,null,null,null,null,null,null,null,null,null,null,null,null,null,null,null,null,null,null,null,null,null,null,null,null,null,null,null,null,null,null,null,null,null,null,null,null,null,null,null,null,null,63,63,63,null,1,null,null,null,62,null,63,"(63)"]
["64(64)","Sebastian Israelsson","Sibbamåla",91.409090909090907,null,22,2011,null,0,0,0,0,0,55,63,102,71,88,100,107,58,62,78,65,96,132,82,105,132,93,76,156,74,106,110,null,null,null,null,null,null,null,null,null,null,null,null,null,null,null,null,null,null,null,null,null,null,null,null,null,null,null,null,null,null,null,null,null,null,null,null,null,null,null,null,null,null,null,null,null,null,null,null,null,null,null,null,null,null,null,null,null,null,null,null,null,null,null,null,null,null,null,null,null,null,null,null,null,null,null,null,null,null,null,null,null,null,null,null,null,null,null,null,64,64,64,null,1,null,null,null,64,null,64,"(64)"]
[{"$f":"DU69&EE69","v":"65(65)"},"Ann-Marie Larsson","Tingsryd",{"$f":"IF(F69>0.5,(G69/F69),0)","v":91.16},null,{"$f":"COUNT(N69:BO69)","v":25},{"$f":"SUM(N69:BO69)","v":2279},null,{"$f":"COUNTIF(BQ69:DR69,2)","v":0},{"$f":"COUNTIF(BQ69:DR69,-2)","v":0},{"$f":"COUNTIF(BQ69:DR69,1)","v":0},{"$f":"COUNTIF(BQ69:DR69,-1)","v":0},{"$f":"IF(F69>0,(I69+K69)/(F69),0)","v":0},49,114,95,165,119,65,23,90,83,98,117,72,81,97,196,72,81,33,91,163,58,75,86,92,64,null,null,null,null,null,null,null,null,null,null,null,null,null,null,null,null,null,null,null,null,null,null,null,null,null,null,null,null,null,null,null,null,null,null,null,null,null,null,null,null,null,null,null,null,null,null,null,null,null,null,null,null,null,null,null,null,null,null,null,null,null,null,null,null,null,null,null,null,null,null,null,null,null,null,null,null,null,null,null,null,null,null,null,null,null,65,65,{"$f":"IF(DX69=1,ROW(65:65),\"-\")","v":65},null,1,null,null,null,65,null,{"$f":"IF(DX69=1,DU69,IF(DX69=\"\",DU69,\"\"))","v":65},{"$f":"IF(DX69=1,\"(\"&DT69&\")\",\"(\"&DV69&\")\")","v":"(65)"}]
["66(66)","Ulrika Rydell","Värends Hsk",90.818181818181813,null,11,999,null,0,0,0,0,0,87,61,85,53,146,58,107,68,113,72,149,null,null,null,null,null,null,null,null,null,null,null,null,null,null,null,null,null,null,null,null,null,null,null,null,null,null,null,null,null,null,null,null,null,null,null,null,null,null,null,null,null,null,null,null,null,null,null,null,null,null,null,null,null,null,null,null,null,null,null,null,null,null,null,null,null,null,null,null,null,null,null,null,null,null,null,null,null,null,null,null,null,null,null,null,null,null,null,null,null,null,null,null,null,null,null,null,null,null,null,66,66,66,null,1,null,null,null,66,null,66,"(66)"]
["67(67)","Rolf Johannesson","Värends Hsk",87.15384615384616,null,13,1133,null,0,0,0,0,0,54,73,58,65,98,113,100,79,86,74,155,83,95,null,null,null,null,null,null,null,null,null,null,null,null,null,null,null,null,null,null,null,null,null,null,null,null,null,null,null,null,null,null,null,null,null,null,null,null,null,null,null,null,null,null,null,null,null,null,null,null,null,null,null,null,null,null,null,null,null,null,null,null,null,null,null,null,null,null,null,null,null,null,null,null,null,null,null,null,null,null,null,null,null,null,null,null,null,null,null,null,null,null,null,null,null,null,null,null,null,67,67,67,null,1,null,null,null,67,null,67,"(67)"]
["68(68)","Åke Bergkvist","Tingsryd",82.692307692307693,null,26,2150,null,0,0,0,0,0,44,43,55,55,64,64,10,57,47,110,141,83,90,92,103,54,121,60,92,108,95,112,136,142,101,71,null,null,null,null,null,null,null,null,null,null,null,null,null,null,null,null,null,null,null,null,null,null,null,null,null,null,null,null,null,null,null,null,null,null,null,null,null,null,null,null,null,null,null,null,null,null,null,null,null,null,null,null,null,null,null,null,null,null,null,null,null,null,null,null,null,null,null,null,null,null,null,null,null,null,null,null,null,null,null,null,null,null,null,null,68,68,68,null,1,null,null,null,68,null,68,"(68)"]
["69(69)","Marianne Karlsson","Jämjö Hsc",80.421052631578945,null,19,1528,null,0,0,0,0,0,58,112,72,61,59,81,122,86,43,92,68,85,70,80,79,110,110,68,72,null,null,null,null,null,null,null,null,null,null,null,null,null,null,null,null,null,null,null,null,null,null,null,null,null,null,null,null,null,null,null,null,null,null,null,null,null,null,null,null,null,null,null,null,null,null,null,null,null,null,null,null,null,null,null,null,null,null,null,null,null,null,null,null,null,null,null,null,null,null,null,null,null,null,null,null,null,null,null,null,null,null,null,null,null,null,null,null,null,null,null,69,69,69,null,1,null,null,null,69,null,69,"(69)"]
["70(70)","Lennart Karlsson","Lanternan",79.5,null,4,318,null,0,0,0,0,0,64,67,106,81,null,null,null,null,null,null,null,null,null,null,null,null,null,null,null,null,null,null,null,null,null,null,null,null,null,null,null,null,null,null,null,null,null,null,null,null,null,null,null,null,null,null,null,null,null,null,null,null,null,null,null,null,null,null,null,null,null,null,null,null,null,null,null,null,null,null,null,null,null,null,null,null,null,null,null,null,null,null,null,null,null,null,null,null,null,null,null,null,null,null,null,null,null,null,null,null,null,null,null,null,null,null,null,null,null,null,70,70,70,null,1,null,null,null,70,null,70,"(70)"]
["71(71)","Gunnar Lundbeck","Tingsryd",79.319999999999993,null,25,1983,null,0,0,0,0,0,93,64,79,138,129,28,109,101,77,87,77,65,48,130,48,30,55,27,105,103,69,124,63,62,72,null,null,null,null,null,null,null,null,null,null,null,null,null,null,null,null,null,null,null,null,null,null,null,null,null,null,null,null,null,null,null,null,null,null,null,null,null,null,null,null,null,null,null,null,null,null,null,null,null,null,null,null,null,null,null,null,null,null,null,null,null,null,null,null,null,null,null,null,null,null,null,null,null,null,null,null,null,null,null,null,null,null,null,null,null,71,{"$f":"IF(AND(D75=D74,D75=D73,D75=D72,D75=D71),ROW(67:67),IF(AND(D75=D74,D75=D73,D75=D72),ROW(68:68),IF(AND(D75=D74,D75=D73),ROW(69:69),IF(D75=D74,ROW(70:70),IF(D75>1,ROW(71:71),\"-\")))))","v":71},71,null,1,null,null,null,114,null,71,"(71)"]
["72(72)","Alf Johansson","Värends Hsk",78.2,null,25,1955,null,0,0,0,0,0,68,85,88,68,50,114,157,42,95,78,60,124,51,45,83,50,42,81,59,86,64,142,78,93,52,null,null,null,null,null,null,null,null,null,null,null,null,null,null,null,null,null,null,null,null,null,null,null,null,null,null,null,null,null,null,null,null,null,null,null,null,null,null,null,null,null,null,null,null,null,null,null,null,null,null,null,null,null,null,null,null,null,null,null,null,null,null,null,null,null,null,null,null,null,null,null,null,null,null,null,null,null,null,null,null,null,null,null,null,null,72,72,72,null,1,null,null,null,71,null,72,"(72)"]
["73(73)","Inger Andersson","Korpen Nybro",77.599999999999994,null,5,388,null,0,0,0,0,0,87,34,89,144,34,null,null,null,null,null,null,null,null,null,null,null,null,null,null,null,null,null,null,null,null,null,null,null,null,null,null,null,null,null,null,null,null,null,null,null,null,null,null,null,null,null,null,null,null,null,null,null,null,null,null,null,null,null,null,null,null,null,null,null,null,null,null,null,null,null,null,null,null,null,null,null,null,null,null,null,null,null,null,null,null,null,null,null,null,null,null,null,null,null,null,null,null,null,null,null,null,null,null,null,null,null,null,null,null,null,73,73,73,null,1,null,null,null,111,null,73,"(73)"]
["74(74)","Susanne Andersson","Team Småland Hsk",75,null,2,150,null,0,0,0,0,0,78,72,null,null,null,null,null,null,null,null,null,null,null,null,null,null,null,null,null,null,null,null,null,null,null,null,null,null,null,null,null,null,null,null,null,null,null,null,null,null,null,null,null,null,null,null,null,null,null,null,null,null,null,null,null,null,null,null,null,null,null,null,null,null,null,null,null,null,null,null,null,null,null,null,null,null,null,null,null,null,null,null,null,null,null,null,null,null,null,null,null,null,null,null,null,null,null,null,null,null,null,null,null,null,null,null,null,null,null,null,74,74,74,null,1,null,null,null,72,null,74,"(74)"]
["75(75)","Ulrika Strandahl","Växjö",74.400000000000006,null,5,372,null,0,0,0,0,0,58,116,55,75,68,null,null,null,null,null,null,null,null,null,null,null,null,null,null,null,null,null,null,null,null,null,null,null,null,null,null,null,null,null,null,null,null,null,null,null,null,null,null,null,null,null,null,null,null,null,null,null,null,null,null,null,null,null,null,null,null,null,null,null,null,null,null,null,null,null,null,null,null,null,null,null,null,null,null,null,null,null,null,null,null,null,null,null,null,null,null,null,null,null,null,null,null,null,null,null,null,null,null,null,null,null,null,null,null,null,75,75,75,null,1,null,null,null,73,null,75,"(75)"]
["76(76)","Kerstin Svensson","Växjö",74.266666666666666,null,15,1114,null,0,0,0,0,0,69,56,106,78,70,85,30,114,75,51,112,68,119,30,51,null,null,null,null,null,null,null,null,null,null,null,null,null,null,null,null,null,null,null,null,null,null,null,null,null,null,null,null,null,null,null,null,null,null,null,null,null,null,null,null,null,null,null,null,null,null,null,null,null,null,null,null,null,null,null,null,null,null,null,null,null,null,null,null,null,null,null,null,null,null,null,null,null,null,null,null,null,null,null,null,null,null,null,null,null,null,null,null,null,null,null,null,null,null,null,76,76,76,null,1,null,null,null,74,null,76,"(76)"]
["77(77)","Bertil Westergren","Växjö",74,null,3,222,null,0,0,0,0,0,87,44,91,null,null,null,null,null,null,null,null,null,null,null,null,null,null,null,null,null,null,null,null,null,null,null,null,null,null,null,null,null,null,null,null,null,null,null,null,null,null,null,null,null,null,null,null,null,null,null,null,null,null,null,null,null,null,null,null,null,null,null,null,null,null,null,null,null,null,null,null,null,null,null,null,null,null,null,null,null,null,null,null,null,null,null,null,null,null,null,null,null,null,null,null,null,null,null,null,null,null,null,null,null,null,null,null,null,null,null,77,77,77,null,1,null,null,null,75,null,77,"(77)"]
["78(78)","Bertil Olsson","Jämjö Hsc",63,null,4,252,null,0,0,0,0,0,45,100,74,33,null,null,null,null,null,null,null,null,null,null,null,null,null,null,null,null,null,null,null,null,null,null,null,null,null,null,null,null,null,null,null,null,null,null,null,null,null,null,null,null,null,null,null,null,null,null,null,null,null,null,null,null,null,null,null,null,null,null,null,null,null,null,null,null,null,null,null,null,null,null,null,null,null,null,null,null,null,null,null,null,null,null,null,null,null,null,null,null,null,null,null,null,null,null,null,null,null,null,null,null,null,null,null,null,null,null,78,78,78,null,1,null,null,null,76,null,78,"(78)"]
["79(79)","Allan Persson","Tingsryd",60.666666666666664,null,3,182,null,0,0,0,0,0,80,37,65,null,null,null,null,null,null,null,null,null,null,null,null,null,null,null,null,null,null,null,null,null,null,null,null,null,null,null,null,null,null,null,null,null,null,null,null,null,null,null,null,null,null,null,null,null,null,null,null,null,null,null,null,null,null,null,null,null,null,null,null,null,null,null,null,null,null,null,null,null,null,null,null,null,null,null,null,null,null,null,null,null,null,null,null,null,null,null,null,null,null,null,null,null,null,null,null,null,null,null,null,null,null,null,null,null,null,null,79,79,79,null,1,null,null,null,77,null,79,"(79)"]
["80(80)","Anders Karlsson","Värends Hsk",60.142857142857146,null,7,421,null,0,0,0,0,0,30,34,74,39,67,98,79,null,null,null,null,null,null,null,null,null,null,null,null,null,null,null,null,null,null,null,null,null,null,null,null,null,null,null,null,null,null,null,null,null,null,null,null,null,null,null,null,null,null,null,null,null,null,null,null,null,null,null,null,null,null,null,null,null,null,null,null,null,null,null,null,null,null,null,null,null,null,null,null,null,null,null,null,null,null,null,null,null,null,null,null,null,null,null,null,null,null,null,null,null,null,null,null,null,null,null,null,null,null,null,80,80,80,null,1,null,null,null,78,null,80,"(80)"]
["81(81)","Elisabeth Brisendahl","Tingsryd",52.5,null,2,105,null,0,0,0,0,0,27,78,null,null,null,null,null,null,null,null,null,null,null,null,null,null,null,null,null,null,null,null,null,null,null,null,null,null,null,null,null,null,null,null,null,null,null,null,null,null,null,null,null,null,null,null,null,null,null,null,null,null,null,null,null,null,null,null,null,null,null,null,null,null,null,null,null,null,null,null,null,null,null,null,null,null,null,null,null,null,null,null,null,null,null,null,null,null,null,null,null,null,null,null,null,null,null,null,null,null,null,null,null,null,null,null,null,null,null,null,81,81,81,null,1,null,null,null,79,null,81,"(81)"]
["82(82)","Jonas Klarström","Team Småland Hsk",47.5,null,2,95,null,0,0,0,0,0,71,24,null,null,null,null,null,null,null,null,null,null,null,null,null,null,null,null,null,null,null,null,null,null,null,null,null,null,null,null,null,null,null,null,null,null,null,null,null,null,null,null,null,null,null,null,null,null,null,null,null,null,null,null,null,null,null,null,null,null,null,null,null,null,null,null,null,null,null,null,null,null,null,null,null,null,null,null,null,null,null,null,null,null,null,null,null,null,null,null,null,null,null,null,null,null,null,null,null,null,null,null,null,null,null,null,null,null,null,null,82,82,82,null,1,null,null,null,80,null,82,"(82)"]
["83(83)","Maria Andersson","Team Småland Hsk",40,null,2,80,null,0,0,0,0,0,71,9,null,null,null,null,null,null,null,null,null,null,null,null,null,null,null,null,null,null,null,null,null,null,null,null,null,null,null,null,null,null,null,null,null,null,null,null,null,null,null,null,null,null,null,null,null,null,null,null,null,null,null,null,null,null,null,null,null,null,null,null,null,null,null,null,null,null,null,null,null,null,null,null,null,null,null,null,null,null,null,null,null,null,null,null,null,null,null,null,null,null,null,null,null,null,null,null,null,null,null,null,null,null,null,null,null,null,null,null,83,83,83,null,1,null,null,null,81,null,83,"(83)"]
["84(84)","Solveig Brincner","Värends Hsk",34.9,null,10,349,null,0,0,0,0,0,43,10,38,44,23,41,17,69,20,44,null,null,null,null,null,null,null,null,null,null,null,null,null,null,null,null,null,null,null,null,null,null,null,null,null,null,null,null,null,null,null,null,null,null,null,null,null,null,null,null,null,null,null,null,null,null,null,null,null,null,null,null,null,null,null,null,null,null,null,null,null,null,null,null,null,null,null,null,null,null,null,null,null,null,null,null,null,null,null,null,null,null,null,null,null,null,null,null,null,null,null,null,null,null,null,null,null,null,null,null,84,84,84,null,1,null,null,null,82,null,84,"(84)"]
["-(-)",null,null,0,null,0,0,null,0,0,0,0,0,null,null,null,null,null,null,null,null,null,null,null,null,null,null,null,null,null,null,null,null,null,null,null,null,null,null,null,null,null,null,null,null,null,null,null,null,null,null,null,null,null,null,null,null,null,null,null,null,null,null,null,null,null,null,null,null,null,null,null,null,null,null,null,null,null,null,null,null,null,null,null,null,null,null,null,null,null,null,null,null,null,null,null,null,null,null,null,null,null,null,null,null,null,null,null,null,null,null,null,null,null,null,null,null,null,null,null,null,null,null,"-","-",85,null,1,null,null,null,83,null,"-","(-)"]
["85(85)",null,null,0,null,0,0,null,0,0,0,0,0,null,null,null,null,null,null,null,null,null,null,null,null,null,null,null,null,null,null,null,null,null,null,null,null,null,null,null,null,null,null,null,null,null,null,null,null,null,null,null,null,null,null,null,null,null,null,null,null,null,null,null,null,null,null,null,null,null,null,null,null,null,null,null,null,null,null,null,null,null,null,null,null,null,null,null,null,null,null,null,null,null,null,null,null,null,null,null,null,null,null,null,null,null,null,null,null,null,null,null,null,null,null,null,null,null,null,null,null,null,null,85,85,86,null,1,null,null,null,84,null,85,"(85)"]
["85(85)",null,null,0,null,0,0,null,0,0,0,0,0,null,null,null,null,null,null,null,null,null,null,null,null,null,null,null,null,null,null,null,null,null,null,null,null,null,null,null,null,null,null,null,null,null,null,null,null,null,null,null,null,null,null,null,null,null,null,null,null,null,null,null,null,null,null,null,null,null,null,null,null,null,null,null,null,null,null,null,null,null,null,null,null,null,null,null,null,null,null,null,null,null,null,null,null,null,null,null,null,null,null,null,null,null,null,null,null,null,null,null,null,null,null,null,null,null,null,null,null,null,null,85,85,87,null,1,null,null,null,85,null,85,"(85)"]
["85(85)",null,null,0,null,0,0,null,0,0,0,0,0,null,null,null,null,null,null,null,null,null,null,null,null,null,null,null,null,null,null,null,null,null,null,null,null,null,null,null,null,null,null,null,null,null,null,null,null,null,null,null,null,null,null,null,null,null,null,null,null,null,null,null,null,null,null,null,null,null,null,null,null,null,null,null,null,null,null,null,null,null,null,null,null,null,null,null,null,null,null,null,null,null,null,null,null,null,null,null,null,null,null,null,null,null,null,null,null,null,null,null,null,null,null,null,null,null,null,null,null,null,null,85,85,88,null,1,null,null,null,86,null,85,"(85)"]
["85(85)",null,null,0,null,0,0,null,0,0,0,0,0,null,null,null,null,null,null,null,null,null,null,null,null,null,null,null,null,null,null,null,null,null,null,null,null,null,null,null,null,null,null,null,null,null,null,null,null,null,null,null,null,null,null,null,null,null,null,null,null,null,null,null,null,null,null,null,null,null,null,null,null,null,null,null,null,null,null,null,null,null,null,null,null,null,null,null,null,null,null,null,null,null,null,null,null,null,null,null,null,null,null,null,null,null,null,null,null,null,null,null,null,null,null,null,null,null,null,null,null,null,null,85,85,89,null,1,null,null,null,87,null,85,"(85)"]
["86(86)",null,null,0,null,0,0,null,0,0,0,0,0,null,null,null,null,null,null,null,null,null,null,null,null,null,null,null,null,null,null,null,null,null,null,null,null,null,null,null,null,null,null,null,null,null,null,null,null,null,null,null,null,null,null,null,null,null,null,null,null,null,null,null,null,null,null,null,null,null,null,null,null,null,null,null,null,null,null,null,null,null,null,null,null,null,null,null,null,null,null,null,null,null,null,null,null,null,null,null,null,null,null,null,null,null,null,null,null,null,null,null,null,null,null,null,null,null,null,null,null,null,null,86,86,90,null,1,null,null,null,88,null,86,"(86)"]
["87(87)",null,null,0,null,0,0,null,0,0,0,0,0,null,null,null,null,null,null,null,null,null,null,null,null,null,null,null,null,null,null,null,null,null,null,null,null,null,null,null,null,null,null,null,null,null,null,null,null,null,null,null,null,null,null,null,null,null,null,null,null,null,null,null,null,null,null,null,null,null,null,null,null,null,null,null,null,null,null,null,null,null,null,null,null,null,null,null,null,null,null,null,null,null,null,null,null,null,null,null,null,null,null,null,null,null,null,null,null,null,null,null,null,null,null,null,null,null,null,null,null,null,null,87,87,91,null,1,null,null,null,89,null,87,"(87)"]
["88(88)",null,null,0,null,0,0,null,0,0,0,0,0,null,null,null,null,null,null,null,null,null,null,null,null,null,null,null,null,null,null,null,null,null,null,null,null,null,null,null,null,null,null,null,null,null,null,null,null,null,null,null,null,null,null,null,null,null,null,null,null,null,null,null,null,null,null,null,null,null,null,null,null,null,null,null,null,null,null,null,null,null,null,null,null,null,null,null,null,null,null,null,null,null,null,null,null,null,null,null,null,null,null,null,null,null,null,null,null,null,null,null,null,null,null,null,null,null,null,null,null,null,null,88,88,92,null,1,null,null,null,112,null,88,"(88)"]
["89(89)",null,null,0,null,0,0,null,0,0,0,0,0,null,null,null,null,null,null,null,null,null,null,null,null,null,null,null,null,null,null,null,null,null,null,null,null,null,null,null,null,null,null,null,null,null,null,null,null,null,null,null,null,null,null,null,null,null,null,null,null,null,null,null,null,null,null,null,null,null,null,null,null,null,null,null,null,null,null,null,null,null,null,null,null,null,null,null,null,null,null,null,null,null,null,null,null,null,null,null,null,null,null,null,null,null,null,null,null,null,null,null,null,null,null,null,null,null,null,null,null,null,null,89,89,93,null,1,null,null,null,90,null,89,"(89)"]
["90(90)",null,null,0,null,0,0,null,0,0,0,0,0,null,null,null,null,null,null,null,null,null,null,null,null,null,null,null,null,null,null,null,null,null,null,null,null,null,null,null,null,null,null,null,null,null,null,null,null,null,null,null,null,null,null,null,null,null,null,null,null,null,null,null,null,null,null,null,null,null,null,null,null,null,null,null,null,null,null,null,null,null,null,null,null,null,null,null,null,null,null,null,null,null,null,null,null,null,null,null,null,null,null,null,null,null,null,null,null,null,null,null,null,null,null,null,null,null,null,null,null,null,null,90,90,94,null,1,null,null,null,91,null,90,"(90)"]
["91(91)",null,null,0,null,0,0,null,0,0,0,0,0,null,null,null,null,null,null,null,null,null,null,null,null,null,null,null,null,null,null,null,null,null,null,null,null,null,null,null,null,null,null,null,null,null,null,null,null,null,null,null,null,null,null,null,null,null,null,null,null,null,null,null,null,null,null,null,null,null,null,null,null,null,null,null,null,null,null,null,null,null,null,null,null,null,null,null,null,null,null,null,null,null,null,null,null,null,null,null,null,null,null,null,null,null,null,null,null,null,null,null,null,null,null,null,null,null,null,null,null,null,null,91,91,95,null,1,null,null,null,92,null,91,"(91)"]
["92(92)",null,null,0,null,0,0,null,0,0,0,0,0,null,null,null,null,null,null,null,null,null,null,null,null,null,null,null,null,null,null,null,null,null,null,null,null,null,null,null,null,null,null,null,null,null,null,null,null,null,null,null,null,null,null,null,null,null,null,null,null,null,null,null,null,null,null,null,null,null,null,null,null,null,null,null,null,null,null,null,null,null,null,null,null,null,null,null,null,null,null,null,null,null,null,null,null,null,null,null,null,null,null,null,null,null,null,null,null,null,null,null,null,null,null,null,null,null,null,null,null,null,null,92,92,96,null,1,null,null,null,63,null,92,"(92)"]
["93(93)",null,null,{"$f":"IF(F101>0.5,(G101/F101),0)","v":0},null,{"$f":"COUNT(N101:BO101)","v":0},{"$f":"SUM(N101:BO101)","v":0},null,{"$f":"COUNTIF(BQ101:DR101,2)","v":0},{"$f":"COUNTIF(BQ101:DR101,-2)","v":0},{"$f":"COUNTIF(BQ101:DR101,1)","v":0},{"$f":"COUNTIF(BQ101:DR101,-1)","v":0},{"$f":"IF(F101>0,(I101+K101)/(F101),0)","v":0},null,null,null,null,null,null,null,null,null,null,null,null,null,null,null,null,null,null,null,null,null,null,null,null,null,null,null,null,null,null,null,null,null,null,null,null,null,null,null,null,null,null,null,null,null,null,null,null,null,null,null,null,null,null,null,null,null,null,null,null,null,null,null,null,null,null,null,null,null,null,null,null,null,null,null,null,null,null,null,null,null,null,null,null,null,null,null,null,null,null,null,null,null,null,null,null,null,null,null,null,null,null,null,null,null,null,null,null,null,null,93,93,{"$f":"IF(DX101=1,ROW(97:97),\"-\")","v":97},null,1,null,null,null,93,null,{"$f":"IF(DX101=1,DU101,IF(DX101=\"\",DU101,\"\"))","v":93},{"$f":"IF(DX101=1,\"(\"&DT101&\")\",\"(\"&DV101&\")\")","v":"(93)"}]
["94(94)",null,null,0,null,0,0,null,0,0,0,0,0,null,null,null,null,null,null,null,null,null,null,null,null,null,null,null,null,null,null,null,null,null,null,null,null,null,null,null,null,null,null,null,null,null,null,null,null,null,null,null,null,null,null,null,null,null,null,null,null,null,null,null,null,null,null,null,null,null,null,null,null,null,null,null,null,null,null,null,null,null,null,null,null,null,null,null,null,null,null,null,null,null,null,null,null,null,null,null,null,null,null,null,null,null,null,null,null,null,null,null,null,null,null,null,null,null,null,null,null,null,null,94,94,98,null,1,null,null,null,94,null,94,"(94)"]
["95(95)",null,null,0,null,0,0,null,0,0,0,0,0,null,null,null,null,null,null,null,null,null,null,null,null,null,null,null,null,null,null,null,null,null,null,null,null,null,null,null,null,null,null,null,null,null,null,null,null,null,null,null,null,null,null,null,null,null,null,null,null,null,null,null,null,null,null,null,null,null,null,null,null,null,null,null,null,null,null,null,null,null,null,null,null,null,null,null,null,null,null,null,null,null,null,null,null,null,null,null,null,null,null,null,null,null,null,null,null,null,null,null,null,null,null,null,null,null,null,null,null,null,null,95,95,99,null,1,null,null,null,95,null,95,"(95)"]
["96(96)",null,null,0,null,0,0,null,0,0,0,0,0,null,null,null,null,null,null,null,null,null,null,null,null,null,null,null,null,null,null,null,null,null,null,null,null,null,null,null,null,null,null,null,null,null,null,null,null,null,null,null,null,null,null,null,null,null,null,null,null,null,null,null,null,null,null,null,null,null,null,null,null,null,null,null,null,null,null,null,null,null,null,null,null,null,null,null,null,null,null,null,null,null,null,null,null,null,null,null,null,null,null,null,null,null,null,null,null,null,null,null,null,null,null,null,null,null,null,null,null,null,null,96,96,100,null,1,null,null,null,96,null,96,"(96)"]
["97(97)",null,null,0,null,0,0,null,0,0,0,0,0,null,null,null,null,null,null,null,null,null,null,null,null,null,null,null,null,null,null,null,null,null,null,null,null,null,null,null,null,null,null,null,null,null,null,null,null,null,null,null,null,null,null,null,null,null,null,null,null,null,null,null,null,null,null,null,null,null,null,null,null,null,null,null,null,null,null,null,null,null,null,null,null,null,null,null,null,null,null,null,null,null,null,null,null,null,null,null,null,null,null,null,null,null,null,null,null,null,null,null,null,null,null,null,null,null,null,null,null,null,null,97,97,101,null,1,null,null,null,97,null,97,"(97)"]
["98(98)",null,null,0,null,0,0,null,0,0,0,0,0,null,null,null,null,null,null,null,null,null,null,null,null,null,null,null,null,null,null,null,null,null,null,null,null,null,null,null,null,null,null,null,null,null,null,null,null,null,null,null,null,null,null,null,null,null,null,null,null,null,null,null,null,null,null,null,null,null,null,null,null,null,null,null,null,null,null,null,null,null,null,null,null,null,null,null,null,null,null,null,null,null,null,null,null,null,null,null,null,null,null,null,null,null,null,null,null,null,null,null,null,null,null,null,null,null,null,null,null,null,null,98,98,102,null,1,null,null,null,98,null,98,"(98)"]
["99(99)",null,null,0,null,0,0,null,0,0,0,0,0,null,null,null,null,null,null,null,null,null,null,null,null,null,null,null,null,null,null,null,null,null,null,null,null,null,null,null,null,null,null,null,null,null,null,null,null,null,null,null,null,null,null,null,null,null,null,null,null,null,null,null,null,null,null,null,null,null,null,null,null,null,null,null,null,null,null,null,null,null,null,null,null,null,null,null,null,null,null,null,null,null,null,null,null,null,null,null,null,null,null,null,null,null,null,null,null,null,null,null,null,null,null,null,null,null,null,null,null,null,null,99,{"$f":"IF(AND(D107=D106,D107=D105,D107=D104,D107=D103),ROW(99:99),IF(AND(D107=D106,D107=D105,D107=D104),ROW(100:100),IF(AND(D107=D106,D107=D105),ROW(101:101),IF(D107=D106,ROW(102:102),IF(D107>1,ROW(103:103),\"-\")))))","v":99},103,null,1,null,null,null,99,null,99,"(99)"]
["100(100)",null,null,0,null,0,0,null,0,0,0,0,0,null,null,null,null,null,null,null,null,null,null,null,null,null,null,null,null,null,null,null,null,null,null,null,null,null,null,null,null,null,null,null,null,null,null,null,null,null,null,null,null,null,null,null,null,null,null,null,null,null,null,null,null,null,null,null,null,null,null,null,null,null,null,null,null,null,null,null,null,null,null,null,null,null,null,null,null,null,null,null,null,null,null,null,null,null,null,null,null,null,null,null,null,null,null,null,null,null,null,null,null,null,null,null,null,null,null,null,null,null,null,100,100,104,null,1,null,null,null,100,null,100,"(100)"]
["101(101)",null,null,0,null,0,0,null,0,0,0,0,0,null,null,null,null,null,null,null,null,null,null,null,null,null,null,null,null,null,null,null,null,null,null,null,null,null,null,null,null,null,null,null,null,null,null,null,null,null,null,null,null,null,null,null,null,null,null,null,null,null,null,null,null,null,null,null,null,null,null,null,null,null,null,null,null,null,null,null,null,null,null,null,null,null,null,null,null,null,null,null,null,null,null,null,null,null,null,null,null,null,null,null,null,null,null,null,null,null,null,null,null,null,null,null,null,null,null,null,null,null,null,101,101,105,null,1,null,null,null,101,null,101,"(101)"]
["102(102)",null,null,0,null,0,0,null,0,0,0,0,0,null,null,null,null,null,null,null,null,null,null,null,null,null,null,null,null,null,null,null,null,null,null,null,null,null,null,null,null,null,null,null,null,null,null,null,null,null,null,null,null,null,null,null,null,null,null,null,null,null,null,null,null,null,null,null,null,null,null,null,null,null,null,null,null,null,null,null,null,null,null,null,null,null,null,null,null,null,null,null,null,null,null,null,null,null,null,null,null,null,null,null,null,null,null,null,null,null,null,null,null,null,null,null,null,null,null,null,null,null,null,102,102,106,null,1,null,null,null,102,null,102,"(102)"]
["103(103)",null,null,0,null,0,0,null,0,0,0,0,0,null,null,null,null,null,null,null,null,null,null,null,null,null,null,null,null,null,null,null,null,null,null,null,null,null,null,null,null,null,null,null,null,null,null,null,null,null,null,null,null,null,null,null,null,null,null,null,null,null,null,null,null,null,null,null,null,null,null,null,null,null,null,null,null,null,null,null,null,null,null,null,null,null,null,null,null,null,null,null,null,null,null,null,null,null,null,null,null,null,null,null,null,null,null,null,null,null,null,null,null,null,null,null,null,null,null,null,null,null,null,103,103,107,null,1,null,null,null,110,null,103,"(103)"]
["104(104)",null,null,0,null,0,0,null,0,0,0,0,0,null,null,null,null,null,null,null,null,null,null,null,null,null,null,null,null,null,null,null,null,null,null,null,null,null,null,null,null,null,null,null,null,null,null,null,null,null,null,null,null,null,null,null,null,null,null,null,null,null,null,null,null,null,null,null,null,null,null,null,null,null,null,null,null,null,null,null,null,null,null,null,null,null,null,null,null,null,null,null,null,null,null,null,null,null,null,null,null,null,null,null,null,null,null,null,null,null,null,null,null,null,null,null,null,null,null,null,null,null,null,104,104,108,null,1,null,null,null,103,null,104,"(104)"]
["105(105)",null,null,0,null,0,0,null,0,0,0,0,0,null,null,null,null,null,null,null,null,null,null,null,null,null,null,null,null,null,null,null,null,null,null,null,null,null,null,null,null,null,null,null,null,null,null,null,null,null,null,null,null,null,null,null,null,null,null,null,null,null,null,null,null,null,null,null,null,null,null,null,null,null,null,null,null,null,null,null,null,null,null,null,null,null,null,null,null,null,null,null,null,null,null,null,null,null,null,null,null,null,null,null,null,null,null,null,null,null,null,null,null,null,null,null,null,null,null,null,null,null,null,105,105,109,null,1,null,null,null,104,null,105,"(105)"]
["106(106)",null,null,0,null,0,0,null,0,0,0,0,0,null,null,null,null,null,null,null,null,null,null,null,null,null,null,null,null,null,null,null,null,null,null,null,null,null,null,null,null,null,null,null,null,null,null,null,null,null,null,null,null,null,null,null,null,null,null,null,null,null,null,null,null,null,null,null,null,null,null,null,null,null,null,null,null,null,null,null,null,null,null,null,null,null,null,null,null,null,null,null,null,null,null,null,null,null,null,null,null,null,null,null,null,null,null,null,null,null,null,null,null,null,null,null,null,null,null,null,null,null,null,106,106,110,null,1,null,null,null,105,null,106,"(106)"]
["107(107)",null,null,0,null,0,0,null,0,0,0,0,0,null,null,null,null,null,null,null,null,null,null,null,null,null,null,null,null,null,null,null,null,null,null,null,null,null,null,null,null,null,null,null,null,null,null,null,null,null,null,null,null,null,null,null,null,null,null,null,null,null,null,null,null,null,null,null,null,null,null,null,null,null,null,null,null,null,null,null,null,null,null,null,null,null,null,null,null,null,null,null,null,null,null,null,null,null,null,null,null,null,null,null,null,null,null,null,null,null,null,null,null,null,null,null,null,null,null,null,null,null,null,107,107,111,null,1,null,null,null,106,null,107,"(107)"]
["108(108)",null,null,0,null,0,0,null,0,0,0,0,0,null,null,null,null,null,null,null,null,null,null,null,null,null,null,null,null,null,null,null,null,null,null,null,null,null,null,null,null,null,null,null,null,null,null,null,null,null,null,null,null,null,null,null,null,null,null,null,null,null,null,null,null,null,null,null,null,null,null,null,null,null,null,null,null,null,null,null,null,null,null,null,null,null,null,null,null,null,null,null,null,null,null,null,null,null,null,null,null,null,null,null,null,null,null,null,null,null,null,null,null,null,null,null,null,null,null,null,null,null,null,108,108,112,null,1,null,null,null,107,null,108,"(108)"]
["109(109)",null,null,0,null,0,0,null,0,0,0,0,0,null,null,null,null,null,null,null,null,null,null,null,null,null,null,null,null,null,null,null,null,null,null,null,null,null,null,null,null,null,null,null,null,null,null,null,null,null,null,null,null,null,null,null,null,null,null,null,null,null,null,null,null,null,null,null,null,null,null,null,null,null,null,null,null,null,null,null,null,null,null,null,null,null,null,null,null,null,null,null,null,null,null,null,null,null,null,null,null,null,null,null,null,null,null,null,null,null,null,null,null,null,null,null,null,null,null,null,null,null,null,109,109,113,null,1,null,null,null,108,null,109,"(109)"]
["110(110)",null,null,0,null,0,0,null,0,0,0,0,0,null,null,null,null,null,null,null,null,null,null,null,null,null,null,null,null,null,null,null,null,null,null,null,null,null,null,null,null,null,null,null,null,null,null,null,null,null,null,null,null,null,null,null,null,null,null,null,null,null,null,null,null,null,null,null,null,null,null,null,null,null,null,null,null,null,null,null,null,null,null,null,null,null,null,null,null,null,null,null,null,null,null,null,null,null,null,null,null,null,null,null,null,null,null,null,null,null,null,null,null,null,null,null,null,null,null,null,null,null,null,110,110,114,null,1,null,null,null,109,null,110,"(110)"]
["111(111)",null,null,0,null,0,0,null,0,0,0,0,0,null,null,null,null,null,null,null,null,null,null,null,null,null,null,null,null,null,null,null,null,null,null,null,null,null,null,null,null,null,null,null,null,null,null,null,null,null,null,null,null,null,null,null,null,null,null,null,null,null,null,null,null,null,null,null,null,null,null,null,null,null,null,null,null,null,null,null,null,null,null,null,null,null,null,null,null,null,null,null,null,null,null,null,null,null,null,null,null,null,null,null,null,null,null,null,null,null,null,null,null,null,null,null,null,null,null,null,null,null,null,111,111,115,null,1,null,null,null,112,null,111,"(111)"]
["112(112)",null,null,0,null,0,0,null,0,0,0,0,0,null,null,null,null,null,null,null,null,null,null,null,null,null,null,null,null,null,null,null,null,null,null,null,null,null,null,null,null,null,null,null,null,null,null,null,null,null,null,null,null,null,null,null,null,null,null,null,null,null,null,null,null,null,null,null,null,null,null,null,null,null,null,null,null,null,null,null,null,null,null,null,null,null,null,null,null,null,null,null,null,null,null,null,null,null,null,null,null,null,null,null,null,null,null,null,null,null,null,null,null,null,null,null,null,null,null,null,null,null,null,112,112,116,null,1,null,null,null,110,null,112,"(112)"]
[{"$f":"DU121&EE121","v":"113(113)"},null,null,0,null,0,0,null,0,0,0,0,0,null,null,null,null,null,null,null,null,null,null,null,null,null,null,null,null,null,null,null,null,null,null,null,null,null,null,null,null,null,null,null,null,null,null,null,null,null,null,null,null,null,null,null,null,null,null,null,null,null,null,null,null,null,null,null,null,null,null,null,null,null,null,null,null,null,null,null,null,null,null,null,null,null,null,null,null,null,null,null,null,null,null,null,null,null,null,null,null,null,null,null,null,null,null,null,null,null,null,null,null,null,null,null,null,null,null,null,null,null,null,113,{"$f":"IF(AND(D121=D120,D121=D119,D121=D118,D121=D117),ROW(113:113),IF(AND(D121=D120,D121=D119,D121=D118),ROW(114:114),IF(AND(D121=D120,D121=D119),ROW(115:115),IF(D121=D120,ROW(116:116),IF(D121>1,ROW(117:117),\"-\")))))","v":113},{"$f":"IF(DX121=1,ROW(117:117),\"-\")","v":117},null,1,null,null,null,111,null,{"$f":"IF(DX121=1,DU121,IF(DX121=\"\",DU121,\"\"))","v":113},{"$f":"IF(DX121=1,\"(\"&DT121&\")\",\"(\"&DV121&\")\")","v":"(113)"}]
[{"$f":"DU122&EE122","v":"114(114)"},null,null,0,null,0,0,null,0,0,0,0,0,null,null,null,null,null,null,null,null,null,null,null,null,null,null,null,null,null,null,null,null,null,null,null,null,null,null,null,null,null,null,null,null,null,null,null,null,null,null,null,null,null,null,null,null,null,null,null,null,null,null,null,null,null,null,null,null,null,null,null,null,null,null,null,null,null,null,null,null,null,null,null,null,null,null,null,null,null,null,null,null,null,null,null,null,null,null,null,null,null,null,null,null,null,null,null,null,null,null,null,null,null,null,null,null,null,null,null,null,null,null,114,{"$f":"IF(AND(D122=D121,D122=D120,D122=D119,D122=D118),ROW(114:114),IF(AND(D122=D121,D122=D120,D122=D119),ROW(115:115),IF(AND(D122=D121,D122=D120),ROW(116:116),IF(D122=D121,ROW(117:117),IF(D122>1,ROW(118:118),\"-\")))))","v":114},{"$f":"IF(DX122=1,ROW(118:118),\"-\")","v":118},null,1,null,null,null,113,null,{"$f":"IF(DX122=1,DU122,IF(DX122=\"\",DU122,\"\"))","v":114},{"$f":"IF(DX122=1,\"(\"&DT122&\")\",\"(\"&DV122&\")\")","v":"(114)"}]
[{"$f":"DU123&EE123","v":"115(115)"},null,null,0,null,0,0,null,0,0,0,0,0,null,null,null,null,null,null,null,null,null,null,null,null,null,null,null,null,null,null,null,null,null,null,null,null,null,null,null,null,null,null,null,null,null,null,null,null,null,null,null,null,null,null,null,null,null,null,null,null,null,null,null,null,null,null,null,null,null,null,null,null,null,null,null,null,null,null,null,null,null,null,null,null,null,null,null,null,null,null,null,null,null,null,null,null,null,null,null,null,null,null,null,null,null,null,null,null,null,null,null,null,null,null,null,null,null,null,null,null,null,null,115,{"$f":"IF(AND(D123=D122,D123=D121,D123=D120,D123=D119),ROW(115:115),IF(AND(D123=D122,D123=D121,D123=D120),ROW(116:116),IF(AND(D123=D122,D123=D121),ROW(117:117),IF(D123=D122,ROW(118:118),IF(D123>1,ROW(119:119),\"-\")))))","v":115},{"$f":"IF(DX123=1,ROW(119:119),\"-\")","v":119},null,1,null,null,null,113,null,{"$f":"IF(DX123=1,DU123,IF(DX123=\"\",DU123,\"\"))","v":115},{"$f":"IF(DX123=1,\"(\"&DT123&\")\",\"(\"&DV123&\")\")","v":"(115)"}]